{"text_format":"1","workbook":"xlsx","n_sheets":5,"sheets":["Cerere de Finantare","COEFICIENŢI PRODUCŢIE STANDARD ","Anexa 1 HG_907","Anexa 2 HG_907","Anexa 3 HG_907"],"not_rendered":{"charts":0,"images":1,"macros":1,"external_links":0,"defined_names":2,"comments":0,"pivot_tables":0},"unopened":[],"bounds":{"document_bytes":16777216,"sheet_cells":100000,"rows_first":2000,"rows_last":500,"rows_between":2000,"halvings":0,"cell_chars":16384,"cell_head_chars":4096},"cells_cut":0,"cells_raw":0,"read":"whole","date_system":"1900"}

{"sheet":"Cerere de Finantare","index":0,"n_rows":973,"n_cols":68,"rows_kept":973,"cut":false,"hidden":false,"merged":[[970,19,970,40],[882,23,882,55],[882,56,882,66],[883,23,883,55],[883,56,883,66],[884,23,884,55],[884,56,884,66],[876,6,882,22],[885,23,885,55],[885,56,885,66],[881,23,881,55],[881,56,881,66],[873,6,875,22],[873,23,873,55],[873,56,873,66],[874,23,874,55],[874,56,874,66],[875,23,875,55],[875,56,875,66],[876,23,876,55],[876,56,876,66],[877,56,877,66],[859,6,859,55],[859,56,859,66],[864,23,864,55],[864,56,864,66],[865,23,865,55],[865,56,865,66],[866,23,866,55],[866,56,866,66],[878,23,878,55],[878,56,878,66],[879,23,879,55],[879,56,879,66],[880,23,880,55],[880,56,880,66],[867,23,867,55],[867,56,867,66],[868,23,868,55],[868,56,868,66],[869,23,869,55],[869,56,869,66],[870,23,870,55],[870,56,870,66],[871,23,871,55],[871,56,871,66],[872,23,872,55],[872,56,872,66],[860,6,872,22],[863,56,863,66],[839,7,839,37],[845,6,845,22],[846,6,846,22],[847,6,847,22],[840,7,840,37],[839,47,839,58],[840,47,840,56],[829,11,829,66],[830,11,830,66],[831,11,831,66],[824,11,824,66],[825,11,825,66],[827,11,827,66],[828,11,828,66],[823,11,823,66],[838,6,838,66],[819,6,819,8],[820,6,820,8],[821,6,821,8],[822,6,822,8],[823,6,823,8],[824,6,824,8],[826,11,826,66],[825,6,826,9],[827,6,827,9],[828,6,828,10],[829,6,829,9],[830,6,830,9],[757,6,757,35],[757,36,757,40],[757,41,757,47],[757,48,757,55],[757,56,757,60],[757,61,757,66],[758,6,758,35],[759,6,759,35],[760,6,760,35],[758,56,758,60],[758,61,758,66],[759,56,759,60],[759,61,759,66],[760,56,760,60],[760,61,760,66],[758,48,758,55],[759,48,759,55],[760,48,760,55],[758,36,758,40],[759,36,759,40],[760,36,760,40],[758,41,758,47],[759,41,759,47],[760,41,760,47],[756,6,756,35],[756,36,756,40],[756,41,756,47],[756,48,756,55],[756,56,756,60],[756,61,756,66],[744,6,744,35],[743,36,744,66],[746,6,746,35],[747,6,747,35],[749,6,749,35],[754,6,754,35],[755,6,755,35],[755,36,755,40],[755,41,755,47],[755,48,755,55],[755,56,755,60],[755,61,755,66],[753,6,753,35],[745,36,748,66],[748,6,748,22],[748,23,748,24],[750,6,751,60],[750,61,750,66],[751,61,751,66],[752,6,752,66],[753,36,753,40],[753,41,753,47],[753,48,753,55],[819,11,819,66],[820,11,820,66],[821,11,821,66],[822,11,822,66],[793,6,793,35],[793,36,793,40],[793,41,793,47],[793,48,793,55],[788,36,788,40],[788,41,788,47],[788,48,788,55],[788,56,788,60],[788,61,788,66],[791,6,791,35],[791,36,791,40],[791,41,791,47],[791,48,791,55],[791,56,791,60],[794,36,794,40],[806,37,806,65],[796,36,796,40],[796,41,796,47],[796,48,796,55],[792,61,792,66],[808,9,809,66],[813,9,813,66],[808,7,809,8],[810,7,810,8],[811,7,811,8],[812,7,812,8],[813,7,818,8],[792,41,792,47],[792,48,792,55],[792,56,792,60],[801,6,801,66],[803,6,803,66],[793,56,793,60],[793,61,793,66],[794,6,794,35],[795,6,795,35],[787,56,787,60],[787,61,787,66],[788,6,788,35],[812,9,812,66],[810,9,810,66],[811,9,811,66],[807,6,807,66],[791,61,791,66],[800,6,800,66],[805,6,805,66],[802,7,802,40],[804,7,804,65],[806,7,806,34],[787,36,787,40],[787,41,787,47],[787,48,787,55],[831,6,831,8],[814,9,814,66],[815,9,815,66],[816,9,816,66],[817,9,817,66],[818,9,818,66],[789,56,789,60],[789,61,789,66],[790,36,790,40],[790,41,790,47],[790,48,790,55],[790,56,790,60],[790,61,790,66],[785,36,785,40],[785,41,785,47],[785,48,785,55],[785,56,785,60],[785,61,785,66],[786,36,786,40],[786,41,786,47],[786,48,786,55],[786,56,786,60],[786,61,786,66],[794,41,794,47],[794,48,794,55],[794,56,794,60],[794,61,794,66],[795,36,795,40],[795,41,795,47],[795,61,795,66],[796,6,796,35],[792,36,792,40],[775,56,775,60],[775,61,775,66],[776,36,776,40],[776,41,776,47],[776,48,776,55],[776,56,776,60],[776,61,776,66],[775,36,775,40],[783,56,783,60],[783,61,783,66],[784,36,784,40],[784,41,784,47],[784,48,784,55],[784,56,784,60],[784,61,784,66],[781,36,781,40],[781,41,781,47],[781,48,781,55],[781,56,781,60],[781,61,781,66],[782,36,782,40],[782,41,782,47],[782,48,782,55],[782,56,782,60],[782,61,782,66],[784,6,784,35],[785,6,785,35],[786,6,786,35],[789,6,789,35],[790,6,790,35],[769,6,769,35],[770,6,770,35],[774,6,774,35],[775,6,775,35],[776,6,776,35],[777,6,777,35],[783,36,783,40],[783,41,783,47],[783,48,783,55],[789,36,789,40],[789,41,789,47],[789,48,789,55],[771,6,771,35],[772,6,772,35],[773,6,773,35],[771,41,771,47],[772,41,772,47],[773,41,773,47],[779,36,779,40],[779,41,779,47],[779,48,779,55],[780,36,780,40],[780,41,780,47],[780,48,780,55],[777,36,777,40],[777,41,777,47],[777,48,777,55],[763,6,763,35],[769,36,769,40],[769,41,769,47],[769,48,769,55],[769,56,769,60],[769,61,769,66],[770,36,770,40],[770,41,770,47],[770,48,770,55],[770,56,770,60],[770,61,770,66],[774,36,774,40],[774,41,774,47],[774,48,774,55],[781,6,781,35],[782,6,782,35],[783,6,783,35],[774,56,774,60],[774,61,774,66],[779,56,779,60],[779,61,779,66],[780,56,780,60],[780,61,780,66],[777,56,777,60],[777,61,777,66],[778,36,778,40],[778,41,778,47],[778,48,778,55],[778,56,778,60],[778,61,778,66],[775,41,775,47],[775,48,775,55],[767,41,767,47],[767,48,767,55],[767,56,767,60],[767,61,767,66],[768,6,768,35],[768,36,768,40],[768,41,768,47],[768,48,768,55],[768,56,768,60],[768,61,768,66],[765,6,765,35],[765,36,765,40],[765,41,765,47],[765,48,765,55],[765,56,765,60],[765,61,765,66],[766,6,766,35],[766,36,766,40],[766,41,766,47],[766,48,766,55],[766,56,766,60],[766,61,766,66],[148,42,148,64],[63,45,63,54],[55,21,55,31],[55,33,55,43],[55,45,55,54],[55,56,55,64],[71,21,71,31],[71,33,71,43],[71,45,71,54],[71,56,71,64],[63,56,63,64],[61,7,65,19],[53,7,57,19],[116,7,123,65],[142,7,142,25],[142,28,142,45],[142,48,142,64],[143,7,143,25],[143,28,143,45],[143,48,143,64],[114,7,114,29],[134,62,134,63],[130,8,130,20],[130,25,130,45],[130,49,130,64],[132,46,132,64],[125,6,125,66],[129,49,129,64],[126,6,126,66],[128,7,129,21],[128,25,128,45],[129,25,129,45],[128,49,128,64],[12,28,13,28],[12,29,13,29],[12,31,13,31],[12,33,13,33],[12,34,13,34],[35,7,35,28],[25,7,25,13],[22,6,22,22],[23,6,23,66],[25,16,25,66],[26,16,26,66],[19,6,19,27],[20,6,20,13],[21,6,21,27],[30,7,30,22],[29,7,29,65],[31,7,34,65],[36,7,45,65],[49,6,49,18],[18,6,18,13],[15,36,15,40],[16,36,16,40],[17,36,17,40],[14,12,14,14],[15,12,15,14],[16,12,16,14],[14,15,14,17],[14,18,14,20],[15,18,15,20],[0,12,0,66],[1,12,1,66],[7,6,7,40],[8,6,8,40],[10,13,10,40],[6,42,6,66],[3,48,3,66],[12,6,12,11],[12,13,13,13],[12,15,13,15],[12,16,13,16],[12,18,13,18],[5,6,6,40],[5,42,5,66],[13,6,13,11],[12,27,13,27],[15,15,15,17],[11,42,12,66],[15,26,15,29],[14,21,14,24],[15,21,15,24],[12,19,13,19],[12,21,13,21],[12,22,13,22],[12,23,13,23],[12,24,13,24],[12,26,13,26],[12,36,13,36],[12,37,13,37],[12,38,13,38],[12,39,13,39],[12,40,13,40],[14,33,14,34],[15,33,15,34],[14,30,14,32],[15,30,15,32],[16,18,16,20],[18,15,18,26],[16,26,16,29],[17,26,17,29],[14,36,14,40],[14,26,14,29],[27,7,27,51],[27,54,27,65],[28,54,28,65],[51,56,51,64],[49,33,49,46],[49,47,49,65],[47,8,47,25],[48,6,48,21],[87,33,87,43],[87,45,87,54],[87,56,87,64],[87,21,87,31],[69,7,73,19],[28,7,28,31],[49,19,49,31],[51,7,51,19],[51,21,51,31],[51,33,51,43],[51,45,51,54],[63,21,63,31],[63,33,63,43],[79,21,79,31],[79,33,79,43],[79,45,79,54],[85,7,89,19],[144,7,144,15],[144,58,144,64],[145,7,145,15],[145,58,145,64],[144,21,144,51],[145,21,145,51],[146,7,146,15],[147,7,147,15],[161,7,161,38],[151,7,151,64],[152,7,152,64],[154,9,155,19],[154,20,155,30],[154,31,155,41],[154,42,155,52],[154,53,154,63],[155,53,155,63],[157,10,157,19],[157,22,157,29],[157,32,157,40],[156,53,158,63],[157,42,157,52],[160,6,160,66],[146,52,146,60],[147,52,147,60],[146,38,146,40],[147,38,147,40],[146,45,146,47],[147,45,147,47],[148,7,148,19],[149,7,149,19],[148,26,148,38],[164,46,164,47],[170,10,170,12],[170,13,170,15],[170,16,170,21],[168,24,168,26],[164,48,164,49],[164,50,164,51],[164,52,164,53],[164,54,164,55],[164,36,164,37],[164,38,164,39],[164,40,164,41],[164,42,164,43],[164,44,164,45],[164,32,164,33],[164,34,164,35],[149,42,149,64],[149,26,149,38],[889,56,889,66],[899,6,899,66],[856,56,856,66],[848,6,851,22],[890,23,890,55],[890,56,890,66],[891,23,891,55],[891,56,891,66],[883,6,891,22],[797,48,797,55],[797,56,797,60],[797,61,797,66],[244,7,244,51],[187,36,187,39],[187,42,187,51],[186,60,186,64],[186,54,186,57],[187,54,187,57],[187,60,187,64],[186,18,186,33],[763,36,763,40],[763,41,763,47],[763,48,763,55],[763,56,763,60],[763,61,763,66],[764,6,764,35],[764,36,764,40],[764,41,764,47],[764,48,764,55],[764,56,764,60],[764,61,764,66],[761,6,761,35],[97,7,97,9],[103,7,103,28],[103,47,103,54],[103,57,103,64],[77,7,81,19],[79,56,79,64],[92,7,92,28],[912,56,912,66],[913,6,913,44],[913,45,913,55],[913,56,913,66],[914,6,914,44],[914,45,914,55],[914,56,914,66],[906,6,906,44],[906,45,906,55],[906,56,906,66],[900,6,900,66],[850,23,850,55],[850,56,850,66],[851,23,851,55],[851,56,851,66],[852,6,853,22],[852,23,852,55],[852,56,852,66],[853,23,853,55],[853,56,853,66],[855,6,857,22],[904,6,904,66],[888,23,888,55],[888,56,888,66],[889,23,889,55],[241,6,243,67],[843,6,843,66],[844,6,844,66],[845,23,845,55],[846,23,846,55],[847,23,847,55],[858,6,858,55],[7,42,8,66],[13,42,21,66],[9,42,10,66],[10,6,10,12],[94,12,94,25],[95,12,95,25],[94,7,94,9],[95,33,95,40],[97,38,97,42],[97,12,97,25],[98,12,98,25],[141,7,141,47],[140,7,140,29],[140,34,140,60],[138,23,138,36],[138,7,138,22],[136,7,136,8],[136,9,136,10],[136,11,136,12],[136,13,136,14],[136,34,136,35],[136,38,136,39],[136,40,136,41],[136,42,136,43],[136,44,136,45],[168,27,168,32],[169,27,170,32],[169,24,170,26],[187,7,187,15],[186,42,186,50],[183,7,183,43],[184,7,184,25],[184,28,184,45],[184,48,184,64],[185,7,185,25],[185,28,185,45],[191,7,191,29],[188,44,188,56],[189,44,189,56],[189,7,189,19],[189,26,189,38],[188,7,188,19],[188,26,188,38],[169,13,169,15],[169,16,169,21],[862,56,862,66],[863,23,863,55],[877,23,877,55],[146,23,146,31],[147,23,147,31],[134,36,134,37],[134,38,134,39],[134,40,134,41],[134,42,134,43],[134,46,134,47],[134,48,134,49],[134,50,134,51],[134,52,134,53],[134,56,134,57],[134,58,134,59],[134,60,134,61],[138,54,138,61],[845,56,845,66],[846,56,846,66],[168,43,168,54],[169,43,170,54],[168,57,168,64],[169,57,170,64],[855,23,855,55],[857,23,857,55],[857,56,857,66],[856,23,856,55],[164,30,164,31],[174,9,180,64],[168,34,168,41],[169,34,170,41],[194,6,240,65],[163,9,163,16],[164,9,164,22],[168,10,168,21],[169,10,169,12],[921,45,921,55],[921,56,921,66],[923,56,923,66],[924,6,924,44],[924,45,924,55],[924,56,924,66],[925,6,925,44],[925,45,925,55],[185,48,185,64],[186,7,186,15],[187,18,187,33],[186,36,186,39],[847,56,847,66],[848,23,848,55],[849,23,849,55],[848,56,848,66],[849,56,849,66],[886,23,886,55],[886,56,886,66],[887,23,887,55],[887,56,887,66],[854,6,854,55],[854,56,854,66],[855,56,855,66],[858,56,858,66],[861,23,861,55],[861,56,861,66],[862,23,862,55],[918,56,918,66],[919,6,919,44],[919,45,919,55],[919,56,919,66],[946,49,946,65],[948,6,948,44],[948,46,948,65],[964,6,964,9],[964,10,964,20],[964,21,964,65],[893,6,898,66],[930,6,930,66],[931,6,931,66],[932,6,932,66],[933,6,933,66],[934,6,934,20],[934,21,934,65],[935,6,935,20],[936,6,936,20],[936,21,936,65],[938,6,938,20],[940,6,940,10],[940,11,940,18],[940,20,940,23],[940,24,940,37],[940,39,940,43],[940,44,940,63],[908,45,908,55],[908,56,908,66],[909,6,909,44],[908,6,908,44],[962,27,962,65],[952,6,952,25],[952,26,952,36],[954,6,954,57],[954,58,954,65],[909,45,909,55],[909,56,909,66],[910,6,910,66],[911,6,911,44],[911,45,911,55],[911,56,911,66],[912,6,912,44],[912,45,912,55],[922,6,922,66],[907,45,907,55],[907,56,907,66],[923,6,923,44],[923,45,923,55],[926,6,926,44],[926,45,926,55],[926,56,926,66],[927,56,927,66],[927,6,927,55],[925,56,925,66],[915,6,915,66],[916,6,916,44],[916,45,916,55],[916,56,916,66],[917,6,917,44],[917,45,917,55],[917,56,917,66],[918,6,918,44],[918,45,918,55],[944,14,944,15],[944,16,944,18],[944,20,944,21],[944,22,944,23],[944,25,944,26],[944,27,944,29],[944,31,944,34],[946,29,946,31],[946,32,946,42],[946,44,946,48],[950,6,950,11],[950,12,950,36],[944,36,944,42],[944,44,944,51],[944,53,944,62],[946,6,946,16],[946,17,946,27],[966,6,966,66],[968,6,968,16],[968,18,968,33],[968,49,968,52],[968,53,968,62],[970,6,970,18],[972,6,972,13],[901,6,901,44],[901,45,901,55],[901,56,901,66],[902,6,902,44],[902,45,902,55],[902,56,902,66],[903,6,903,44],[903,45,903,55],[903,56,903,66],[905,6,905,44],[905,45,905,55],[905,56,905,66],[907,6,907,44],[956,6,956,11],[956,12,956,65],[958,18,958,65],[960,18,960,65],[942,6,942,10],[942,11,942,24],[942,27,942,29],[942,31,942,43],[942,45,942,48],[942,50,942,65],[944,6,944,8],[944,9,944,12],[920,6,920,44],[920,45,920,55],[920,56,920,66],[921,6,921,44],[94,28,94,30],[97,28,97,30],[104,7,104,17],[105,7,107,29],[105,36,105,38],[105,48,105,65],[107,36,107,45],[107,48,107,65],[109,7,109,17],[110,7,112,29],[110,36,110,38],[110,48,110,65],[112,36,112,45],[112,48,112,65],[136,18,136,19],[136,20,136,21],[136,22,136,23],[136,24,136,25],[136,28,136,29],[136,30,136,31],[136,32,136,33],[796,56,796,60],[796,61,796,66],[797,6,797,35],[797,36,797,40],[797,41,797,47],[245,6,245,40],[245,41,245,66],[246,6,246,40],[246,41,246,49],[246,50,246,57],[246,58,246,66],[247,6,247,66],[249,7,249,19],[249,21,249,23],[249,25,249,29],[249,31,249,36],[249,41,249,53],[249,56,249,65],[251,6,251,40],[251,41,251,49],[753,56,753,60],[753,61,753,66],[743,6,743,35],[251,50,251,57],[251,58,251,66],[252,6,252,40],[252,41,252,49],[252,50,252,57],[252,58,252,66],[253,6,253,40],[253,41,253,49],[253,50,253,57],[253,58,253,66],[254,6,254,40],[254,41,254,49],[254,50,254,57],[254,58,254,66],[255,6,255,40],[255,41,255,49],[255,50,255,57],[255,58,255,66],[256,6,256,40],[256,41,256,49],[256,50,256,57],[256,58,256,66],[257,6,257,40],[257,41,257,49],[257,50,257,57],[257,58,257,66],[258,6,258,40],[258,41,258,49],[258,50,258,57],[258,58,258,66],[259,6,259,40],[259,41,259,49],[259,50,259,57],[259,58,259,66],[260,6,260,40],[260,41,260,49],[260,50,260,57],[260,58,260,66],[261,6,261,40],[261,41,261,49],[261,50,261,57],[261,58,261,66],[262,6,262,40],[262,41,262,49],[262,50,262,57],[262,58,262,66],[263,6,263,40],[263,41,263,49],[263,50,263,57],[263,58,263,66],[264,6,264,40],[264,41,264,49],[264,50,264,57],[264,58,264,66],[265,6,265,40],[265,41,265,49],[265,50,265,57],[265,58,265,66],[266,6,266,40],[266,41,266,49],[266,50,266,57],[266,58,266,66],[267,6,267,40],[267,41,267,49],[267,50,267,57],[267,58,267,66],[268,6,268,40],[268,41,268,49],[268,50,268,57],[268,58,268,66],[269,6,269,40],[269,41,269,49],[269,50,269,57],[269,58,269,66],[270,6,270,40],[270,41,270,49],[270,50,270,57],[270,58,270,66],[271,6,271,40],[271,41,271,49],[271,50,271,57],[271,58,271,66],[272,6,272,40],[272,41,272,49],[272,50,272,57],[272,58,272,66],[273,6,273,40],[273,41,273,49],[273,50,273,57],[273,58,273,66],[274,6,274,40],[274,41,274,49],[274,50,274,57],[274,58,274,66],[275,6,275,40],[275,41,275,49],[275,50,275,57],[275,58,275,66],[276,6,276,40],[276,41,276,49],[276,50,276,57],[276,58,276,66],[277,6,277,40],[277,41,277,49],[277,50,277,57],[277,58,277,66],[278,6,278,40],[278,41,278,49],[278,50,278,57],[278,58,278,66],[279,6,279,40],[279,41,279,49],[279,50,279,57],[279,58,279,66],[280,6,280,40],[280,41,280,49],[280,50,280,57],[280,58,280,66],[281,6,281,40],[281,41,281,49],[281,50,281,57],[281,58,281,66],[282,6,282,40],[282,41,282,49],[282,50,282,57],[282,58,282,66],[283,6,283,40],[283,41,283,49],[283,50,283,57],[283,58,283,66],[284,6,284,40],[284,41,284,49],[284,50,284,57],[284,58,284,66],[285,6,285,30],[285,41,285,66],[286,6,286,40],[286,41,286,49],[286,50,286,57],[286,58,286,66],[287,6,287,40],[287,41,287,49],[287,50,287,57],[287,58,287,66],[288,6,288,40],[288,41,288,49],[288,50,288,57],[288,58,288,66],[289,6,289,40],[289,41,289,49]],"merged_total":2636,"flags":["merged_cut"]}
[null,null,null,null,null,null,null,null,null,null,null,null,"MINISTERUL AGRICULTURII ŞI DEZVOLTĂRII RURALE",null,null,null,null,null,null,null,null,null,null,null,null,null,null,null,null,null,null,null,null,null,null,null,null,null,null,null,null,null,null,null,null,null,null,null,null,null,null,null,null,null,null,null,null,null,null,null,null,null,null,null,null,null,null,5]
[null,null,null,null,null,null,null,null,null,null,null,null,"AGENŢIA PENTRU FINANŢAREA INVESTIŢIILOR RURALE",null,null,null,null,null,null,null,null,null,null,null,null,null,null,null,null,null,null,null,null,null,null,null,null,null,null,null,null,null,null,null,null,null,null,null,null,null,null,null,null,null,null,null,null,null,null,null,null,null,null,null,null,null,null,3]
[null,null,null,null,null,null,null,null,null,null,null,null,null,null,null,null,null,null,null,null,null,null,null,null,null,null,null,null,null,null,null,null,null,null,null,null,null,null,null,null,null,null,null,null,null,null,null,null,null,null,null,null,null,null,null,null,null,null,null,null,null,null,null,null,null,null,null,1]
[null,null,null,null,null,null,null,null,null,null,null,null,null,null,null,null,null,null,null,null,null,null,null,null,null,null,null,null,null,null,null,null,null,null,null,null,null,null,null,null,null,null,null,null,null,null,null,null,"SECŢIUNE GENERALĂ",null,null,null,null,null,null,null,null,null,null,null,null,null,null,null,null,null,null,1]
[null,null,null,null,null,null,null,null,null,null,null,null,null,null,null,null,null,null,null,null,null,null,null,null,null,null,null,null,null,null,null,null,null,null,null,null,null,null,null,null,null,null,null,null,null,null,null,null,null,null,null,null,null,null,null,null,null,null,null,null,null,null,null,null,null,null,null,5]
[null,null,null,null,null,null,"DATE DE ÎNREGISTRARE",null,null,null,null,null,null,null,null,null,null,null,null,null,null,null,null,null,null,null,null,null,null,null,null,null,null,null,null,null,null,null,null,null,null,null,"NUME ŞI PRENUME DIRECTOR OJFIR/",null,null,null,null,null,null,null,null,null,null,null,null,null,null,null,null,null,null,null,null,null,null,null,null,5]
[null,null,null,null,null,null,null,null,null,null,null,null,null,null,null,null,null,null,null,null,null,null,null,null,null,null,null,null,null,null,null,null,null,null,null,null,null,null,null,null,null,null,"DIRECTOR GENERAL ADJUNCT CRFIR"]
[null,null,null,null,null,null,"Se completează de către Agenția pentru Finanțarea Investițiilor Rurale - Oficiul"]
[null,null,null,null,null,null,"Judeţean/ Centrul Regional - Programul FEADR pentru cereri de finanţare"]
[null,null,null,null,null,null,null,null,null,null,null,null,null,null,null,null,null,null,null,null,null,null,null,null,null,null,null,null,null,null,null,null,null,null,null,null,null,null,null,null,null,null,"Semnătura Director OJFIR/Director General Adjunct CRFIR"]
[null,null,null,null,null,null,"OJFIR/CRFIR"]
[null,null,null,null,null,null,null,null,null,null,null,null,null,null,null,null,null,null,null,null,null,null,null,null,null,null,null,null,null,null,null,null,null,null,null,null,null,null,null,null,null,null,"Ştampila CRFIR"]
[null,null,null,null,null,null,"Număr "]
[null,null,null,null,null,null,"înregistrare"]
[]
[]
[]
[]
[null,null,null,null,null,null,"Data Înregistrării"]
[null,null,null,null,null,null,"Numele şi prenumele persoanei care înregistrează"]
[null,null,null,null,null,null,"Semnătura:"]
[null,null,null,null,null,null,"Data primirii cererii de finanţare la contractare:"]
[null,null,null,null,null,null,"Se completează de către solicitant"]
[null,null,null,null,null,null,"A PREZENTARE GENERALĂ"]
[]
[null,null,null,null,null,null,null,"A1 Măsura:",null,null,null,null,null,null,null,null,"Sub-măsura 19.2"]
[null,null,null,null,null,null,null,null,null,null,null,null,null,null,null,null,"Măsura M4/2A – Sprijinirea formelor asociative din sectoarele agricole prioritare din teritoriul GAL „Câmpia Burnazului”"]
[]
[null,null,null,null,null,null,null,"A2 Denumire solicitant:"]
[]
[null,null,null,null,null,null,null,"A3 Titlu proiect:"]
[]
[]
[]
[]
[null,null,null,null,null,null,null,"A4 Descrierea succintă a proiectului:"]
[]
[]
[]
[]
[]
[]
[]
[]
[]
[]
[]
[null,null,null,null,null,null,null,null,"A5 Amplasarea proiectului:"]
[]
[null,null,null,null,null,null,"Regiunea de dezvoltare:",null,null,null,null,null,null,null,null,null,null,null,null,null,null,null,null,null,null,null,null,null,null,null,null,null,null,"Judeţ:"]
[]
[null,null,null,null,null,null,null,"Obiectivele investiţiei",null,null,null,null,null,null,null,null,null,null,null,null,null,"Judeţ",null,null,null,null,null,null,null,null,null,null,null,"Comună/Oraş",null,null,null,null,null,null,null,null,null,null,null,"Sat/Sector",null,null,null,null,null,null,null,null,null,null,"Sat/Sector"]
[]
[]
[]
[]
[]
[]
[]
[]
[]
[]
[]
[]
[]
[]
[]
[]
[]
[]
[]
[]
[]
[]
[]
[]
[]
[]
[]
[]
[]
[]
[]
[]
[]
[]
[]
[]
[]
[]
[]
[]
[null,null,null,null,null,null,null,"A6 Date despre tipul de proiect şi beneficiar:",null,null,null,null,null,null,null,null,null,null,null,null,null,null,null,null,null,null,null,null,null,null,null,null,null,null,null,null,null,null,null,null,null,null,null,null,null,null,"A 6.5 Sectoare vizate prin proiect"]
[]
[null,null,null,null,null,null,null,"A 6.1",null,null,null,null,"Proiect cu construcţii-montaj",null,null,null,null,null,null,null,null,null,null,null,null,null,null,null,"A 6.3",null,null,null,null,"Beneficiar privat",null,null,null,null,null,null,null,null,null,null,null,null,null,null,null,null,null,"animal"]
[null,null,null,null,null,null,null,null,null,null,null,null,"Proiect fără construcţii-montaj",null,null,null,null,null,null,null,null,null,null,null,null,null,null,null,null,null,null,null,null,null,null,null,null,null,null,null,null,null,null,null,null,null,null,null,null,null,null,"vegetal"]
[]
[null,null,null,null,null,null,null,"A 6.2",null,null,null,null,"Modernizare şi/sau Extindere",null,null,null,null,null,null,null,null,null,null,null,null,null,null,null,"A 6.4",null,null,"Prescorare"]
[null,null,null,null,null,null,null,null,null,null,null,null,"Investiţie nouă"]
[]
[]
[]
[null,null,null,null,null,null,null,null,null,null,null,null,null,null,null,null,null,null,null,"Proiect tehnic",null,null,null,null,null,null,null,null,null,"Acord de mediu"]
[]
[null,null,null,null,null,null,null,"Denumire consultant:"]
[null,null,null,null,null,null,null,null,null,null,null,null,null,null,null,null,null,null,null,null,null,null,null,null,null,null,null,null,null,null,null,null,null,null,null,null,"CUI"]
[]
[null,null,null,null,null,null,null,null,null,null,null,null,null,null,null,null,null,null,null,null,null,null,null,null,null,null,null,null,null,null,null,null,null,null,null,null,"Nr. Înreg. ONRC"]
[]
[null,null,null,null,null,null,null,"Denumire proiectant:"]
[null,null,null,null,null,null,null,null,null,null,null,null,null,null,null,null,null,null,null,null,null,null,null,null,null,null,null,null,null,null,null,null,null,null,null,null,"CUI"]
[]
[null,null,null,null,null,null,null,null,null,null,null,null,null,null,null,null,null,null,null,null,null,null,null,null,null,null,null,null,null,null,null,null,null,null,null,null,"Nr. Înreg. ONRC"]
[]
[null,null,null,null,null,null,null,"Detaliere criterii de selecţie îndeplinite"]
[]
[]
[]
[]
[]
[]
[]
[]
[]
[]
[null,null,null,null,null,null,"B INFORMAŢII PRIVIND SOLICITANTUL"]
[null,null,null,null,null,null,"B1 Descrierea solicitantului"]
[null,null,null,null,null,null,"B1.1 Informaţii privind solicitantul"]
[null,null,null,null,null,null,null,"Data înființării",null,null,null,null,null,null,null,null,null,null,null,null,null,null,null,null,null,"Cod Unic de Înregistrare și/sau Codul de",null,null,null,null,null,null,null,null,null,null,null,null,null,null,null,null,null,null,null,null,null,null,null,"Statut juridic al solicitantului"]
[null,null,null,null,null,null,null,null,null,null,null,null,null,null,null,null,null,null,null,null,null,null,null,null,null,"Înregistrare Fiscală"]
[]
[]
[null,null,null,null,null,null,null,"Număr de înregistrare în registrul comerțului / Registrul asociaţiilor şi fundaţiilor"]
[]
[null,null,null,null,null,null,null,"Codul CAEN al activităţii/activităţilor finanţate prin proiect:"]
[]
[]
[]
[null,null,null,null,null,null,null,"Codul unic de înregistrare APIA",null,null,null,null,null,null,null,null,null,null,null,null,null,null,null,null,null,null,null,null,null,null,null,null,null,null,null,null,null,null,null,null,null,null,"Anul atribuirii codului"]
[]
[]
[null,null,null,null,null,null,null,"B1.2 Sediul social / Domiciliul stabil al solicitantului / Reşedinţa din România"]
[null,null,null,null,null,null,null,"Judeţ",null,null,null,null,null,null,null,null,null,null,null,null,null,null,null,null,null,null,null,null,"Localitate",null,null,null,null,null,null,null,null,null,null,null,null,null,null,null,null,null,null,null,"Sat"]
[]
[null,null,null,null,null,null,null,"Cod Poştal",null,null,null,null,null,null,null,null,null,null,null,null,null,"Strada",null,null,null,null,null,null,null,null,null,null,null,null,null,null,null,null,null,null,null,null,null,null,null,null,null,null,null,null,null,null,null,null,null,null,null,null,"Nr."]
[]
[null,null,null,null,null,null,null,"Bloc",null,null,null,null,null,null,null,null,null,null,null,null,null,null,null,"Scara",null,null,null,null,null,null,null,null,null,null,null,null,null,null,"Et. ",null,null,null,null,null,null,"Ap.",null,null,null,null,null,null,"Sector"]
[]
[null,null,null,null,null,null,null,"Telefon fix/ mobil",null,null,null,null,null,null,null,null,null,null,null,null,null,null,null,null,null,null,"Fax",null,null,null,null,null,null,null,null,null,null,null,null,null,null,null,"E-mail"]
[]
[]
[null,null,null,null,null,null,null,"B1.3 Numele şi prenumele reprezentantului legal şi funcţia acestuia în cadrul organizaţiei, precum şi"]
[null,null,null,null,null,null,null,"specimenul de semnatură:"]
[]
[null,null,null,null,null,null,null,null,null,"Numele",null,null,null,null,null,null,null,null,null,null,"Prenumele",null,null,null,null,null,null,null,null,null,null,"Funcţia",null,null,null,null,null,null,null,null,null,null,"Reprezentant legal",null,null,null,null,null,null,null,null,null,null,"Specimen de"]
[null,null,null,null,null,null,null,null,null,null,null,null,null,null,null,null,null,null,null,null,null,null,null,null,null,null,null,null,null,null,null,null,null,null,null,null,null,null,null,null,null,null,null,null,null,null,null,null,null,null,null,null,null,"semnătură"]
[]
[null,null,null,null,null,null,null,null,null,null,null,null,null,null,null,null,null,null,null,null,null,null,null,null,null,null,null,null,null,null,null,null,null,null,null,null,null,null,null,null,null,null,"LEGAL"]
[]
[]
[null,null,null,null,null,null,"B2 Informaţii referitoare la reprezentantul legal de proiect"]
[null,null,null,null,null,null,null,"B2.1 Date de identitate ale reprezentantului legal de proiect"]
[]
[null,null,null,null,null,null,null,null,null,"Data naşterii",null,null,null,null,null,null,null,null,null,null,null,null,null,null,null,null,null,null,null,null,"Cod numeric personal"]
[]
[]
[]
[]
[null,null,null,null,null,null,null,null,null,null,"Act de identitate",null,null,null,null,null,null,null,null,null,null,null,null,null,"Seria",null,null,"Nr.",null,null,null,null,null,null,"Eliberat la data de",null,null,null,null,null,null,null,null,"de:",null,null,null,null,null,null,null,null,null,null,null,null,null,"Valabil până la:"]
[null,null,null,null,null,null,null,null,null,null,"B.I.",null,null,"C.I.",null,null,"Paşaport"]
[]
[]
[]
[null,null,null,null,null,null,null,null,null,"Studii şi coordonate:"]
[]
[]
[]
[]
[]
[]
[]
[]
[]
[null,null,null,null,null,null,null,"B2.2 Domiciliul stabil al reprezentantului legal de proiect"]
[null,null,null,null,null,null,null,"Judeţ",null,null,null,null,null,null,null,null,null,null,null,null,null,null,null,null,null,null,null,null,"Localitate",null,null,null,null,null,null,null,null,null,null,null,null,null,null,null,null,null,null,null,"Sat"]
[]
[null,null,null,null,null,null,null,"Cod Poştal",null,null,null,null,null,null,null,null,null,null,"Strada",null,null,null,null,null,null,null,null,null,null,null,null,null,null,null,null,null,"Nr.",null,null,null,null,null,"Bloc",null,null,null,null,null,null,null,null,null,null,null,"Scara",null,null,null,null,null,"Ap."]
[]
[null,null,null,null,null,null,null,"Telefon fix",null,null,null,null,null,null,null,null,null,null,null,null,null,null,null,null,null,null,"Telefon mobil",null,null,null,null,null,null,null,null,null,null,null,null,null,null,null,null,null,"Fax"]
[]
[null,null,null,null,null,null,null,"E-mail"]
[]
[]
[]
[null,null,null,null,null,null,"REGULI DE COMPLETARE\n\nCâmpurile \"Numele şi prenumele persoanei care înregistrează. Semnătura\", se vor completa după data primirii în format letric a acesteia împreună cu documentele justificative.\nCompletaţi devizele aferente capitolelor de cheltuieli, defalcat pe cheltuieli eligibile şi neeligibile prin completarea tabelelor incluse în acest document, respectiv:\n1. Tabelul \"Deviz financiar_cap3\" cuprinde cheltuielile aferente capitolului 3 - Cheltuieli pentru proiectare şi asistenţă tehnică, cheltuieli care trebuie să se regăsească atât în Bugetul Indicativ (Tabel \"Buget indicativ\" din cererea de finanţare, partea specifică) cât şi în Devizul General din Studiul de Fezabilitate.\n2. Tabelul \"Devize obiect\" cuprinde formatul cadru al devizului pe obiect, iar solicitantul va completa atâtea devize pe obiect câte obiecte de investiţie sunt incluse în proiect. Suma tuturor devizelor pe obiect trebuie să se regăseasca atat in Bugetul Indicativ (tabelul \"Buget indicativ\" din cererea de finanţare, partea specifică) cât şi în Devizul General din Studiul de Fezabilitate În cazul în care proiectul de investiţii presupune mai multe devize pe obiect, solicitantul va crea în documentul curent câte o copie a tabelului \"Devize obiect\" pentru fiecare deviz pe obiect şi va detalia cheltuielile eligibile şi neeligibile pe fiecare în parte.\n3. Tabelul \"cap.2+cap.5\" cuprinde cheltuieli aferente capitolelor 2 şi 5 şi trebuie să se regăsească atât în Bugetul Indicativ (tabel \"Buget indicativ\" din cererea de finanţare, partea specifică) cât şi Devizul General din Studiul de Fezabilitate.\n4. Tabelul \"Deviz culturi\" cuprinde devizele aferente tuturor tipurilor de culturi, plantaţii, vizate de proiect.\n5. Câmpul \"Prescorare\" de la secţiunea A6 este obligatoriu.\n6. În cazul art 28 (Agromediu), intensitatea suplimentară se acordă după cum urmează:\n1 - Pentru investiţiile adresate terenurilor arabile cu condiția ca suprafața aflată sub angajament sa reprezinte mai mult de 50% din terenul arabil aparținand exploataţiei agricole.\nIntensitatea mărită se acordă pentru utilajele si echipamentele specifice lucrărilor de arat, grăpat, discuit, semănat/însămânţat, tocat resturi vegetale, încorporat resturi vegetale în sol, numai în cazul în care peste 50% din terenul arabil deținut în cadrul fermei se află sub un angajament în derulare in cazul următoarelor pachete promovate prin Măsura 10 - Agromediu și climă (AGM): Pachetul 4 - culturi verzi, Pachetul 7 - terenuri arabile importante ca zone de hrănire pentru gâsca cu gât roșu (Branta ruficollis), suprafețe pe care se realizează lucrări de tehnologie a culturilor; Intensitatea mărită se acordă pentru facilităţi necesare depozitării şi compostării gunoiului de grajd numai în cazul în care peste 50% din terenul arabil deținut în cadrul fermei se află sub un angajament în derulare in cazul Pachetului 4 - culturi verzi, Pachetului 5 - adaptarea la efectele schimbărilor climatice şi Pachetului 7 - terenuri arabile importante ca zone de hrănire pentru gâsca cu gât roșu (Branta ruficollis).\n2 -Pentru investiţiile adresate pajiștilor cu condiția ca suprafața aflată sub angajament să reprezinte mai mult de 50% din suprafața de pajiști aparținând fermei.\nIntensitatea suplimentară se acordă doar pentru contravaloarea următoarelor:\n- utilajelor folosite pentru cosit, strâns, balotat şi transportat fânul și a altor asemenea investitii utilizate in cazul pajistilor care fac obiectul sprijinului acordat prin Pachetul 1 - pajiști cu înaltă valoare naturală (HNV) fără Pachetul 2 - practici agricole tradiţionale,\n- utilajelor uşoare (utilaje cu lama scurtă, greutate redusă și viteză mică de deplasare) folosite pentru cosit, strâns, balotat şi transportat fânul și a altor asemenea investitii utilizate in cazul pajistilor care fac obiectul sprijinului acordat prin varianta 2.2 - utilaje ușoare pe pajiști permanente utilizate ca fânețe din pachetul 2 - practici agricole tradiţionale, varianta 3.1.2 -utilaje ușoare pe pajiști importante pentru Crex crex din sub-pachetul 3.1 - Crex crex, varianta 3.2.2 -utilaje ușoare pe pajiști importante pentru Lanius minor și Falco vespertinus din sub-pachetul 3.2 - Lanius minor și Falco vespertinus, varianta 6.2 - utilaje ușoare pe pajiști importante pentru fluturi (Maculinea sp.) din pachetul 6 - pajiști importante pentru fluturi (Maculinea sp.);\n- platformele pentru depozitarea şi/sau compostarea gunoiul de grajd şi utilajele/echipamentele de transport şi de\nîmprăştiere a gunoiului de grajd - în cazul pachetelor 1, 3.1, 3.2 şi 6;\n3 -Pentru investitiile ce deservesc animalele care fac obiectul angajamentelor pachetului nr. 8 (rase locale în pericol de abandon)\n- contravaloarea investiţiei în cauză se obţine înmulțind procentul pe care îl detine nucleul de rase locale în pericol de\nabandon în total efective de animale, cu total valoare eligibilă a proiectului. Intensitatea mărită se acordă doar pentru această contravaloare.\nEx. dacă rasele în pericol de abandon reprezintă 10% din total efective (exprimate in UVM), se aplica acest procent la valoarea totala eligibila, si se acorda 20 puncte procentuale suplimentare la intensitate sprijin doar pentru această cota de 10% din valoarea totala eligibilă.\n\n8. Punctul A6.2 se va completa ţinând cont de următoarele:\nInvestiţie nouă - cuprinde lucrările de construcţii-montaj, utilaje, instalaţii, care se realizează pe amplasamente noi, lucrarile pentru construcţiile existente cărora li se schimbă destinaţia nefuncționale/dezafectate\nModernizarea - cuprinde lucrările de construcţii şi instalaţii privind retehnologizarea, reutilarea și refacerea sau extinderea construcţiilor existente aferente unităţilor în funcţiune şi cu autorizaţii de funcţionare valabile, fără modificarea destinaţiei iniţiale, inclusiv utilarea/reutilarea cu mașini, utilaje și echipamente necesare unei exploatații agricole pentru producția agricolă primară și, după caz, pentru procesare la nivel de fermă.\n"]
[]
[]
[]
[]
[]
[]
[]
[]
[]
[]
[]
[]
[]
[]
[]
[]
[]
[]
[]
[]
[]
[]
[]
[]
[]
[]
[]
[]
[]
[]
[]
[]
[]
[]
[]
[]
[]
[]
[]
[]
[]
[]
[]
[]
[]
[]
[null,null,null,null,null,null,"9. Trebuie bifate şi anexate toate documentele de pe coloana “DEPUNERE-Obligatoriu pentru toate proiectele” din secțiunea E - Lista documentelor anexate."]
[]
[]
[null,null,null,null,null,null,null,"Buget Indicativ HG 907 (Euro) pentru INVESTIŢII în activitatea de producţie AGRICOLĂ "]
[null,null,null,null,null,null,"MINISTERUL AGRICULTURII ŞI DEZVOLTĂRII RURALE"]
[null,null,null,null,null,null,"AGENŢIA PENTRU FINANŢAREA INVESTIŢIILOR RURALE"]
[]
[]
[null,null,null,null,null,null,null,"Procentul aferent intensităţii",null,null,null,null,null,null,null,null,null,null,null,null,null,null,null,null,null,"Curs EURO",null,null,null,null,null,null,null,null,null,null,null,null,null,null,null,"Data întocmirii Studiului de Fezabilitate"]
[]
[null,null,null,null,null,null,"Submăsura"]
[null,null,null,null,null,null,"Denumirea capitolelor de cheltuieli",null,null,null,null,null,null,null,null,null,null,null,null,null,null,null,null,null,null,null,null,null,null,null,null,null,null,null,null,null,null,null,null,null,null,"Cheltuieli eligibile",null,null,null,null,null,null,null,null,"Cheltuieli neeligibile",null,null,null,null,null,null,null,"Total"]
[null,null,null,null,null,null,null,null,null,null,null,null,null,null,null,null,null,null,null,null,null,null,null,null,null,null,null,null,null,null,null,null,null,null,null,null,null,null,null,null,null,"EURO",null,null,null,null,null,null,null,null,"EURO",null,null,null,null,null,null,null,"EURO"]
[null,null,null,null,null,null,1,null,null,null,null,null,null,null,null,null,null,null,null,null,null,null,null,null,null,null,null,null,null,null,null,null,null,null,null,null,null,null,null,null,null,2,null,null,null,null,null,null,null,null,3,null,null,null,null,null,null,null,4]
[null,null,null,null,null,null,"Capitolul 1 Cheltuieli pentru obtinerea şi amenajarea terenului - total, din care:",null,null,null,null,null,null,null,null,null,null,null,null,null,null,null,null,null,null,null,null,null,null,null,null,null,null,null,null,null,null,null,null,null,null,{"$f":"SUM(AP258:AX260)","v":0},null,null,null,null,null,null,null,null,{"$f":"SUM(AY257:BF260)","v":0},null,null,null,null,null,null,null,{"$f":"SUM(AP256:BF256)","v":0}]
[null,null,null,null,null,null,"1.1 Obţinerea terenului",null,null,null,null,null,null,null,null,null,null,null,null,null,null,null,null,null,null,null,null,null,null,null,null,null,null,null,null,null,null,null,null,null,null,null,null,null,null,null,null,null,null,null,null,null,null,null,null,null,null,null,{"$f":"SUM(AP257:BF257)","v":0}]
[null,null,null,null,null,null,"1.2 Amenajarea terenului",null,null,null,null,null,null,null,null,null,null,null,null,null,null,null,null,null,null,null,null,null,null,null,null,null,null,null,null,null,null,null,null,null,null,null,null,null,null,null,null,null,null,null,null,null,null,null,null,null,null,null,0]
[null,null,null,null,null,null,"1.3 Amenajari pentru protecţia mediului şi aducerea la starea iniţială",null,null,null,null,null,null,null,null,null,null,null,null,null,null,null,null,null,null,null,null,null,null,null,null,null,null,null,null,null,null,null,null,null,null,null,null,null,null,null,null,null,null,null,null,null,null,null,null,null,null,null,0]
[null,null,null,null,null,null,"1.4 Cheltuieli pentru relocarea/protecţia utilităţilor",null,null,null,null,null,null,null,null,null,null,null,null,null,null,null,null,null,null,null,null,null,null,null,null,null,null,null,null,null,null,null,null,null,null,null,null,null,null,null,null,null,null,null,null,null,null,null,null,null,null,null,0]
[null,null,null,null,null,null,"Capitolul 2 Cheltuieli pentru asigurarea utilităţilor necesare obiectivului de investiţii",null,null,null,null,null,null,null,null,null,null,null,null,null,null,null,null,null,null,null,null,null,null,null,null,null,null,null,null,null,null,null,null,null,null,null,null,null,null,null,null,null,null,null,null,null,null,null,null,null,null,null,0]
[null,null,null,null,null,null,"Capitolul 3 Cheltuieli pentru proiectare şi asistenţă tehnică - total, din care:",null,null,null,null,null,null,null,null,null,null,null,null,null,null,null,null,null,null,null,null,null,null,null,null,null,null,null,null,null,null,null,null,null,null,{"$f":"AP263+AP267+AP268+AP269+AP270+AP278+AP281","v":0},null,null,null,null,null,null,null,null,{"$f":"AY263+AY267+AY268+AY269+AY270+AY277+AY278+AY281","v":0},null,null,null,null,null,null,null,0]
[null,null,null,null,null,null,"3.1 Studii",null,null,null,null,null,null,null,null,null,null,null,null,null,null,null,null,null,null,null,null,null,null,null,null,null,null,null,null,null,null,null,null,null,null,{"$f":"SUM(AP264:AX266)","v":0},null,null,null,null,null,null,null,null,{"$f":"SUM(AY264:BF266)","v":0},null,null,null,null,null,null,null,0]
[null,null,null,null,null,null,"       3.1.1 Studii de teren",null,null,null,null,null,null,null,null,null,null,null,null,null,null,null,null,null,null,null,null,null,null,null,null,null,null,null,null,null,null,null,null,null,null,null,null,null,null,null,null,null,null,null,null,null,null,null,null,null,null,null,0]
[null,null,null,null,null,null,"       3.1.2 Raport privind impactul asupra mediului",null,null,null,null,null,null,null,null,null,null,null,null,null,null,null,null,null,null,null,null,null,null,null,null,null,null,null,null,null,null,null,null,null,null,null,null,null,null,null,null,null,null,null,null,null,null,null,null,null,null,null,0]
[null,null,null,null,null,null,"       3.1.3 Alte studii specifice",null,null,null,null,null,null,null,null,null,null,null,null,null,null,null,null,null,null,null,null,null,null,null,null,null,null,null,null,null,null,null,null,null,null,null,null,null,null,null,null,null,null,null,null,null,null,null,null,null,null,null,0]
[null,null,null,null,null,null,"3.2 Documentaţii-suport şi cheltuieli pentru obţinerea de avize, acorduri şi autorizaţii",null,null,null,null,null,null,null,null,null,null,null,null,null,null,null,null,null,null,null,null,null,null,null,null,null,null,null,null,null,null,null,null,null,null,null,null,null,null,null,null,null,null,null,null,null,null,null,null,null,null,null,0]
[null,null,null,null,null,null,"3.3 Expertizare tehnică",null,null,null,null,null,null,null,null,null,null,null,null,null,null,null,null,null,null,null,null,null,null,null,null,null,null,null,null,null,null,null,null,null,null,null,null,null,null,null,null,null,null,null,null,null,null,null,null,null,null,null,0]
[null,null,null,null,null,null,"3.4 Certificarea performanţei energetice şi auditul energetic al clădirilor",null,null,null,null,null,null,null,null,null,null,null,null,null,null,null,null,null,null,null,null,null,null,null,null,null,null,null,null,null,null,null,null,null,null,null,null,null,null,null,null,null,null,null,null,null,null,null,null,null,null,null,0]
[null,null,null,null,null,null,"3.5 Proiectare",null,null,null,null,null,null,null,null,null,null,null,null,null,null,null,null,null,null,null,null,null,null,null,null,null,null,null,null,null,null,null,null,null,null,{"$f":"SUM(AP271:AX276)","v":0},null,null,null,null,null,null,null,null,{"$f":"SUM(AY271:BF276)","v":0},null,null,null,null,null,null,null,0]
[null,null,null,null,null,null,"      3.5.1 Temă de proiectare",null,null,null,null,null,null,null,null,null,null,null,null,null,null,null,null,null,null,null,null,null,null,null,null,null,null,null,null,null,null,null,null,null,null,null,null,null,null,null,null,null,null,null,null,null,null,null,null,null,null,null,0]
[null,null,null,null,null,null,"      3.5.2 Studiu de prefezabilitate",null,null,null,null,null,null,null,null,null,null,null,null,null,null,null,null,null,null,null,null,null,null,null,null,null,null,null,null,null,null,null,null,null,null,null,null,null,null,null,null,null,null,null,null,null,null,null,null,null,null,null,0]
[null,null,null,null,null,null,"      3.5.3. Studiu de fezabilitate/documentaţie de avizare a lucrărilor de intervenţii\n                şi deviz general",null,null,null,null,null,null,null,null,null,null,null,null,null,null,null,null,null,null,null,null,null,null,null,null,null,null,null,null,null,null,null,null,null,null,null,null,null,null,null,null,null,null,null,null,null,null,null,null,null,null,null,0]
[null,null,null,null,null,null,"      3.5.4. Documentaţiile tehnice necesare în vederea obţinerii avizelor/\n                acordurilor/autorizaţiilor",null,null,null,null,null,null,null,null,null,null,null,null,null,null,null,null,null,null,null,null,null,null,null,null,null,null,null,null,null,null,null,null,null,null,null,null,null,null,null,null,null,null,null,null,null,null,null,null,null,null,null,0]
[null,null,null,null,null,null,"      3.5.5. Verificarea tehnică de calitate a proiectului tehnic şi a detaliilor de execuţie",null,null,null,null,null,null,null,null,null,null,null,null,null,null,null,null,null,null,null,null,null,null,null,null,null,null,null,null,null,null,null,null,null,null,null,null,null,null,null,null,null,null,null,null,null,null,null,null,null,null,null,0]
[null,null,null,null,null,null,"      3.5.6. Proiect tehnic şi detalii de execuţie",null,null,null,null,null,null,null,null,null,null,null,null,null,null,null,null,null,null,null,null,null,null,null,null,null,null,null,null,null,null,null,null,null,null,null,null,null,null,null,null,null,null,null,null,null,null,null,null,null,null,null,0]
[null,null,null,null,null,null,"3.6 Organizarea procedurilor de achiziţie",null,null,null,null,null,null,null,null,null,null,null,null,null,null,null,null,null,null,null,null,null,null,null,null,null,null,null,null,null,null,null,null,null,null,null,null,null,null,null,null,null,null,null,null,null,null,null,null,null,null,null,0]
[null,null,null,null,null,null,"3.7 Consultanţă",null,null,null,null,null,null,null,null,null,null,null,null,null,null,null,null,null,null,null,null,null,null,null,null,null,null,null,null,null,null,null,null,null,null,{"$f":"AP279","v":0},null,null,null,null,null,null,null,null,{"$f":"AY279+AY280","v":0},null,null,null,null,null,null,null,0]
[null,null,null,null,null,null,"      3.7.1 Managementul de proiect pentru obiectivul de investiţii",null,null,null,null,null,null,null,null,null,null,null,null,null,null,null,null,null,null,null,null,null,null,null,null,null,null,null,null,null,null,null,null,null,null,null,null,null,null,null,null,null,null,null,null,null,null,null,null,null,null,null,0]
[null,null,null,null,null,null,"     3.7.2 Auditul financiar",null,null,null,null,null,null,null,null,null,null,null,null,null,null,null,null,null,null,null,null,null,null,null,null,null,null,null,null,null,null,null,null,null,null,null,null,null,null,null,null,null,null,null,null,null,null,null,null,null,null,null,0]
[null,null,null,null,null,null,"3.8 Asistenţă Tehnică",null,null,null,null,null,null,null,null,null,null,null,null,null,null,null,null,null,null,null,null,null,null,null,null,null,null,null,null,null,null,null,null,null,null,{"$f":"AP282+AY285","v":0},null,null,null,null,null,null,null,null,{"$f":"AY282+AY285","v":0},null,null,null,null,null,null,null,0]
[null,null,null,null,null,null,"      3.8.1 Asistenţă Tehnică din partea proiectantului",null,null,null,null,null,null,null,null,null,null,null,null,null,null,null,null,null,null,null,null,null,null,null,null,null,null,null,null,null,null,null,null,null,null,{"$f":"AP283+AP284","v":0},null,null,null,null,null,null,null,null,{"$f":"AY283+AY284","v":0},null,null,null,null,null,null,null,0]
[null,null,null,null,null,null,"           3.8.1.1 pe perioada de execuţie a lucrărilor",null,null,null,null,null,null,null,null,null,null,null,null,null,null,null,null,null,null,null,null,null,null,null,null,null,null,null,null,null,null,null,null,null,null,null,null,null,null,null,null,null,null,null,null,null,null,null,null,null,null,null,0]
[null,null,null,null,null,null,"           3.8.1.2 pentru participarea proiectantului la fazele incluse în programul de control al\n                       lucrărilor de execuţie, avizat de către Inspectoratul de Stat în Construcţii",null,null,null,null,null,null,null,null,null,null,null,null,null,null,null,null,null,null,null,null,null,null,null,null,null,null,null,null,null,null,null,null,null,null,null,null,null,null,null,null,null,null,null,null,null,null,null,null,null,null,null,0]
[null,null,null,null,null,null,"      3.8.2 Dirigenţie de şantier",null,null,null,null,null,null,null,null,null,null,null,null,null,null,null,null,null,null,null,null,null,null,null,null,null,null,null,null,null,null,null,null,null,null,null,null,null,null,null,null,null,null,null,null,null,null,null,null,null,null,null,0]
[null,null,null,null,null,null,"Verificare încadrare cheltuieli capitolul 3",null,null,null,null,null,null,null,null,null,null,null,null,null,null,null,null,null,null,null,null,null,null,null,null,null,null,null,null,null,null,null,{"$f":"AP256+AP261+AP287","v":0},{"$f":"IF(AM286=0,0,AO286)","v":0},null,"verificarea se face in Totalizator"]
[null,null,null,null,null,null,"Capitolul 4 Cheltuieli pentru investiţia de bază - total, din care:",null,null,null,null,null,null,null,null,null,null,null,null,null,null,null,null,null,null,null,null,null,null,null,null,null,null,null,null,null,null,null,null,null,null,{"$f":"AP288+AP295","v":0},null,null,null,null,null,null,null,null,{"$f":"AY288+AY295","v":0},null,null,null,null,null,null,null,{"$f":"SUM(AP287:BF287)","v":0}]
[null,null,null,null,null,null,"A - Constructii şi lucrări de intervenţii - total, din care:",null,null,null,null,null,null,null,null,null,null,null,null,null,null,null,null,null,null,null,null,null,null,null,null,null,null,null,null,null,null,null,null,null,null,{"$f":"SUM(AP289:AX294)","v":0},null,null,null,null,null,null,null,null,{"$f":"SUM(AY289:BF294)","v":0},null,null,null,null,null,null,null,0]
[null,null,null,null,null,null,"4.1 Construcţii şi instalaţii",null,null,null,null,null,null,null,null,null,null,null,null,null,null,null,null,null,null,null,null,null,null,null,null,null,null,null,null,null,null,null,null,null,null,null,null,null,null,null,null,null,null,null,null,null,null,null,null,null,null,null,0]
[null,null,null,null,null,null,"4.2 Montaj utilaje, echipamente tehnologice şi funcţionale",null,null,null,null,null,null,null,null,null,null,null,null,null,null,null,null,null,null,null,null,null,null,null,null,null,null,null,null,null,null,null,null,null,null,null,null,null,null,null,null,null,null,null,null,null,null,null,null,null,null,null,0]
[null,null,null,null,null,null,"4.3 Utilaje, echipamente tehnologice şi funcţionale care necesită montaj",null,null,null,null,null,null,null,null,null,null,null,null,null,null,null,null,null,null,null,null,null,null,null,null,null,null,null,null,null,null,null,null,null,null,null,null,null,null,null,null,null,null,null,null,null,null,null,null,null,null,null,0]
[null,null,null,null,null,null,"4.4 Utilaje, echipamente tehnologice şi funcţionale care nu necesită montaj şi echipamente",null,null,null,null,null,null,null,null,null,null,null,null,null,null,null,null,null,null,null,null,null,null,null,null,null,null,null,null,null,null,null,null,null,null,null,null,null,null,null,null,null,null,null,null,null,null,null,null,null,null,null,0]
[null,null,null,null,null,null,"4.5 Dotări",null,null,null,null,null,null,null,null,null,null,null,null,null,null,null,null,null,null,null,null,null,null,null,null,null,null,null,null,null,null,null,null,null,null,null,null,null,null,null,null,null,null,null,null,null,null,null,null,null,null,null,0]
[null,null,null,null,null,null,"4.6 Active necorporale",null,null,null,null,null,null,null,null,null,null,null,null,null,null,null,null,null,null,null,null,null,null,null,null,null,null,null,null,null,null,null,null,null,null,null,null,null,null,null,null,null,null,null,null,null,null,null,null,null,null,null,0]
[null,null,null,null,null,null,"B - Cheltuieli pentru investitii în culturi/plantaţii",null,null,null,null,null,null,null,null,null,null,null,null,null,null,null,null,null,null,null,null,null,null,null,null,null,null,null,null,null,null,null,null,null,null,{"$f":"SUM(AP296:AX300)","v":0},null,null,null,null,null,null,null,null,{"$f":"SUM(AY296:BF300)","v":0},null,null,null,null,null,null,null,0]
[null,null,null,null,null,null,"Subcapitol 1 - Lucrări de pregătire a terenului",null,null,null,null,null,null,null,null,null,null,null,null,null,null,null,null,null,null,null,null,null,null,null,null,null,null,null,null,null,null,null,null,null,null,null,null,null,null,null,null,null,null,null,null,null,null,null,null,null,null,null,0]
[null,null,null,null,null,null,"Subcapitol 2 - Infiinţarea plantaţiei",null,null,null,null,null,null,null,null,null,null,null,null,null,null,null,null,null,null,null,null,null,null,null,null,null,null,null,null,null,null,null,null,null,null,null,null,null,null,null,null,null,null,null,null,null,null,null,null,null,null,null,0]
[null,null,null,null,null,null,"Subcapitol 3 - Intreţinere plantaţie în anul 1",null,null,null,null,null,null,null,null,null,null,null,null,null,null,null,null,null,null,null,null,null,null,null,null,null,null,null,null,null,null,null,null,null,null,null,null,null,null,null,null,null,null,null,null,null,null,null,null,null,null,null,0]
[null,null,null,null,null,null,"Subcapitol 4 - Intreţinere plantaţie în anul 2",null,null,null,null,null,null,null,null,null,null,null,null,null,null,null,null,null,null,null,null,null,null,null,null,null,null,null,null,null,null,null,null,null,null,null,null,null,null,null,null,null,null,null,null,null,null,null,null,null,null,null,0]
[null,null,null,null,null,null,"Subcapitol 5 - Instalat sistem susţinere şi împrejmuire",null,null,null,null,null,null,null,null,null,null,null,null,null,null,null,null,null,null,null,null,null,null,null,null,null,null,null,null,null,null,null,null,null,null,null,null,null,null,null,null,null,null,null,null,null,null,null,null,null,null,null,0]
[null,null,null,null,null,null,"Capitolul 5 Alte cheltuieli - total, din care:",null,null,null,null,null,null,null,null,null,null,null,null,null,null,null,null,null,null,null,null,null,null,null,null,null,null,null,null,null,null,null,null,null,null,{"$f":"AP302+AP305+AP311+AP312","v":0},null,null,null,null,null,null,null,null,{"$f":"AY302+AY305+AY311+AY312","v":0},null,null,null,null,null,null,null,0]
[null,null,null,null,null,null,"5.1 Organizare de şantier",null,null,null,null,null,null,null,null,null,null,null,null,null,null,null,null,null,null,null,null,null,null,null,null,null,null,null,null,null,null,null,null,null,null,{"$f":"SUM(AP303:AX304)","v":0},null,null,null,null,null,null,null,null,{"$f":"SUM(AY303:BF304)","v":0},null,null,null,null,null,null,null,0]
[null,null,null,null,null,null,"      5.1.1 lucrări de construcţii şi instalaţii aferente organizării de şantier",null,null,null,null,null,null,null,null,null,null,null,null,null,null,null,null,null,null,null,null,null,null,null,null,null,null,null,null,null,null,null,null,null,null,null,null,null,null,null,null,null,null,null,null,null,null,null,null,null,null,null,0]
[null,null,null,null,null,null,"      5.1.2 cheltuieli conexe orgănizării şantierului",null,null,null,null,null,null,null,null,null,null,null,null,null,null,null,null,null,null,null,null,null,null,null,null,null,null,null,null,null,null,null,null,null,null,null,null,null,null,null,null,null,null,null,null,null,null,null,null,null,null,null,0]
[null,null,null,null,null,null,"5.2 Comisioane, taxe, costul creditului",null,null,null,null,null,null,null,null,null,null,null,null,null,null,null,null,null,null,null,null,null,null,null,null,null,null,null,null,null,null,null,null,null,null,{"$f":"SUM(AP306:AX310)","v":0},null,null,null,null,null,null,null,null,{"$f":"SUM(AY306:BF310)","v":0},null,null,null,null,null,null,null,0]
[null,null,null,null,null,null,"      5.2.1 Comisioanele şi dobânzile aferente creditului băncii finanţatoare",null,null,null,null,null,null,null,null,null,null,null,null,null,null,null,null,null,null,null,null,null,null,null,null,null,null,null,null,null,null,null,null,null,null,null,null,null,null,null,null,null,null,null,null,null,null,null,null,null,null,null,0]
[null,null,null,null,null,null,"      5.2.2 Cota aferentă ISC pentru controlul calităţii lucrărilor de construcţii",null,null,null,null,null,null,null,null,null,null,null,null,null,null,null,null,null,null,null,null,null,null,null,null,null,null,null,null,null,null,null,null,null,null,null,null,null,null,null,null,null,null,null,null,null,null,null,null,null,null,null,0]
[null,null,null,null,null,null,"      5.2.3 Cota aferentă ISC pentru controlul statului în amenajarea teritoriului,\n               urbanism şi pentru autorizarea lucrărilor de construcţii",null,null,null,null,null,null,null,null,null,null,null,null,null,null,null,null,null,null,null,null,null,null,null,null,null,null,null,null,null,null,null,null,null,null,null,null,null,null,null,null,null,null,null,null,null,null,null,null,null,null,null,0]
[null,null,null,null,null,null,"      5.2.4 Cota aferentă Casei Sociale a Constructorilor - CSC",null,null,null,null,null,null,null,null,null,null,null,null,null,null,null,null,null,null,null,null,null,null,null,null,null,null,null,null,null,null,null,null,null,null,null,null,null,null,null,null,null,null,null,null,null,null,null,null,null,null,null,0]
[null,null,null,null,null,null,"      5.2.5 Taxe pentru acorduri, avize conforme şi autorizaţia de construire/desfiinţare",null,null,null,null,null,null,null,null,null,null,null,null,null,null,null,null,null,null,null,null,null,null,null,null,null,null,null,null,null,null,null,null,null,null,null,null,null,null,null,null,null,null,null,null,null,null,null,null,null,null,null,0]
[null,null,null,null,null,null,"5.3 Cheltuieli diverse şi neprevăzute",null,null,null,null,null,null,null,null,null,null,null,null,null,null,null,null,null,null,null,null,null,null,null,null,null,null,null,null,null,null,null,null,null,null,null,null,null,null,null,null,null,null,null,null,null,null,null,null,null,null,null,0]
[null,null,null,null,null,null,"5.4 Cheltuieli pentru informare şi publicitate",null,null,null,null,null,null,null,null,null,null,null,null,null,null,null,null,null,null,null,null,null,null,null,null,null,null,null,null,null,null,null,null,null,null,null,null,null,null,null,null,null,null,null,null,null,null,null,null,null,null,null,0]
[null,null,null,null,null,null,"Procent cheltuieli diverse şi neprevăzute"]
[null,null,null,null,null,null,"Capitolul 6 Cheltuieli pentru darea în exploatare - total, din care:",null,null,null,null,null,null,null,null,null,null,null,null,null,null,null,null,null,null,null,null,null,null,null,null,null,null,null,null,null,null,null,null,null,null,{"$f":"SUM(AP315:AX316)","v":0},null,null,null,null,null,null,null,null,{"$f":"SUM(AY315:BF316)","v":0},null,null,null,null,null,null,null,0]
[null,null,null,null,null,null,"6.1 Pregătirea personalului de exploatare",null,null,null,null,null,null,null,null,null,null,null,null,null,null,null,null,null,null,null,null,null,null,null,null,null,null,null,null,null,null,null,null,null,null,null,null,null,null,null,null,null,null,null,null,null,null,null,null,null,null,null,0]
[null,null,null,null,null,null,"6.2 Probe tehnologice şi teste",null,null,null,null,null,null,null,null,null,null,null,null,null,null,null,null,null,null,null,null,null,null,null,null,null,null,null,null,null,null,null,null,null,null,null,null,null,null,null,null,null,null,null,null,null,null,null,null,null,null,null,0]
[null,null,null,null,null,null,"TOTAL GENERAL",null,null,null,null,null,null,null,null,null,null,null,null,null,null,null,null,null,null,null,null,null,null,null,null,null,null,null,null,null,null,null,null,null,null,{"$f":"AP256+AP261+AP262+AP287+AP301+AP314","v":0},null,null,null,null,null,null,null,null,{"$f":"AY256+AY261+AY262+AY287+AY301+AY314","v":0},null,null,null,null,null,null,null,0]
[null,null,null,null,null,null,"Verificare actualizare",null,null,null,null,null,null,null,null,null,null,null,null,null,null,null,null,null,null,null,null,null,null,null,null,null,null,null,null,null,null,{"$f":"AP319*100/AP317","v":{"$error":"#DIV/0!"}},null,null,{"$f":"IF(AP317=0,0,AL318)","v":0},{"$f":"IF(AO318<=5,\"actualizare mai mică de 5% din valoarea eligibila\",\"actualizare mai mare de 5% din valoarea eligibila\")","v":"actualizare mai mică de 5% din valoarea eligibila"}]
[null,null,null,null,null,null,"ACTUALIZARE Cheltuieli Eligibile (max 5%)",null,null,null,null,null,null,null,null,null,null,null,null,null,null,null,null,null,null,null,null,null,null,null,null,null,null,null,null,null,null,null,null,null,null,null,null,null,null,null,null,null,null,null,null,null,null,null,null,null,null,null,{"$f":"SUM(AP319:BF319)","v":0}]
[null,null,null,null,null,null,"TOTAL GENERAL CU ACTUALIZARE",null,null,null,null,null,null,null,null,null,null,null,null,null,null,null,null,null,null,null,null,null,null,null,null,null,null,null,null,null,null,null,null,null,null,{"$f":"AP317+AP319","v":0},null,null,null,null,null,null,null,null,{"$f":"AY317","v":0},null,null,null,null,null,null,null,0]
[null,null,null,null,null,null,"Valoare TVA",null,null,null,null,null,null,null,null,null,null,null,null,null,null,null,null,null,null,null,null,null,null,null,null,null,null,null,null,null,null,null,null,null,null,null,null,null,null,null,null,null,null,null,null,null,null,null,null,null,null,null,0]
[null,null,null,null,null,null,"TOTAL GENERAL inclusiv TVA",null,null,null,null,null,null,null,null,null,null,null,null,null,null,null,null,null,null,null,null,null,null,null,null,null,null,null,null,null,null,null,null,null,null,{"$f":"BG320+BG321","v":0}]
[null,null,null,null,null,null,null,null,null,null,null,null,null,null,null,null,null,null,null,null,null,null,null,null,null,null,null,null,null,null,null,null,null,null,null,null,null,null,null,null,null,"LEI",null,null,null,null,null,null,null,null,"EURO"]
[null,null,null,null,null,null,"VALOARE TOTALĂ",null,null,null,null,null,null,null,null,null,null,null,null,null,null,null,null,null,null,null,null,null,null,null,null,null,null,null,null,null,null,null,null,null,null,{"$f":"AY324*AF250","v":0},null,null,null,null,null,null,null,null,{"$f":"AP322","v":0}]
[null,null,null,null,null,null,"VALOARE ELIGIBILĂ",null,null,null,null,null,null,null,null,null,null,null,null,null,null,null,null,null,null,null,null,null,null,null,null,null,null,null,null,null,null,null,null,null,null,{"$f":"AY325*AF250","v":0},null,null,null,null,null,null,null,null,{"$f":"AP320+AP321","v":0}]
[null,null,null,null,null,null,"VALOARE NEELIGIBILĂ",null,null,null,null,null,null,null,null,null,null,null,null,null,null,null,null,null,null,null,null,null,null,null,null,null,null,null,null,null,null,null,null,null,null,{"$f":"AY326*AF250","v":0},null,null,null,null,null,null,null,null,{"$f":"AY320+AY321","v":0}]
[]
[null,null,null,null,null,null,"Plan Financiar",null,null,null,null,null,null,null,null,null,null,null,null,null,null,null,null,null,null,null,null,null,null,null,null,null,null,null,null,null,null,null,null,null,null,"Cheltuieli eligibile EURO",null,null,null,null,null,null,null,null,"Cheltuieli neeligibile EURO",null,null,null,null,null,null,null,"Total"]
[null,null,null,null,null,null,"Ajutor public nerambursabil (contribuţie UE şi cofinanţare naţională)",null,null,null,null,null,null,null,null,null,null,null,null,null,null,null,null,null,null,null,null,null,null,null,null,null,null,null,null,null,null,null,null,null,null,null,null,null,null,null,null,null,null,null,null,null,null,null,null,null,null,null,{"$f":"SUM(AP329:BF329)","v":0}]
[null,null,null,null,null,null,"Cofinantare privata, din care:",null,null,null,null,null,null,null,null,null,null,null,null,null,null,null,null,null,null,null,null,null,null,null,null,null,null,null,null,null,null,null,null,null,null,{"$f":"SUM(AP331:AX333)","v":0},null,null,null,null,null,null,null,null,{"$f":"SUM(AY331:BF333)","v":0},null,null,null,null,null,null,null,0]
[null,null,null,null,null,null,null,null,null,null,null,null,null,null,null,null,null,null,null,null,null,"- contributia in natura",null,null,null,null,null,null,null,null,null,null,null,null,null,null,null,null,null,null,null,null,null,null,null,null,null,null,null,null,null,null,null,null,null,null,null,null,0]
[null,null,null,null,null,null,null,null,null,null,null,null,null,null,null,null,null,null,null,null,null,"- autofinanțare",null,null,null,null,null,null,null,null,null,null,null,null,null,null,null,null,null,null,null,null,null,null,null,null,null,null,null,null,null,null,null,null,null,null,null,null,0]
[null,null,null,null,null,null,null,null,null,null,null,null,null,null,null,null,null,null,null,null,null,"- împrumuturi",null,null,null,null,null,null,null,null,null,null,null,null,null,null,null,null,null,null,null,null,null,null,null,null,null,null,null,null,null,null,null,null,null,null,null,null,0]
[null,null,null,null,null,null,"TOTAL PROIECT",null,null,null,null,null,null,null,null,null,null,null,null,null,null,null,null,null,null,null,null,null,null,null,null,null,null,null,null,null,null,null,null,null,null,{"$f":"AP329+AP330","v":0},null,null,null,null,null,null,null,null,{"$f":"AY330","v":0},null,null,null,null,null,null,null,0]
[null,null,null,null,null,null,"Procent contribuţie publică",null,null,null,null,null,null,null,null,null,null,null,null,null,null,null,null,null,null,null,null,null,null,null,null,null,null,null,null,null,null,null,null,{"$f":"AP329*100/AP334","v":{"$error":"#DIV/0!"}},{"$f":"IF(AP334=0,0,AN335)","v":0},{"$f":"AO335","v":0},null,null,null,null,null,null,null,"%"]
[null,null,null,null,null,null,"Avans solicitat",null,null,null,null,null,null,null,null,null,null,null,null,null,null,null,null,null,null,null,null,null,null,null,null,null,null,null,null,null,null,null,null,null,null,0]
[null,null,null,null,null,null,"Procent avans solicitat ca procent din ajutorul public nerambursabil",null,null,null,null,null,null,null,null,null,null,null,null,null,null,null,null,null,null,null,null,null,null,null,null,null,null,null,null,null,null,null,null,null,{"$f":"AP336*100/AP329","v":{"$error":"#DIV/0!"}},{"$f":"IF(AP329=0,0,AO337)","v":0},null,null,null,null,null,null,null,null,{"$f":"IF(AP337<=50,\"Suma avans mai mica de 50% din ajutorul public\",\"Suma avans mai mare de 50% din ajutorul public\")","v":"Suma avans mai mica de 50% din ajutorul public"}]
[null,null,null,null,null,null,null,"Buget Indicativ HG 907 (Euro) pentru INVESTIŢII în activitatea de procesare şi/sau comercializare"]
[null,null,null,null,null,null,"MINISTERUL AGRICULTURII ŞI DEZVOLTĂRII RURALE"]
[null,null,null,null,null,null,"AGENŢIA PENTRU FINANŢAREA INVESTIŢIILOR RURALE"]
[]
[]
[null,null,null,null,null,null,null,"Procentul aferent intensităţii",null,null,null,null,null,null,null,null,null,null,null,null,null,null,null,null,null,"Curs EURO",null,null,null,null,null,null,null,null,null,null,null,null,null,null,null,"Data întocmirii Studiului de Fezabilitate"]
[]
[null,null,null,null,null,null,"Submăsura",null,null,null,null,null,null,null,null,null,null,null,null,null,null,null,null,null,null,null,null,null,null,null,null,null,null,null,null,null,null,null,null,null,null,"4.1"]
[null,null,null,null,null,null,"Denumirea capitolelor de cheltuieli",null,null,null,null,null,null,null,null,null,null,null,null,null,null,null,null,null,null,null,null,null,null,null,null,null,null,null,null,null,null,null,null,null,null,"Cheltuieli eligibile",null,null,null,null,null,null,null,null,"Cheltuieli neeligibile",null,null,null,null,null,null,null,"Total"]
[null,null,null,null,null,null,null,null,null,null,null,null,null,null,null,null,null,null,null,null,null,null,null,null,null,null,null,null,null,null,null,null,null,null,null,null,null,null,null,null,null,"EURO",null,null,null,null,null,null,null,null,"EURO",null,null,null,null,null,null,null,"EURO"]
[null,null,null,null,null,null,1,null,null,null,null,null,null,null,null,null,null,null,null,null,null,null,null,null,null,null,null,null,null,null,null,null,null,null,null,null,null,null,null,null,null,2,null,null,null,null,null,null,null,null,3,null,null,null,null,null,null,null,4]
[null,null,null,null,null,null,"Capitolul 1 Cheltuieli pentru obtinerea şi amenajarea terenului - total, din care:",null,null,null,null,null,null,null,null,null,null,null,null,null,null,null,null,null,null,null,null,null,null,null,null,null,null,null,null,null,null,null,null,null,null,{"$f":"SUM(AP351:AX353)","v":0},null,null,null,null,null,null,null,null,{"$f":"SUM(AY350:BF353)","v":0},null,null,null,null,null,null,null,{"$f":"SUM(AP349:BF349)","v":0}]
[null,null,null,null,null,null,"1.1 Obţinerea terenului",null,null,null,null,null,null,null,null,null,null,null,null,null,null,null,null,null,null,null,null,null,null,null,null,null,null,null,null,null,null,null,null,null,null,null,null,null,null,null,null,null,null,null,null,null,null,null,null,null,null,null,{"$f":"SUM(AP350:BF350)","v":0}]
[null,null,null,null,null,null,"1.2 Amenajarea terenului",null,null,null,null,null,null,null,null,null,null,null,null,null,null,null,null,null,null,null,null,null,null,null,null,null,null,null,null,null,null,null,null,null,null,null,null,null,null,null,null,null,null,null,null,null,null,null,null,null,null,null,0]
[null,null,null,null,null,null,"1.3 Amenajari pentru protecţia mediului şi aducerea la starea iniţială",null,null,null,null,null,null,null,null,null,null,null,null,null,null,null,null,null,null,null,null,null,null,null,null,null,null,null,null,null,null,null,null,null,null,null,null,null,null,null,null,null,null,null,null,null,null,null,null,null,null,null,0]
[null,null,null,null,null,null,"1.4 Cheltuieli pentru relocarea/protecţia utilităţilor",null,null,null,null,null,null,null,null,null,null,null,null,null,null,null,null,null,null,null,null,null,null,null,null,null,null,null,null,null,null,null,null,null,null,null,null,null,null,null,null,null,null,null,null,null,null,null,null,null,null,null,0]
[null,null,null,null,null,null,"Capitolul 2 Cheltuieli pentru asigurarea utilităţilor necesare obiectivului de investiţii",null,null,null,null,null,null,null,null,null,null,null,null,null,null,null,null,null,null,null,null,null,null,null,null,null,null,null,null,null,null,null,null,null,null,null,null,null,null,null,null,null,null,null,null,null,null,null,null,null,null,null,0]
[null,null,null,null,null,null,"Capitolul 3 Cheltuieli pentru proiectare şi asistenţă tehnică - total, din care:",null,null,null,null,null,null,null,null,null,null,null,null,null,null,null,null,null,null,null,null,null,null,null,null,null,null,null,null,null,null,null,null,null,null,{"$f":"AP356+AP360+AP361+AP362+AP363+AP371+AP374","v":0},null,null,null,null,null,null,null,null,{"$f":"AY356+AY360+AY361+AY362+AY363+AY370+AY371+AY374","v":0},null,null,null,null,null,null,null,0]
[null,null,null,null,null,null,"3.1 Studii",null,null,null,null,null,null,null,null,null,null,null,null,null,null,null,null,null,null,null,null,null,null,null,null,null,null,null,null,null,null,null,null,null,null,{"$f":"SUM(AP357:AX359)","v":0},null,null,null,null,null,null,null,null,{"$f":"SUM(AY357:BF359)","v":0},null,null,null,null,null,null,null,0]
[null,null,null,null,null,null,"       3.1.1 Studii de teren",null,null,null,null,null,null,null,null,null,null,null,null,null,null,null,null,null,null,null,null,null,null,null,null,null,null,null,null,null,null,null,null,null,null,null,null,null,null,null,null,null,null,null,null,null,null,null,null,null,null,null,0]
[null,null,null,null,null,null,"       3.1.2 Raport privind impactul asupra mediului",null,null,null,null,null,null,null,null,null,null,null,null,null,null,null,null,null,null,null,null,null,null,null,null,null,null,null,null,null,null,null,null,null,null,null,null,null,null,null,null,null,null,null,null,null,null,null,null,null,null,null,0]
[null,null,null,null,null,null,"       3.1.3 Alte studii specifice",null,null,null,null,null,null,null,null,null,null,null,null,null,null,null,null,null,null,null,null,null,null,null,null,null,null,null,null,null,null,null,null,null,null,null,null,null,null,null,null,null,null,null,null,null,null,null,null,null,null,null,0]
[null,null,null,null,null,null,"3.2 Documentaţii-suport şi cheltuieli pentru obţinerea de avize, acorduri şi autorizaţii",null,null,null,null,null,null,null,null,null,null,null,null,null,null,null,null,null,null,null,null,null,null,null,null,null,null,null,null,null,null,null,null,null,null,null,null,null,null,null,null,null,null,null,null,null,null,null,null,null,null,null,0]
[null,null,null,null,null,null,"3.3 Expertizare tehnică",null,null,null,null,null,null,null,null,null,null,null,null,null,null,null,null,null,null,null,null,null,null,null,null,null,null,null,null,null,null,null,null,null,null,null,null,null,null,null,null,null,null,null,null,null,null,null,null,null,null,null,0]
[null,null,null,null,null,null,"3.4 Certificarea performanţei energetice şi auditul energetic al clădirilor",null,null,null,null,null,null,null,null,null,null,null,null,null,null,null,null,null,null,null,null,null,null,null,null,null,null,null,null,null,null,null,null,null,null,null,null,null,null,null,null,null,null,null,null,null,null,null,null,null,null,null,0]
[null,null,null,null,null,null,"3.5 Proiectare",null,null,null,null,null,null,null,null,null,null,null,null,null,null,null,null,null,null,null,null,null,null,null,null,null,null,null,null,null,null,null,null,null,null,{"$f":"SUM(AP364:AX369)","v":0},null,null,null,null,null,null,null,null,{"$f":"SUM(AY364:BF369)","v":0},null,null,null,null,null,null,null,0]
[null,null,null,null,null,null,"      3.5.1 Temă de proiectare",null,null,null,null,null,null,null,null,null,null,null,null,null,null,null,null,null,null,null,null,null,null,null,null,null,null,null,null,null,null,null,null,null,null,null,null,null,null,null,null,null,null,null,null,null,null,null,null,null,null,null,0]
[null,null,null,null,null,null,"      3.5.2 Studiu de prefezabilitate",null,null,null,null,null,null,null,null,null,null,null,null,null,null,null,null,null,null,null,null,null,null,null,null,null,null,null,null,null,null,null,null,null,null,null,null,null,null,null,null,null,null,null,null,null,null,null,null,null,null,null,0]
[null,null,null,null,null,null,"      3.5.3. Studiu de fezabilitate/documentaţie de avizare a lucrărilor de intervenţii\n                şi deviz general",null,null,null,null,null,null,null,null,null,null,null,null,null,null,null,null,null,null,null,null,null,null,null,null,null,null,null,null,null,null,null,null,null,null,null,null,null,null,null,null,null,null,null,null,null,null,null,null,null,null,null,0]
[null,null,null,null,null,null,"      3.5.4. Documentaţiile tehnice necesare în vederea obţinerii avizelor/\n                acordurilor/autorizaţiilor",null,null,null,null,null,null,null,null,null,null,null,null,null,null,null,null,null,null,null,null,null,null,null,null,null,null,null,null,null,null,null,null,null,null,null,null,null,null,null,null,null,null,null,null,null,null,null,null,null,null,null,0]
[null,null,null,null,null,null,"      3.5.5. Verificarea tehnică de calitate a proiectului tehnic şi a detaliilor de execuţie",null,null,null,null,null,null,null,null,null,null,null,null,null,null,null,null,null,null,null,null,null,null,null,null,null,null,null,null,null,null,null,null,null,null,null,null,null,null,null,null,null,null,null,null,null,null,null,null,null,null,null,0]
[null,null,null,null,null,null,"      3.5.6. Proiect tehnic şi detalii de execuţie",null,null,null,null,null,null,null,null,null,null,null,null,null,null,null,null,null,null,null,null,null,null,null,null,null,null,null,null,null,null,null,null,null,null,null,null,null,null,null,null,null,null,null,null,null,null,null,null,null,null,null,0]
[null,null,null,null,null,null,"3.6 Organizarea procedurilor de achiziţie",null,null,null,null,null,null,null,null,null,null,null,null,null,null,null,null,null,null,null,null,null,null,null,null,null,null,null,null,null,null,null,null,null,null,null,null,null,null,null,null,null,null,null,null,null,null,null,null,null,null,null,0]
[null,null,null,null,null,null,"3.7 Consultanţă",null,null,null,null,null,null,null,null,null,null,null,null,null,null,null,null,null,null,null,null,null,null,null,null,null,null,null,null,null,null,null,null,null,null,{"$f":"AP372","v":0},null,null,null,null,null,null,null,null,{"$f":"AY372+AY373","v":0},null,null,null,null,null,null,null,0]
[null,null,null,null,null,null,"      3.7.1 Managementul de proiect pentru obiectivul de investiţii",null,null,null,null,null,null,null,null,null,null,null,null,null,null,null,null,null,null,null,null,null,null,null,null,null,null,null,null,null,null,null,null,null,null,null,null,null,null,null,null,null,null,null,null,null,null,null,null,null,null,null,0]
[null,null,null,null,null,null,"      3.7.2 Auditul financiar",null,null,null,null,null,null,null,null,null,null,null,null,null,null,null,null,null,null,null,null,null,null,null,null,null,null,null,null,null,null,null,null,null,null,null,null,null,null,null,null,null,null,null,null,null,null,null,null,null,null,null,0]
[null,null,null,null,null,null,"3.8 Asistenţă Tehnică",null,null,null,null,null,null,null,null,null,null,null,null,null,null,null,null,null,null,null,null,null,null,null,null,null,null,null,null,null,null,null,null,null,null,{"$f":"AP375+AP378","v":0},null,null,null,null,null,null,null,null,{"$f":"AY375+AY378","v":0},null,null,null,null,null,null,null,0]
[null,null,null,null,null,null,"      3.8.1 Asistenţă Tehnică din partea proiectantului",null,null,null,null,null,null,null,null,null,null,null,null,null,null,null,null,null,null,null,null,null,null,null,null,null,null,null,null,null,null,null,null,null,null,{"$f":"SUM(AP376:AX377)","v":0},null,null,null,null,null,null,null,null,{"$f":"SUM(AY376:BF377)","v":0},null,null,null,null,null,null,null,0]
[null,null,null,null,null,null,"           3.8.1.1 pe perioada de execuţie a lucrărilor",null,null,null,null,null,null,null,null,null,null,null,null,null,null,null,null,null,null,null,null,null,null,null,null,null,null,null,null,null,null,null,null,null,null,null,null,null,null,null,null,null,null,null,null,null,null,null,null,null,null,null,0]
[null,null,null,null,null,null,"           3.8.1.2 pentru participarea proiectantului la fazele incluse în programul de control al\n                       lucrărilor de execuţie, avizat de către Inspectoratul de Stat în Construcţii",null,null,null,null,null,null,null,null,null,null,null,null,null,null,null,null,null,null,null,null,null,null,null,null,null,null,null,null,null,null,null,null,null,null,null,null,null,null,null,null,null,null,null,null,null,null,null,null,null,null,null,0]
[null,null,null,null,null,null,"      3.8.2 Dirigenţie de şantier",null,null,null,null,null,null,null,null,null,null,null,null,null,null,null,null,null,null,null,null,null,null,null,null,null,null,null,null,null,null,null,null,null,null,null,null,null,null,null,null,null,null,null,null,null,null,null,null,null,null,null,0]
[null,null,null,null,null,null,"Verificare încadrare cheltuieli capitolul 3",null,null,null,null,null,null,null,null,null,null,null,null,null,null,null,null,null,null,null,null,null,null,null,null,null,null,null,null,null,null,null,{"$f":"AP349+AP354+AP380","v":0},{"$f":"IF(AM379=0,0,AO379)","v":0},null,"verificarea se face in Totalizator"]
[null,null,null,null,null,null,"Capitolul 4 Cheltuieli pentru investiţia de bază - total, din care:",null,null,null,null,null,null,null,null,null,null,null,null,null,null,null,null,null,null,null,null,null,null,null,null,null,null,null,null,null,null,null,null,null,null,{"$f":"AP381+AP388","v":0},null,null,null,null,null,null,null,null,{"$f":"AY381+AY388","v":0},null,null,null,null,null,null,null,{"$f":"SUM(AP380:BF380)","v":0}]
[null,null,null,null,null,null,"A - Constructii şi lucrări de intervenţii - total, din care:",null,null,null,null,null,null,null,null,null,null,null,null,null,null,null,null,null,null,null,null,null,null,null,null,null,null,null,null,null,null,null,null,null,null,{"$f":"SUM(AP382:AX387)","v":0},null,null,null,null,null,null,null,null,{"$f":"SUM(AY382:BF387)","v":0},null,null,null,null,null,null,null,0]
[null,null,null,null,null,null,"4.1 Construcţii şi instalaţii",null,null,null,null,null,null,null,null,null,null,null,null,null,null,null,null,null,null,null,null,null,null,null,null,null,null,null,null,null,null,null,null,null,null,null,null,null,null,null,null,null,null,null,null,null,null,null,null,null,null,null,0]
[null,null,null,null,null,null,"4.2 Montaj utilaje, echipamente tehnologice şi funcţionale",null,null,null,null,null,null,null,null,null,null,null,null,null,null,null,null,null,null,null,null,null,null,null,null,null,null,null,null,null,null,null,null,null,null,null,null,null,null,null,null,null,null,null,null,null,null,null,null,null,null,null,0]
[null,null,null,null,null,null,"4.3 Utilaje, echipamente tehnologice şi funcţionale care necesită montaj",null,null,null,null,null,null,null,null,null,null,null,null,null,null,null,null,null,null,null,null,null,null,null,null,null,null,null,null,null,null,null,null,null,null,null,null,null,null,null,null,null,null,null,null,null,null,null,null,null,null,null,0]
[null,null,null,null,null,null,"4.4 Utilaje, echipamente tehnologice şi funcţionale care nu necesită montaj şi echipamente",null,null,null,null,null,null,null,null,null,null,null,null,null,null,null,null,null,null,null,null,null,null,null,null,null,null,null,null,null,null,null,null,null,null,null,null,null,null,null,null,null,null,null,null,null,null,null,null,null,null,null,0]
[null,null,null,null,null,null,"4.5 Dotări",null,null,null,null,null,null,null,null,null,null,null,null,null,null,null,null,null,null,null,null,null,null,null,null,null,null,null,null,null,null,null,null,null,null,null,null,null,null,null,null,null,null,null,null,null,null,null,null,null,null,null,0]
[null,null,null,null,null,null,"4.6 Active necorporale",null,null,null,null,null,null,null,null,null,null,null,null,null,null,null,null,null,null,null,null,null,null,null,null,null,null,null,null,null,null,null,null,null,null,null,null,null,null,null,null,null,null,null,null,null,null,null,null,null,null,null,0]
[null,null,null,null,null,null,"B - Cheltuieli pentru investitii în culturi/plantaţii",null,null,null,null,null,null,null,null,null,null,null,null,null,null,null,null,null,null,null,null,null,null,null,null,null,null,null,null,null,null,null,null,null,null,{"$f":"SUM(AP389:AX393)","v":0},null,null,null,null,null,null,null,null,{"$f":"SUM(AY389:BF393)","v":0},null,null,null,null,null,null,null,0]
[null,null,null,null,null,null,"Subcapitol 1 - Lucrări de pregătire a terenului",null,null,null,null,null,null,null,null,null,null,null,null,null,null,null,null,null,null,null,null,null,null,null,null,null,null,null,null,null,null,null,null,null,null,null,null,null,null,null,null,null,null,null,null,null,null,null,null,null,null,null,0]
[null,null,null,null,null,null,"Subcapitol 2 - Infiinţarea plantaţiei",null,null,null,null,null,null,null,null,null,null,null,null,null,null,null,null,null,null,null,null,null,null,null,null,null,null,null,null,null,null,null,null,null,null,null,null,null,null,null,null,null,null,null,null,null,null,null,null,null,null,null,0]
[null,null,null,null,null,null,"Subcapitol 3 - Intreţinere plantaţie în anul 1",null,null,null,null,null,null,null,null,null,null,null,null,null,null,null,null,null,null,null,null,null,null,null,null,null,null,null,null,null,null,null,null,null,null,null,null,null,null,null,null,null,null,null,null,null,null,null,null,null,null,null,0]
[null,null,null,null,null,null,"Subcapitol 4 - Intreţinere plantaţie în anul 2",null,null,null,null,null,null,null,null,null,null,null,null,null,null,null,null,null,null,null,null,null,null,null,null,null,null,null,null,null,null,null,null,null,null,null,null,null,null,null,null,null,null,null,null,null,null,null,null,null,null,null,0]
[null,null,null,null,null,null,"Subcapitol 5 - Instalat sistem susţinere şi împrejmuire",null,null,null,null,null,null,null,null,null,null,null,null,null,null,null,null,null,null,null,null,null,null,null,null,null,null,null,null,null,null,null,null,null,null,null,null,null,null,null,null,null,null,null,null,null,null,null,null,null,null,null,0]
[null,null,null,null,null,null,"Capitolul 5 Alte cheltuieli - total, din care:",null,null,null,null,null,null,null,null,null,null,null,null,null,null,null,null,null,null,null,null,null,null,null,null,null,null,null,null,null,null,null,null,null,null,{"$f":"AP395+AP398+AP404+AP405","v":0},null,null,null,null,null,null,null,null,{"$f":"AY395+AY398+AY404+AY405","v":0},null,null,null,null,null,null,null,0]
[null,null,null,null,null,null,"5.1 Organizare de şantier",null,null,null,null,null,null,null,null,null,null,null,null,null,null,null,null,null,null,null,null,null,null,null,null,null,null,null,null,null,null,null,null,null,null,{"$f":"SUM(AP396:AX397)","v":0},null,null,null,null,null,null,null,null,{"$f":"SUM(AY396:BF397)","v":0},null,null,null,null,null,null,null,0]
[null,null,null,null,null,null,"      5.1.1 lucrări de construcţii şi instalaţii aferente organizării de şantier",null,null,null,null,null,null,null,null,null,null,null,null,null,null,null,null,null,null,null,null,null,null,null,null,null,null,null,null,null,null,null,null,null,null,null,null,null,null,null,null,null,null,null,null,null,null,null,null,null,null,null,0]
[null,null,null,null,null,null,"      5.1.2 cheltuieli conexe orgănizării şantierului",null,null,null,null,null,null,null,null,null,null,null,null,null,null,null,null,null,null,null,null,null,null,null,null,null,null,null,null,null,null,null,null,null,null,null,null,null,null,null,null,null,null,null,null,null,null,null,null,null,null,null,0]
[null,null,null,null,null,null,"5.2 Comisioane, taxe, costul creditului",null,null,null,null,null,null,null,null,null,null,null,null,null,null,null,null,null,null,null,null,null,null,null,null,null,null,null,null,null,null,null,null,null,null,{"$f":"AP400+AP401+AP403","v":0},null,null,null,null,null,null,null,null,{"$f":"SUM(AY399:BF403)","v":0},null,null,null,null,null,null,null,0]
[null,null,null,null,null,null,"      5.2.1 Comisioanele şi dobânzile aferente creditului băncii finanţatoare",null,null,null,null,null,null,null,null,null,null,null,null,null,null,null,null,null,null,null,null,null,null,null,null,null,null,null,null,null,null,null,null,null,null,null,null,null,null,null,null,null,null,null,null,null,null,null,null,null,null,null,0]
[null,null,null,null,null,null,"      5.2.2 Cota aferentă ISC pentru controlul calităţii lucrărilor de construcţii",null,null,null,null,null,null,null,null,null,null,null,null,null,null,null,null,null,null,null,null,null,null,null,null,null,null,null,null,null,null,null,null,null,null,null,null,null,null,null,null,null,null,null,null,null,null,null,null,null,null,null,0]
[null,null,null,null,null,null,"      5.2.3 Cota aferentă ISC pentru controlul statului în amenajarea teritoriului, urbanism şi\n               pentru autorizarea lucrărilor de construcţii",null,null,null,null,null,null,null,null,null,null,null,null,null,null,null,null,null,null,null,null,null,null,null,null,null,null,null,null,null,null,null,null,null,null,null,null,null,null,null,null,null,null,null,null,null,null,null,null,null,null,null,0]
[null,null,null,null,null,null,"      5.2.4 Cota aferentă Casei Sociale a Constructorilor - CSC",null,null,null,null,null,null,null,null,null,null,null,null,null,null,null,null,null,null,null,null,null,null,null,null,null,null,null,null,null,null,null,null,null,null,null,null,null,null,null,null,null,null,null,null,null,null,null,null,null,null,null,0]
[null,null,null,null,null,null,"      5.2.5 Taxe pentru acorduri, avize conforme şi autorizaţia de construire/ desfiinţare",null,null,null,null,null,null,null,null,null,null,null,null,null,null,null,null,null,null,null,null,null,null,null,null,null,null,null,null,null,null,null,null,null,null,null,null,null,null,null,null,null,null,null,null,null,null,null,null,null,null,null,0]
[null,null,null,null,null,null,"5.3 Cheltuieli diverse şi neprevăzute",null,null,null,null,null,null,null,null,null,null,null,null,null,null,null,null,null,null,null,null,null,null,null,null,null,null,null,null,null,null,null,null,null,null,null,null,null,null,null,null,null,null,null,null,null,null,null,null,null,null,null,0]
[null,null,null,null,null,null,"5.4 Cheltuieli pentru informare şi publicitate",null,null,null,null,null,null,null,null,null,null,null,null,null,null,null,null,null,null,null,null,null,null,null,null,null,null,null,null,null,null,null,null,null,null,null,null,null,null,null,null,null,null,null,null,null,null,null,null,null,null,null,0]
[null,null,null,null,null,null,"Procent cheltuieli diverse şi neprevăzute"]
[null,null,null,null,null,null,"Capitolul 6 Cheltuieli pentru darea în exploatare - total, din care:",null,null,null,null,null,null,null,null,null,null,null,null,null,null,null,null,null,null,null,null,null,null,null,null,null,null,null,null,null,null,null,null,null,null,{"$f":"SUM(AP408:AX409)","v":0},null,null,null,null,null,null,null,null,{"$f":"SUM(AY408:BF409)","v":0},null,null,null,null,null,null,null,{"$f":"SUM(AP407:BF407)","v":0}]
[null,null,null,null,null,null,"6.1 Pregătirea personalului de exploatare",null,null,null,null,null,null,null,null,null,null,null,null,null,null,null,null,null,null,null,null,null,null,null,null,null,null,null,null,null,null,null,null,null,null,null,null,null,null,null,null,null,null,null,null,null,null,null,null,null,null,null,0]
[null,null,null,null,null,null,"6.2 Probe tehnologice şi teste",null,null,null,null,null,null,null,null,null,null,null,null,null,null,null,null,null,null,null,null,null,null,null,null,null,null,null,null,null,null,null,null,null,null,null,null,null,null,null,null,null,null,null,null,null,null,null,null,null,null,null,0]
[null,null,null,null,null,null,"TOTAL GENERAL",null,null,null,null,null,null,null,null,null,null,null,null,null,null,null,null,null,null,null,null,null,null,null,null,null,null,null,null,null,null,null,null,null,null,{"$f":"AP349+AP354+AP355+AP380+AP394+AP407","v":0},null,null,null,null,null,null,null,null,{"$f":"AY349+AY354+AY355+AY380+AY394+AY407","v":0},null,null,null,null,null,null,null,0]
[null,null,null,null,null,null,"Verificare actualizare",null,null,null,null,null,null,null,null,null,null,null,null,null,null,null,null,null,null,null,null,null,null,null,null,null,null,null,null,null,null,{"$f":"AP412*100/AP410","v":{"$error":"#DIV/0!"}},null,null,{"$f":"IF(AP410=0,0,AL411)","v":0},{"$f":"IF(AO411<=5,\"actualizare mai mică de 5% din valoarea eligibila\",\"actualizare mai mare de 5% din valoarea eligibila\")","v":"actualizare mai mică de 5% din valoarea eligibila"}]
[null,null,null,null,null,null,"ACTUALIZARE Cheltuieli Eligibile (max 5%)",null,null,null,null,null,null,null,null,null,null,null,null,null,null,null,null,null,null,null,null,null,null,null,null,null,null,null,null,null,null,null,null,null,null,null,null,null,null,null,null,null,null,null,null,null,null,null,null,null,null,null,{"$f":"SUM(AP412:BF412)","v":0}]
[null,null,null,null,null,null,"TOTAL GENERAL CU ACTUALIZARE",null,null,null,null,null,null,null,null,null,null,null,null,null,null,null,null,null,null,null,null,null,null,null,null,null,null,null,null,null,null,null,null,null,null,{"$f":"AP410+AP412","v":0},null,null,null,null,null,null,null,null,{"$f":"AY410","v":0},null,null,null,null,null,null,null,0]
[null,null,null,null,null,null,"Valoare TVA",null,null,null,null,null,null,null,null,null,null,null,null,null,null,null,null,null,null,null,null,null,null,null,null,null,null,null,null,null,null,null,null,null,null,null,null,null,null,null,null,null,null,null,null,null,null,null,null,null,null,null,0]
[null,null,null,null,null,null,"TOTAL GENERAL inclusiv TVA",null,null,null,null,null,null,null,null,null,null,null,null,null,null,null,null,null,null,null,null,null,null,null,null,null,null,null,null,null,null,null,null,null,null,{"$f":"BG413+BG414","v":0}]
[null,null,null,null,null,null,null,null,null,null,null,null,null,null,null,null,null,null,null,null,null,null,null,null,null,null,null,null,null,null,null,null,null,null,null,null,null,null,null,null,null,"LEI",null,null,null,null,null,null,null,null,"EURO"]
[null,null,null,null,null,null,"VALOARE TOTALĂ",null,null,null,null,null,null,null,null,null,null,null,null,null,null,null,null,null,null,null,null,null,null,null,null,null,null,null,null,null,null,null,null,null,null,{"$f":"AY417*AF343","v":0},null,null,null,null,null,null,null,null,{"$f":"AP415","v":0}]
[null,null,null,null,null,null,"VALOARE ELIGIBILĂ",null,null,null,null,null,null,null,null,null,null,null,null,null,null,null,null,null,null,null,null,null,null,null,null,null,null,null,null,null,null,null,null,null,null,{"$f":"AY418*AF343","v":0},null,null,null,null,null,null,null,null,{"$f":"AP413+AP414","v":0}]
[null,null,null,null,null,null,"VALOARE NEELIGIBILĂ",null,null,null,null,null,null,null,null,null,null,null,null,null,null,null,null,null,null,null,null,null,null,null,null,null,null,null,null,null,null,null,null,null,null,{"$f":"AY419*AF343","v":0},null,null,null,null,null,null,null,null,{"$f":"AY413+AY414","v":0}]
[null,null,null,null,null,null,"Plan Financiar",null,null,null,null,null,null,null,null,null,null,null,null,null,null,null,null,null,null,null,null,null,null,null,null,null,null,null,null,null,null,null,null,null,null,"Cheltuieli eligibile EURO",null,null,null,null,null,null,null,null,"Cheltuieli neeligibile EURO",null,null,null,null,null,null,null,"Total"]
[null,null,null,null,null,null,"Ajutor public nerambursabil (contribuţie UE şi cofinanţare naţională)",null,null,null,null,null,null,null,null,null,null,null,null,null,null,null,null,null,null,null,null,null,null,null,null,null,null,null,null,null,null,null,null,null,null,null,null,null,null,null,null,null,null,null,null,null,null,null,null,null,null,null,{"$f":"SUM(AP421:BF421)","v":0}]
[null,null,null,null,null,null,"Cofinantare privata, din care:",null,null,null,null,null,null,null,null,null,null,null,null,null,null,null,null,null,null,null,null,null,null,null,null,null,null,null,null,null,null,null,null,null,null,{"$f":"SUM(AP423:AX425)","v":0},null,null,null,null,null,null,null,null,{"$f":"SUM(AY423:BF425)","v":0},null,null,null,null,null,null,null,0]
[null,null,null,null,null,null,null,null,null,null,null,null,null,null,null,null,null,null,null,null,null,"- contributia in natura",null,null,null,null,null,null,null,null,null,null,null,null,null,null,null,null,null,null,null,null,null,null,null,null,null,null,null,null,null,null,null,null,null,null,null,null,0]
[null,null,null,null,null,null,null,null,null,null,null,null,null,null,null,null,null,null,null,null,null,"- autofinanțare",null,null,null,null,null,null,null,null,null,null,null,null,null,null,null,null,null,null,null,null,null,null,null,null,null,null,null,null,null,null,null,null,null,null,null,null,0]
[null,null,null,null,null,null,null,null,null,null,null,null,null,null,null,null,null,null,null,null,null,"- împrumuturi",null,null,null,null,null,null,null,null,null,null,null,null,null,null,null,null,null,null,null,null,null,null,null,null,null,null,null,null,null,null,null,null,null,null,null,null,0]
[null,null,null,null,null,null,"TOTAL PROIECT",null,null,null,null,null,null,null,null,null,null,null,null,null,null,null,null,null,null,null,null,null,null,null,null,null,null,null,null,null,null,null,null,null,null,{"$f":"AP421+AP422","v":0},null,null,null,null,null,null,null,null,{"$f":"AY422","v":0},null,null,null,null,null,null,null,0]
[null,null,null,null,null,null,"Procent contribuţie publică",null,null,null,null,null,null,null,null,null,null,null,null,null,null,null,null,null,null,null,null,null,null,null,null,null,null,null,null,null,null,null,null,{"$f":"AP421*100/AP426","v":{"$error":"#DIV/0!"}},{"$f":"IF(AP426=0,0,AN427)","v":0},{"$f":"AO427","v":0},null,null,null,null,null,null,null,"%"]
[null,null,null,null,null,null,"Avans solicitat"]
[null,null,null,null,null,null,"Procent avans solicitat ca procent din ajutorul public nerambursabil",null,null,null,null,null,null,null,null,null,null,null,null,null,null,null,null,null,null,null,null,null,null,null,null,null,null,null,null,null,null,null,null,null,{"$f":"AP428*100/AP421","v":{"$error":"#DIV/0!"}},{"$f":"IF(AP421=0,0,AO429)","v":0},null,null,null,null,null,null,null,null,{"$f":"IF(AP429<=50,\"Suma avans mai mica de 50% din ajutorul public\",\"Suma avans mai mare de 50% din ajutorul public\")","v":"Suma avans mai mica de 50% din ajutorul public"}]
[null,null,null,null,null,null,null,"Buget Indicativ HG 907 (Euro) pentru INVESTIŢII pentru agromediu "]
[null,null,null,null,null,null,"MINISTERUL AGRICULTURII ŞI DEZVOLTĂRII RURALE"]
[null,null,null,null,null,null,"AGENŢIA PENTRU FINANŢAREA INVESTIŢIILOR RURALE"]
[]
[]
[null,null,null,null,null,null,null,"Procentul aferent intensităţii",null,null,null,null,null,null,null,null,null,null,null,null,null,null,null,null,null,"Curs EURO",null,null,null,null,null,null,null,null,null,null,null,null,null,null,null,"Data întocmirii Studiului de Fezabilitate"]
[]
[null,null,null,null,null,null,"Submăsura",null,null,null,null,null,null,null,null,null,null,null,null,null,null,null,null,null,null,null,null,null,null,null,null,null,null,null,null,null,null,null,null,null,null,"4.1"]
[null,null,null,null,null,null,"Denumirea capitolelor de cheltuieli",null,null,null,null,null,null,null,null,null,null,null,null,null,null,null,null,null,null,null,null,null,null,null,null,null,null,null,null,null,null,null,null,null,null,"Cheltuieli eligibile",null,null,null,null,null,null,null,null,"Cheltuieli neeligibile",null,null,null,null,null,null,null,"Total"]
[null,null,null,null,null,null,null,null,null,null,null,null,null,null,null,null,null,null,null,null,null,null,null,null,null,null,null,null,null,null,null,null,null,null,null,null,null,null,null,null,null,"EURO",null,null,null,null,null,null,null,null,"EURO",null,null,null,null,null,null,null,"EURO"]
[null,null,null,null,null,null,1,null,null,null,null,null,null,null,null,null,null,null,null,null,null,null,null,null,null,null,null,null,null,null,null,null,null,null,null,null,null,null,null,null,null,2,null,null,null,null,null,null,null,null,3,null,null,null,null,null,null,null,4]
[null,null,null,null,null,null,"Capitolul 1 Cheltuieli pentru obtinerea şi amenajarea terenului - total, din care:",null,null,null,null,null,null,null,null,null,null,null,null,null,null,null,null,null,null,null,null,null,null,null,null,null,null,null,null,null,null,null,null,null,null,{"$f":"SUM(AP443:AX445)","v":0},null,null,null,null,null,null,null,null,{"$f":"SUM(AY442:BF445)","v":0},null,null,null,null,null,null,null,{"$f":"SUM(AP441:BF441)","v":0}]
[null,null,null,null,null,null,"1.1 Obţinerea terenului",null,null,null,null,null,null,null,null,null,null,null,null,null,null,null,null,null,null,null,null,null,null,null,null,null,null,null,null,null,null,null,null,null,null,null,null,null,null,null,null,null,null,null,null,null,null,null,null,null,null,null,{"$f":"SUM(AP442:BF442)","v":0}]
[null,null,null,null,null,null,"1.2 Amenajarea terenului",null,null,null,null,null,null,null,null,null,null,null,null,null,null,null,null,null,null,null,null,null,null,null,null,null,null,null,null,null,null,null,null,null,null,null,null,null,null,null,null,null,null,null,null,null,null,null,null,null,null,null,0]
[null,null,null,null,null,null,"1.3 Amenajari pentru protecţia mediului şi aducerea la starea iniţială",null,null,null,null,null,null,null,null,null,null,null,null,null,null,null,null,null,null,null,null,null,null,null,null,null,null,null,null,null,null,null,null,null,null,null,null,null,null,null,null,null,null,null,null,null,null,null,null,null,null,null,0]
[null,null,null,null,null,null,"1.4 Cheltuieli pentru relocarea/protecţia utilităţilor",null,null,null,null,null,null,null,null,null,null,null,null,null,null,null,null,null,null,null,null,null,null,null,null,null,null,null,null,null,null,null,null,null,null,null,null,null,null,null,null,null,null,null,null,null,null,null,null,null,null,null,0]
[null,null,null,null,null,null,"Capitolul 2 Cheltuieli pentru asigurarea utilităţilor necesare obiectivului de investiţii",null,null,null,null,null,null,null,null,null,null,null,null,null,null,null,null,null,null,null,null,null,null,null,null,null,null,null,null,null,null,null,null,null,null,null,null,null,null,null,null,null,null,null,null,null,null,null,null,null,null,null,0]
[null,null,null,null,null,null,"Capitolul 3 Cheltuieli pentru proiectare şi asistenţă tehnică - total, din care:",null,null,null,null,null,null,null,null,null,null,null,null,null,null,null,null,null,null,null,null,null,null,null,null,null,null,null,null,null,null,null,null,null,null,{"$f":"AP448+AP452+AP453+AP454+AP455+AP463+AP466","v":0},null,null,null,null,null,null,null,null,{"$f":"AY448+AY452+AY453+AY454+AY455+AY462+AY463+AY466","v":0},null,null,null,null,null,null,null,0]
[null,null,null,null,null,null,"3.1 Studii",null,null,null,null,null,null,null,null,null,null,null,null,null,null,null,null,null,null,null,null,null,null,null,null,null,null,null,null,null,null,null,null,null,null,{"$f":"SUM(AP449:AX451)","v":0},null,null,null,null,null,null,null,null,{"$f":"SUM(AY449:BF451)","v":0},null,null,null,null,null,null,null,0]
[null,null,null,null,null,null,"       3.1.1 Studii de teren",null,null,null,null,null,null,null,null,null,null,null,null,null,null,null,null,null,null,null,null,null,null,null,null,null,null,null,null,null,null,null,null,null,null,null,null,null,null,null,null,null,null,null,null,null,null,null,null,null,null,null,0]
[null,null,null,null,null,null,"       3.1.2 Raport privind impactul asupra mediului",null,null,null,null,null,null,null,null,null,null,null,null,null,null,null,null,null,null,null,null,null,null,null,null,null,null,null,null,null,null,null,null,null,null,null,null,null,null,null,null,null,null,null,null,null,null,null,null,null,null,null,0]
[null,null,null,null,null,null,"       3.1.3 Alte studii specifice",null,null,null,null,null,null,null,null,null,null,null,null,null,null,null,null,null,null,null,null,null,null,null,null,null,null,null,null,null,null,null,null,null,null,null,null,null,null,null,null,null,null,null,null,null,null,null,null,null,null,null,0]
[null,null,null,null,null,null,"3.2 Documentaţii-suport şi cheltuieli pentru obţinerea de avize, acorduri şi autorizaţii",null,null,null,null,null,null,null,null,null,null,null,null,null,null,null,null,null,null,null,null,null,null,null,null,null,null,null,null,null,null,null,null,null,null,null,null,null,null,null,null,null,null,null,null,null,null,null,null,null,null,null,0]
[null,null,null,null,null,null,"3.3 Expertizare tehnică",null,null,null,null,null,null,null,null,null,null,null,null,null,null,null,null,null,null,null,null,null,null,null,null,null,null,null,null,null,null,null,null,null,null,null,null,null,null,null,null,null,null,null,null,null,null,null,null,null,null,null,0]
[null,null,null,null,null,null,"3.4 Certificarea performanţei energetice şi auditul energetic al clădirilor",null,null,null,null,null,null,null,null,null,null,null,null,null,null,null,null,null,null,null,null,null,null,null,null,null,null,null,null,null,null,null,null,null,null,null,null,null,null,null,null,null,null,null,null,null,null,null,null,null,null,null,0]
[null,null,null,null,null,null,"3.5 Proiectare",null,null,null,null,null,null,null,null,null,null,null,null,null,null,null,null,null,null,null,null,null,null,null,null,null,null,null,null,null,null,null,null,null,null,{"$f":"SUM(AP456:AX461)","v":0},null,null,null,null,null,null,null,null,{"$f":"SUM(AY456:BF461)","v":0},null,null,null,null,null,null,null,0]
[null,null,null,null,null,null,"      3.5.1 Temă de proiectare",null,null,null,null,null,null,null,null,null,null,null,null,null,null,null,null,null,null,null,null,null,null,null,null,null,null,null,null,null,null,null,null,null,null,null,null,null,null,null,null,null,null,null,null,null,null,null,null,null,null,null,0]
[null,null,null,null,null,null,"      3.5.2 Studiu de prefezabilitate",null,null,null,null,null,null,null,null,null,null,null,null,null,null,null,null,null,null,null,null,null,null,null,null,null,null,null,null,null,null,null,null,null,null,null,null,null,null,null,null,null,null,null,null,null,null,null,null,null,null,null,0]
[null,null,null,null,null,null,"      3.5.3. Studiu de fezabilitate/documentaţie de avizare a lucrărilor de intervenţii\n                şi deviz general",null,null,null,null,null,null,null,null,null,null,null,null,null,null,null,null,null,null,null,null,null,null,null,null,null,null,null,null,null,null,null,null,null,null,null,null,null,null,null,null,null,null,null,null,null,null,null,null,null,null,null,0]
[null,null,null,null,null,null,"      3.5.4. Documentaţiile tehnice necesare în vederea obţinerii avizelor/\n                acordurilor/autorizaţiilor",null,null,null,null,null,null,null,null,null,null,null,null,null,null,null,null,null,null,null,null,null,null,null,null,null,null,null,null,null,null,null,null,null,null,null,null,null,null,null,null,null,null,null,null,null,null,null,null,null,null,null,0]
[null,null,null,null,null,null,"      3.5.5. Verificarea tehnică de calitate a proiectului tehnic şi a detaliilor de execuţie",null,null,null,null,null,null,null,null,null,null,null,null,null,null,null,null,null,null,null,null,null,null,null,null,null,null,null,null,null,null,null,null,null,null,null,null,null,null,null,null,null,null,null,null,null,null,null,null,null,null,null,0]
[null,null,null,null,null,null,"      3.5.6. Proiect tehnic şi detalii de execuţie",null,null,null,null,null,null,null,null,null,null,null,null,null,null,null,null,null,null,null,null,null,null,null,null,null,null,null,null,null,null,null,null,null,null,null,null,null,null,null,null,null,null,null,null,null,null,null,null,null,null,null,0]
[null,null,null,null,null,null,"3.6 Organizarea procedurilor de achiziţie",null,null,null,null,null,null,null,null,null,null,null,null,null,null,null,null,null,null,null,null,null,null,null,null,null,null,null,null,null,null,null,null,null,null,null,null,null,null,null,null,null,null,null,null,null,null,null,null,null,null,null,0]
[null,null,null,null,null,null,"3.7 Consultanţă",null,null,null,null,null,null,null,null,null,null,null,null,null,null,null,null,null,null,null,null,null,null,null,null,null,null,null,null,null,null,null,null,null,null,{"$f":"AP464","v":0},null,null,null,null,null,null,null,null,{"$f":"AY464+AY465","v":0},null,null,null,null,null,null,null,0]
[null,null,null,null,null,null,"      3.7.1 Managementul de proiect pentru obiectivul de investiţii",null,null,null,null,null,null,null,null,null,null,null,null,null,null,null,null,null,null,null,null,null,null,null,null,null,null,null,null,null,null,null,null,null,null,null,null,null,null,null,null,null,null,null,null,null,null,null,null,null,null,null,0]
[null,null,null,null,null,null,"      3.7.2 Auditul financiar",null,null,null,null,null,null,null,null,null,null,null,null,null,null,null,null,null,null,null,null,null,null,null,null,null,null,null,null,null,null,null,null,null,null,null,null,null,null,null,null,null,null,null,null,null,null,null,null,null,null,null,0]
[null,null,null,null,null,null,"3.8 Asistenţă Tehnică",null,null,null,null,null,null,null,null,null,null,null,null,null,null,null,null,null,null,null,null,null,null,null,null,null,null,null,null,null,null,null,null,null,null,{"$f":"AP467+AP470","v":0},null,null,null,null,null,null,null,null,{"$f":"AY467+AY470","v":0},null,null,null,null,null,null,null,0]
[null,null,null,null,null,null,"      3.8.1 Asistenţă Tehnică din partea proiectantului",null,null,null,null,null,null,null,null,null,null,null,null,null,null,null,null,null,null,null,null,null,null,null,null,null,null,null,null,null,null,null,null,null,null,{"$f":"AP468+AP469","v":0},null,null,null,null,null,null,null,null,{"$f":"AY468+AY469","v":0},null,null,null,null,null,null,null,0]
[null,null,null,null,null,null,"            3.8.1.1 pe perioada de execuţie a lucrărilor",null,null,null,null,null,null,null,null,null,null,null,null,null,null,null,null,null,null,null,null,null,null,null,null,null,null,null,null,null,null,null,null,null,null,null,null,null,null,null,null,null,null,null,null,null,null,null,null,null,null,null,0]
[null,null,null,null,null,null,"            3.8.1.2 pentru participarea proiectantului la fazele incluse în programul de control al\n                        lucrărilor de execuţie, avizat de către Inspectoratul de Stat în Construcţii",null,null,null,null,null,null,null,null,null,null,null,null,null,null,null,null,null,null,null,null,null,null,null,null,null,null,null,null,null,null,null,null,null,null,null,null,null,null,null,null,null,null,null,null,null,null,null,null,null,null,null,0]
[null,null,null,null,null,null,"      3.8.2 Dirigenţie de şantier",null,null,null,null,null,null,null,null,null,null,null,null,null,null,null,null,null,null,null,null,null,null,null,null,null,null,null,null,null,null,null,null,null,null,null,null,null,null,null,null,null,null,null,null,null,null,null,null,null,null,null,0]
[null,null,null,null,null,null,"Verificare încadrare cheltuieli capitolul 3",null,null,null,null,null,null,null,null,null,null,null,null,null,null,null,null,null,null,null,null,null,null,null,null,null,null,null,null,null,null,null,{"$f":"AP441+AP446+AP472","v":0},{"$f":"IF(AM471=0,0,AO471)","v":0},null,"verificarea se face in Totalizator"]
[null,null,null,null,null,null,"Capitolul 4 Cheltuieli pentru investiţia de bază - total, din care:",null,null,null,null,null,null,null,null,null,null,null,null,null,null,null,null,null,null,null,null,null,null,null,null,null,null,null,null,null,null,null,null,null,null,{"$f":"AP473+AP480","v":0},null,null,null,null,null,null,null,null,{"$f":"AY473+AY480","v":0},null,null,null,null,null,null,null,{"$f":"SUM(AP472:BF472)","v":0}]
[null,null,null,null,null,null,"A - Constructii şi lucrări de intervenţii - total, din care:",null,null,null,null,null,null,null,null,null,null,null,null,null,null,null,null,null,null,null,null,null,null,null,null,null,null,null,null,null,null,null,null,null,null,{"$f":"SUM(AP474:AX479)","v":0},null,null,null,null,null,null,null,null,{"$f":"SUM(AY474:BF479)","v":0},null,null,null,null,null,null,null,0]
[null,null,null,null,null,null,"4.1 Construcţii şi instalaţii",null,null,null,null,null,null,null,null,null,null,null,null,null,null,null,null,null,null,null,null,null,null,null,null,null,null,null,null,null,null,null,null,null,null,null,null,null,null,null,null,null,null,null,null,null,null,null,null,null,null,null,0]
[null,null,null,null,null,null,"4.2 Montaj utilaje, echipamente tehnologice şi funcţionale",null,null,null,null,null,null,null,null,null,null,null,null,null,null,null,null,null,null,null,null,null,null,null,null,null,null,null,null,null,null,null,null,null,null,null,null,null,null,null,null,null,null,null,null,null,null,null,null,null,null,null,0]
[null,null,null,null,null,null,"4.3 Utilaje, echipamente tehnologice şi funcţionale care necesită montaj",null,null,null,null,null,null,null,null,null,null,null,null,null,null,null,null,null,null,null,null,null,null,null,null,null,null,null,null,null,null,null,null,null,null,null,null,null,null,null,null,null,null,null,null,null,null,null,null,null,null,null,0]
[null,null,null,null,null,null,"4.4 Utilaje, echipamente tehnologice şi funcţionale care nu necesită montaj şi echipamente",null,null,null,null,null,null,null,null,null,null,null,null,null,null,null,null,null,null,null,null,null,null,null,null,null,null,null,null,null,null,null,null,null,null,null,null,null,null,null,null,null,null,null,null,null,null,null,null,null,null,null,0]
[null,null,null,null,null,null,"4.5 Dotări",null,null,null,null,null,null,null,null,null,null,null,null,null,null,null,null,null,null,null,null,null,null,null,null,null,null,null,null,null,null,null,null,null,null,null,null,null,null,null,null,null,null,null,null,null,null,null,null,null,null,null,0]
[null,null,null,null,null,null,"4.6 Active necorporale",null,null,null,null,null,null,null,null,null,null,null,null,null,null,null,null,null,null,null,null,null,null,null,null,null,null,null,null,null,null,null,null,null,null,null,null,null,null,null,null,null,null,null,null,null,null,null,null,null,null,null,0]
[null,null,null,null,null,null,"B - Cheltuieli pentru investitii în culturi/plantaţii",null,null,null,null,null,null,null,null,null,null,null,null,null,null,null,null,null,null,null,null,null,null,null,null,null,null,null,null,null,null,null,null,null,null,{"$f":"SUM(AP481:AX485)","v":0},null,null,null,null,null,null,null,null,{"$f":"SUM(AY481:BF485)","v":0},null,null,null,null,null,null,null,0]
[null,null,null,null,null,null,"Subcapitol 1 - Lucrări de pregătire a terenului",null,null,null,null,null,null,null,null,null,null,null,null,null,null,null,null,null,null,null,null,null,null,null,null,null,null,null,null,null,null,null,null,null,null,null,null,null,null,null,null,null,null,null,null,null,null,null,null,null,null,null,0]
[null,null,null,null,null,null,"Subcapitol 2 - Infiinţarea plantaţiei",null,null,null,null,null,null,null,null,null,null,null,null,null,null,null,null,null,null,null,null,null,null,null,null,null,null,null,null,null,null,null,null,null,null,null,null,null,null,null,null,null,null,null,null,null,null,null,null,null,null,null,0]
[null,null,null,null,null,null,"Subcapitol 3 - Intreţinere plantaţie în anul 1",null,null,null,null,null,null,null,null,null,null,null,null,null,null,null,null,null,null,null,null,null,null,null,null,null,null,null,null,null,null,null,null,null,null,null,null,null,null,null,null,null,null,null,null,null,null,null,null,null,null,null,0]
[null,null,null,null,null,null,"Subcapitol 4 - Intreţinere plantaţie în anul 2",null,null,null,null,null,null,null,null,null,null,null,null,null,null,null,null,null,null,null,null,null,null,null,null,null,null,null,null,null,null,null,null,null,null,null,null,null,null,null,null,null,null,null,null,null,null,null,null,null,null,null,0]
[null,null,null,null,null,null,"Subcapitol 5 - Instalat sistem susţinere şi împrejmuire",null,null,null,null,null,null,null,null,null,null,null,null,null,null,null,null,null,null,null,null,null,null,null,null,null,null,null,null,null,null,null,null,null,null,null,null,null,null,null,null,null,null,null,null,null,null,null,null,null,null,null,0]
[null,null,null,null,null,null,"Capitolul 5 Alte cheltuieli - total, din care:",null,null,null,null,null,null,null,null,null,null,null,null,null,null,null,null,null,null,null,null,null,null,null,null,null,null,null,null,null,null,null,null,null,null,{"$f":"AP487+AP490+AP496","v":0},null,null,null,null,null,null,null,null,{"$f":"AY487+AY490+AY496+AY497","v":0},null,null,null,null,null,null,null,0]
[null,null,null,null,null,null,"5.1 Organizare de şantier",null,null,null,null,null,null,null,null,null,null,null,null,null,null,null,null,null,null,null,null,null,null,null,null,null,null,null,null,null,null,null,null,null,null,{"$f":"SUM(AP488:AX489)","v":0},null,null,null,null,null,null,null,null,{"$f":"SUM(AY488:BF489)","v":0},null,null,null,null,null,null,null,0]
[null,null,null,null,null,null,"      5.1.1 lucrări de construcţii şi instalaţii aferente organizării de şantier",null,null,null,null,null,null,null,null,null,null,null,null,null,null,null,null,null,null,null,null,null,null,null,null,null,null,null,null,null,null,null,null,null,null,null,null,null,null,null,null,null,null,null,null,null,null,null,null,null,null,null,0]
[null,null,null,null,null,null,"      5.1.2 cheltuieli conexe orgănizării şantierului",null,null,null,null,null,null,null,null,null,null,null,null,null,null,null,null,null,null,null,null,null,null,null,null,null,null,null,null,null,null,null,null,null,null,null,null,null,null,null,null,null,null,null,null,null,null,null,null,null,null,null,0]
[null,null,null,null,null,null,"5.2 Comisioane, taxe, costul creditului",null,null,null,null,null,null,null,null,null,null,null,null,null,null,null,null,null,null,null,null,null,null,null,null,null,null,null,null,null,null,null,null,null,null,{"$f":"SUM(AP491:AX495)","v":0},null,null,null,null,null,null,null,null,{"$f":"SUM(AY491:BF495)","v":0},null,null,null,null,null,null,null,0]
[null,null,null,null,null,null,"      5.2.1 Comisioanele şi dobânzile aferente creditului băncii finanţatoare",null,null,null,null,null,null,null,null,null,null,null,null,null,null,null,null,null,null,null,null,null,null,null,null,null,null,null,null,null,null,null,null,null,null,null,null,null,null,null,null,null,null,null,null,null,null,null,null,null,null,null,0]
[null,null,null,null,null,null,"      5.2.2 Cota aferentă ISC pentru controlul calităţii lucrărilor de construcţii",null,null,null,null,null,null,null,null,null,null,null,null,null,null,null,null,null,null,null,null,null,null,null,null,null,null,null,null,null,null,null,null,null,null,null,null,null,null,null,null,null,null,null,null,null,null,null,null,null,null,null,0]
[null,null,null,null,null,null,"      5.2.3 Cota aferentă ISC pentru controlul statului în amenajarea teritoriului, urbanism şi\n               pentru autorizarea lucrărilor de construcţii",null,null,null,null,null,null,null,null,null,null,null,null,null,null,null,null,null,null,null,null,null,null,null,null,null,null,null,null,null,null,null,null,null,null,null,null,null,null,null,null,null,null,null,null,null,null,null,null,null,null,null,0]
[null,null,null,null,null,null,"      5.2.4 Cota aferentă Casei Sociale a Constructorilor - CSC",null,null,null,null,null,null,null,null,null,null,null,null,null,null,null,null,null,null,null,null,null,null,null,null,null,null,null,null,null,null,null,null,null,null,null,null,null,null,null,null,null,null,null,null,null,null,null,null,null,null,null,0]
[null,null,null,null,null,null,"      5.2.5 Taxe pentru acorduri, avize conforme şi autorizaţia de construire/ desfiinţare",null,null,null,null,null,null,null,null,null,null,null,null,null,null,null,null,null,null,null,null,null,null,null,null,null,null,null,null,null,null,null,null,null,null,null,null,null,null,null,null,null,null,null,null,null,null,null,null,null,null,null,0]
[null,null,null,null,null,null,"5.3 Cheltuieli diverse şi neprevăzute",null,null,null,null,null,null,null,null,null,null,null,null,null,null,null,null,null,null,null,null,null,null,null,null,null,null,null,null,null,null,null,null,null,null,null,null,null,null,null,null,null,null,null,null,null,null,null,null,null,null,null,0]
[null,null,null,null,null,null,"5.4 Cheltuieli pentru informare şi publicitate",null,null,null,null,null,null,null,null,null,null,null,null,null,null,null,null,null,null,null,null,null,null,null,null,null,null,null,null,null,null,null,null,null,null,null,null,null,null,null,null,null,null,null,null,null,null,null,null,null,null,null,0]
[null,null,null,null,null,null,"Procent cheltuieli diverse şi neprevăzute"]
[null,null,null,null,null,null,"Capitolul 6 Cheltuieli pentru darea în exploatare - total, din care:",null,null,null,null,null,null,null,null,null,null,null,null,null,null,null,null,null,null,null,null,null,null,null,null,null,null,null,null,null,null,null,null,null,null,{"$f":"SUM(AP500:AX501)","v":0},null,null,null,null,null,null,null,null,{"$f":"SUM(AY500:BF501)","v":0},null,null,null,null,null,null,null,{"$f":"SUM(AP499:BF499)","v":0}]
[null,null,null,null,null,null,"6.1 Pregătirea personalului de exploatare",null,null,null,null,null,null,null,null,null,null,null,null,null,null,null,null,null,null,null,null,null,null,null,null,null,null,null,null,null,null,null,null,null,null,null,null,null,null,null,null,null,null,null,null,null,null,null,null,null,null,null,0]
[null,null,null,null,null,null,"6.2 Probe tehnologice şi teste",null,null,null,null,null,null,null,null,null,null,null,null,null,null,null,null,null,null,null,null,null,null,null,null,null,null,null,null,null,null,null,null,null,null,null,null,null,null,null,null,null,null,null,null,null,null,null,null,null,null,null,0]
[null,null,null,null,null,null,"TOTAL GENERAL",null,null,null,null,null,null,null,null,null,null,null,null,null,null,null,null,null,null,null,null,null,null,null,null,null,null,null,null,null,null,null,null,null,null,{"$f":"AP441+AP446+AP447+AP472+AP486+AP499","v":0},null,null,null,null,null,null,null,null,{"$f":"AY441+AY446+AY447+AY472+AY486+AY499","v":0},null,null,null,null,null,null,null,0]
[null,null,null,null,null,null,"Verificare actualizare",null,null,null,null,null,null,null,null,null,null,null,null,null,null,null,null,null,null,null,null,null,null,null,null,null,null,null,null,null,null,{"$f":"AP504*100/AP502","v":{"$error":"#DIV/0!"}},null,null,{"$f":"IF(AP502=0,0,AL503)","v":0},{"$f":"IF(AO503<=5,\"actualizare mai mică de 5% din valoarea eligibila\",\"actualizare mai mare de 5% din valoarea eligibila\")","v":"actualizare mai mică de 5% din valoarea eligibila"}]
[null,null,null,null,null,null,"ACTUALIZARE Cheltuieli Eligibile (max 5%)",null,null,null,null,null,null,null,null,null,null,null,null,null,null,null,null,null,null,null,null,null,null,null,null,null,null,null,null,null,null,null,null,null,null,null,null,null,null,null,null,null,null,null,null,null,null,null,null,null,null,null,{"$f":"SUM(AP504:BF504)","v":0}]
[null,null,null,null,null,null,"TOTAL GENERAL CU ACTUALIZARE",null,null,null,null,null,null,null,null,null,null,null,null,null,null,null,null,null,null,null,null,null,null,null,null,null,null,null,null,null,null,null,null,null,null,{"$f":"AP502+AP504","v":0},null,null,null,null,null,null,null,null,{"$f":"AY502","v":0},null,null,null,null,null,null,null,0]
[null,null,null,null,null,null,"Valoare TVA",null,null,null,null,null,null,null,null,null,null,null,null,null,null,null,null,null,null,null,null,null,null,null,null,null,null,null,null,null,null,null,null,null,null,null,null,null,null,null,null,null,null,null,null,null,null,null,null,null,null,null,0]
[null,null,null,null,null,null,"TOTAL GENERAL inclusiv TVA",null,null,null,null,null,null,null,null,null,null,null,null,null,null,null,null,null,null,null,null,null,null,null,null,null,null,null,null,null,null,null,null,null,null,{"$f":"BG505+BG506","v":0}]
[null,null,null,null,null,null,null,null,null,null,null,null,null,null,null,null,null,null,null,null,null,null,null,null,null,null,null,null,null,null,null,null,null,null,null,null,null,null,null,null,null,"LEI",null,null,null,null,null,null,null,null,"EURO"]
[null,null,null,null,null,null,"VALOARE TOTALĂ",null,null,null,null,null,null,null,null,null,null,null,null,null,null,null,null,null,null,null,null,null,null,null,null,null,null,null,null,null,null,null,null,null,null,{"$f":"AY509*AF435","v":0},null,null,null,null,null,null,null,null,{"$f":"AP507","v":0}]
[null,null,null,null,null,null,"VALOARE ELIGIBILĂ",null,null,null,null,null,null,null,null,null,null,null,null,null,null,null,null,null,null,null,null,null,null,null,null,null,null,null,null,null,null,null,null,null,null,{"$f":"AY510*AF435","v":0},null,null,null,null,null,null,null,null,{"$f":"AP505+AP506","v":0}]
[null,null,null,null,null,null,"VALOARE NEELIGIBILĂ",null,null,null,null,null,null,null,null,null,null,null,null,null,null,null,null,null,null,null,null,null,null,null,null,null,null,null,null,null,null,null,null,null,null,{"$f":"AY511*AF435","v":0},null,null,null,null,null,null,null,null,{"$f":"AY505+AY506","v":0}]
[null,null,null,null,null,null,"Plan Financiar",null,null,null,null,null,null,null,null,null,null,null,null,null,null,null,null,null,null,null,null,null,null,null,null,null,null,null,null,null,null,null,null,null,null,"Cheltuieli eligibile EURO",null,null,null,null,null,null,null,null,"Cheltuieli neeligibile EURO",null,null,null,null,null,null,null,"Total"]
[null,null,null,null,null,null,"Ajutor public nerambursabil (contribuţie UE şi cofinanţare naţională)",null,null,null,null,null,null,null,null,null,null,null,null,null,null,null,null,null,null,null,null,null,null,null,null,null,null,null,null,null,null,null,null,null,null,null,null,null,null,null,null,null,null,null,null,null,null,null,null,null,null,null,{"$f":"SUM(AP513:BF513)","v":0}]
[null,null,null,null,null,null,"Cofinantare privata, din care:",null,null,null,null,null,null,null,null,null,null,null,null,null,null,null,null,null,null,null,null,null,null,null,null,null,null,null,null,null,null,null,null,null,null,{"$f":"SUM(AP515:AX517)","v":0},null,null,null,null,null,null,null,null,{"$f":"SUM(AY515:BF517)","v":0},null,null,null,null,null,null,null,0]
[null,null,null,null,null,null,null,null,null,null,null,null,null,null,null,null,null,null,null,null,null,"- contributia in natura",null,null,null,null,null,null,null,null,null,null,null,null,null,null,null,null,null,null,null,null,null,null,null,null,null,null,null,null,null,null,null,null,null,null,null,null,0]
[null,null,null,null,null,null,null,null,null,null,null,null,null,null,null,null,null,null,null,null,null,"- autofinanțare",null,null,null,null,null,null,null,null,null,null,null,null,null,null,null,null,null,null,null,null,null,null,null,null,null,null,null,null,null,null,null,null,null,null,null,null,0]
[null,null,null,null,null,null,null,null,null,null,null,null,null,null,null,null,null,null,null,null,null,"- împrumuturi",null,null,null,null,null,null,null,null,null,null,null,null,null,null,null,null,null,null,null,null,null,null,null,null,null,null,null,null,null,null,null,null,null,null,null,null,0]
[null,null,null,null,null,null,"TOTAL PROIECT",null,null,null,null,null,null,null,null,null,null,null,null,null,null,null,null,null,null,null,null,null,null,null,null,null,null,null,null,null,null,null,null,null,null,{"$f":"AP513+AP514","v":0},null,null,null,null,null,null,null,null,{"$f":"AY514","v":0},null,null,null,null,null,null,null,0]
[null,null,null,null,null,null,"Procent contribuţie publică",null,null,null,null,null,null,null,null,null,null,null,null,null,null,null,null,null,null,null,null,null,null,null,null,null,null,null,null,null,null,null,null,{"$f":"AP513*100/AP518","v":{"$error":"#DIV/0!"}},{"$f":"IF(AP518=0,0,AN519)","v":0},{"$f":"AO519","v":0},null,null,null,null,null,null,null,"%"]
[null,null,null,null,null,null,"Avans solicitat"]
[null,null,null,null,null,null,"Procent avans solicitat ca procent din ajutorul public nerambursabil",null,null,null,null,null,null,null,null,null,null,null,null,null,null,null,null,null,null,null,null,null,null,null,null,null,null,null,null,null,null,null,null,null,{"$f":"AP520*100/AP513","v":{"$error":"#DIV/0!"}},{"$f":"IF(AP513=0,0,AO521)","v":0},null,null,null,null,null,null,null,null,{"$f":"IF(AP521<=50,\"Suma avans mai mica de 50% din ajutorul public\",\"Suma avans mai mare de 50% din ajutorul public\")","v":"Suma avans mai mica de 50% din ajutorul public"}]
[null,null,null,null,null,null,null,"BUGET INDICATIV TOTALIZATOR HG 907"]
[null,null,null,null,null,null,"MINISTERUL AGRICULTURII ŞI DEZVOLTĂRII RURALE"]
[null,null,null,null,null,null,"AGENŢIA PENTRU FINANŢAREA INVESTIŢIILOR RURALE"]
[]
[]
[null,null,null,null,null,null,null,null,null,null,null,null,null,null,null,null,null,null,null,null,null,null,null,null,null,"Curs EURO",null,null,null,null,null,null,null,null,null,null,null,null,null,null,null,"Data întocmirii Studiului de Fezabilitate"]
[]
[null,null,null,null,null,null,"Submăsura",null,null,null,null,null,null,null,null,null,null,null,null,null,null,null,null,null,null,null,null,null,null,null,null,null,null,null,null,null,null,null,null,null,null,"4.1"]
[null,null,null,null,null,null,"Denumirea capitolelor de cheltuieli",null,null,null,null,null,null,null,null,null,null,null,null,null,null,null,null,null,null,null,null,null,null,null,null,null,null,null,null,null,null,null,null,null,null,"Cheltuieli eligibile",null,null,null,null,null,null,null,null,"Cheltuieli neeligibile",null,null,null,null,null,null,null,"Total"]
[null,null,null,null,null,null,null,null,null,null,null,null,null,null,null,null,null,null,null,null,null,null,null,null,null,null,null,null,null,null,null,null,null,null,null,null,null,null,null,null,null,"EURO",null,null,null,null,null,null,null,null,"EURO",null,null,null,null,null,null,null,"EURO"]
[null,null,null,null,null,null,1,null,null,null,null,null,null,null,null,null,null,null,null,null,null,null,null,null,null,null,null,null,null,null,null,null,null,null,null,null,null,null,null,null,null,2,null,null,null,null,null,null,null,null,3,null,null,null,null,null,null,null,4]
[null,null,null,null,null,null,"Capitolul 1 Cheltuieli pentru obtinerea şi amenajarea terenului - total, din care:",null,null,null,null,null,null,null,null,null,null,null,null,null,null,null,null,null,null,null,null,null,null,null,null,null,null,null,null,null,null,null,null,null,null,{"$f":"SUM(AP535:AX537)","v":0},null,null,null,null,null,null,null,null,{"$f":"SUM(AY534:BF537)","v":0},null,null,null,null,null,null,null,{"$f":"SUM(AP533:BF533)","v":0}]
[null,null,null,null,null,null,"1.1 Obţinerea terenului",null,null,null,null,null,null,null,null,null,null,null,null,null,null,null,null,null,null,null,null,null,null,null,null,null,null,null,null,null,null,null,null,null,null,null,null,null,null,null,null,null,null,null,{"$f":"AY257+AY350+AY442","v":0},null,null,null,null,null,null,null,{"$f":"SUM(AP534:BF534)","v":0}]
[null,null,null,null,null,null,"1.2 Amenajarea terenului",null,null,null,null,null,null,null,null,null,null,null,null,null,null,null,null,null,null,null,null,null,null,null,null,null,null,null,null,null,null,null,null,null,null,{"$f":"AP258+AP351+AP443","v":0},null,null,null,null,null,null,null,null,{"$f":"AY258+AY351+AY443","v":0},null,null,null,null,null,null,null,0]
[null,null,null,null,null,null,"1.3 Amenajari pentru protecţia mediului şi aducerea la starea iniţială",null,null,null,null,null,null,null,null,null,null,null,null,null,null,null,null,null,null,null,null,null,null,null,null,null,null,null,null,null,null,null,null,null,null,{"$f":"AP259+AP352+AP444","v":0},null,null,null,null,null,null,null,null,{"$f":"AY259+AY352+AY444","v":0},null,null,null,null,null,null,null,0]
[null,null,null,null,null,null,"1.4 Cheltuieli pentru relocarea/protecţia utilităţilor",null,null,null,null,null,null,null,null,null,null,null,null,null,null,null,null,null,null,null,null,null,null,null,null,null,null,null,null,null,null,null,null,null,null,0,null,null,null,null,null,null,null,null,0,null,null,null,null,null,null,null,0]
[null,null,null,null,null,null,"Capitolul 2 Cheltuieli pentru asigurarea utilităţilor necesare obiectivului de investiţii",null,null,null,null,null,null,null,null,null,null,null,null,null,null,null,null,null,null,null,null,null,null,null,null,null,null,null,null,null,null,null,null,null,null,0,null,null,null,null,null,null,null,null,0,null,null,null,null,null,null,null,0]
[null,null,null,null,null,null,"Capitolul 3 Cheltuieli pentru proiectare şi asistenţă tehnică - total, din care:",null,null,null,null,null,null,null,null,null,null,null,null,null,null,null,null,null,null,null,null,null,null,null,null,null,null,null,null,null,null,null,null,null,null,{"$f":"AP540+AP544+AP545+AP546+AP547+AP554+AP555+AP558","v":0},null,null,null,null,null,null,null,null,{"$f":"AY540+AY544+AY545+AY546+AY547+AY554+AY555+AY558","v":0},null,null,null,null,null,null,null,0]
[null,null,null,null,null,null,"3.1 Studii",null,null,null,null,null,null,null,null,null,null,null,null,null,null,null,null,null,null,null,null,null,null,null,null,null,null,null,null,null,null,null,null,null,null,{"$f":"AP541+AP542+AP543","v":0},null,null,null,null,null,null,null,null,{"$f":"AY541+AY542+AY543","v":0},null,null,null,null,null,null,null,0]
[null,null,null,null,null,null,"       3.1.1 Studii de teren",null,null,null,null,null,null,null,null,null,null,null,null,null,null,null,null,null,null,null,null,null,null,null,null,null,null,null,null,null,null,null,null,null,null,{"$f":"AP264+AP357+AP449","v":0},null,null,null,null,null,null,null,null,{"$f":"AY264+AY357+AY449","v":0},null,null,null,null,null,null,null,0]
[null,null,null,null,null,null,"       3.1.2 Raport privind impactul asupra mediului",null,null,null,null,null,null,null,null,null,null,null,null,null,null,null,null,null,null,null,null,null,null,null,null,null,null,null,null,null,null,null,null,null,null,0,null,null,null,null,null,null,null,null,0,null,null,null,null,null,null,null,0]
[null,null,null,null,null,null,"       3.1.3 Alte studii specifice",null,null,null,null,null,null,null,null,null,null,null,null,null,null,null,null,null,null,null,null,null,null,null,null,null,null,null,null,null,null,null,null,null,null,0,null,null,null,null,null,null,null,null,0,null,null,null,null,null,null,null,0]
[null,null,null,null,null,null,"3.2 Documentaţii-suport şi cheltuieli pentru obţinerea de avize, acorduri şi autorizaţii",null,null,null,null,null,null,null,null,null,null,null,null,null,null,null,null,null,null,null,null,null,null,null,null,null,null,null,null,null,null,null,null,null,null,0,null,null,null,null,null,null,null,null,0,null,null,null,null,null,null,null,0]
[null,null,null,null,null,null,"3.3 Expertizare tehnică",null,null,null,null,null,null,null,null,null,null,null,null,null,null,null,null,null,null,null,null,null,null,null,null,null,null,null,null,null,null,null,null,null,null,0,null,null,null,null,null,null,null,null,0,null,null,null,null,null,null,null,0]
[null,null,null,null,null,null,"3.4 Certificarea performanţei energetice şi auditul energetic al clădirilor",null,null,null,null,null,null,null,null,null,null,null,null,null,null,null,null,null,null,null,null,null,null,null,null,null,null,null,null,null,null,null,null,null,null,0,null,null,null,null,null,null,null,null,0,null,null,null,null,null,null,null,0]
[null,null,null,null,null,null,"3.5 Proiectare",null,null,null,null,null,null,null,null,null,null,null,null,null,null,null,null,null,null,null,null,null,null,null,null,null,null,null,null,null,null,null,null,null,null,{"$f":"SUM(AP548:AX553)","v":0},null,null,null,null,null,null,null,null,{"$f":"SUM(AY548:BF553)","v":0},null,null,null,null,null,null,null,0]
[null,null,null,null,null,null,"      3.5.1 Temă de proiectare",null,null,null,null,null,null,null,null,null,null,null,null,null,null,null,null,null,null,null,null,null,null,null,null,null,null,null,null,null,null,null,null,null,null,0,null,null,null,null,null,null,null,null,0,null,null,null,null,null,null,null,0]
[null,null,null,null,null,null,"      3.5.2 Studiu de prefezabilitate",null,null,null,null,null,null,null,null,null,null,null,null,null,null,null,null,null,null,null,null,null,null,null,null,null,null,null,null,null,null,null,null,null,null,0,null,null,null,null,null,null,null,null,0,null,null,null,null,null,null,null,0]
[null,null,null,null,null,null,"      3.5.3. Studiu de fezabilitate/documentaţie de avizare a lucrărilor de intervenţii\n                şi deviz general",null,null,null,null,null,null,null,null,null,null,null,null,null,null,null,null,null,null,null,null,null,null,null,null,null,null,null,null,null,null,null,null,null,null,0,null,null,null,null,null,null,null,null,0,null,null,null,null,null,null,null,0]
[null,null,null,null,null,null,"      3.5.4. Documentaţiile tehnice necesare în vederea obţinerii avizelor/\n                acordurilor/autorizaţiilor",null,null,null,null,null,null,null,null,null,null,null,null,null,null,null,null,null,null,null,null,null,null,null,null,null,null,null,null,null,null,null,null,null,null,0,null,null,null,null,null,null,null,null,0,null,null,null,null,null,null,null,0]
[null,null,null,null,null,null,"      3.5.5. Verificarea tehnică de calitate a proiectului tehnic şi a detaliilor de execuţie",null,null,null,null,null,null,null,null,null,null,null,null,null,null,null,null,null,null,null,null,null,null,null,null,null,null,null,null,null,null,null,null,null,null,0,null,null,null,null,null,null,null,null,0,null,null,null,null,null,null,null,0]
[null,null,null,null,null,null,"      3.5.6. Proiect tehnic şi detalii de execuţie",null,null,null,null,null,null,null,null,null,null,null,null,null,null,null,null,null,null,null,null,null,null,null,null,null,null,null,null,null,null,null,null,null,null,0,null,null,null,null,null,null,null,null,0,null,null,null,null,null,null,null,0]
[null,null,null,null,null,null,"3.6 Organizarea procedurilor de achiziţie",null,null,null,null,null,null,null,null,null,null,null,null,null,null,null,null,null,null,null,null,null,null,null,null,null,null,null,null,null,null,null,null,null,null,null,null,null,null,null,null,null,null,null,0,null,null,null,null,null,null,null,0]
[null,null,null,null,null,null,"3.7 Consultanţă",null,null,null,null,null,null,null,null,null,null,null,null,null,null,null,null,null,null,null,null,null,null,null,null,null,null,null,null,null,null,null,null,null,null,{"$f":"AP556","v":0},null,null,null,null,null,null,null,null,{"$f":"AY556+AY557","v":0},null,null,null,null,null,null,null,0]
[null,null,null,null,null,null,"      3.7.1 Managementul de proiect pentru obiectivul de investiţii",null,null,null,null,null,null,null,null,null,null,null,null,null,null,null,null,null,null,null,null,null,null,null,null,null,null,null,null,null,null,null,null,null,null,{"$f":"AP279+AP372+AP464","v":0},null,null,null,null,null,null,null,null,0,null,null,null,null,null,null,null,0]
[null,null,null,null,null,null,"      3.7.2 Auditul financiar",null,null,null,null,null,null,null,null,null,null,null,null,null,null,null,null,null,null,null,null,null,null,null,null,null,null,null,null,null,null,null,null,null,null,null,null,null,null,null,null,null,null,null,0,null,null,null,null,null,null,null,0]
[null,null,null,null,null,null,"3.8 Asistenţă Tehnică",null,null,null,null,null,null,null,null,null,null,null,null,null,null,null,null,null,null,null,null,null,null,null,null,null,null,null,null,null,null,null,null,null,null,{"$f":"AP559+AP562","v":0},null,null,null,null,null,null,null,null,{"$f":"AY559+AY562","v":0},null,null,null,null,null,null,null,0]
[null,null,null,null,null,null,"      3.8.1 Asistenţă Tehnică din partea proiectantului",null,null,null,null,null,null,null,null,null,null,null,null,null,null,null,null,null,null,null,null,null,null,null,null,null,null,null,null,null,null,null,null,null,null,{"$f":"AP560+AP561","v":0},null,null,null,null,null,null,null,null,{"$f":"AY560+AY561","v":0},null,null,null,null,null,null,null,0]
[null,null,null,null,null,null,"           3.8.1.1 pe perioada de execuţie a lucrărilor",null,null,null,null,null,null,null,null,null,null,null,null,null,null,null,null,null,null,null,null,null,null,null,null,null,null,null,null,null,null,null,null,null,null,{"$f":"AP283+AP376+AP468","v":0},null,null,null,null,null,null,null,null,{"$f":"AY283+AY376+AY468","v":0},null,null,null,null,null,null,null,0]
[null,null,null,null,null,null,"           3.8.1.2 pentru participarea proiectantului la fazele incluse în programul de control al\n                       lucrărilor de execuţie, avizat de către Inspectoratul de Stat în Construcţii",null,null,null,null,null,null,null,null,null,null,null,null,null,null,null,null,null,null,null,null,null,null,null,null,null,null,null,null,null,null,null,null,null,null,0,null,null,null,null,null,null,null,null,0,null,null,null,null,null,null,null,0]
[null,null,null,null,null,null,"      3.8.2 Dirigenţie de şantier",null,null,null,null,null,null,null,null,null,null,null,null,null,null,null,null,null,null,null,null,null,null,null,null,null,null,null,null,null,null,null,null,null,null,0,null,null,null,null,null,null,null,null,0,null,null,null,null,null,null,null,0]
[null,null,null,null,null,null,"Verificare încadrare cheltuieli capitolul 3",null,null,null,null,null,null,null,null,null,null,null,null,null,null,null,null,null,null,null,null,null,null,null,null,null,null,null,null,null,null,null,{"$f":"AP533+AP538+AP564","v":0},{"$f":"IF(AM563=0,0,AO563)","v":0}]
[null,null,null,null,null,null,"Capitolul 4 Cheltuieli pentru investiţia de bază - total, din care:",null,null,null,null,null,null,null,null,null,null,null,null,null,null,null,null,null,null,null,null,null,null,null,null,null,null,null,null,null,null,null,null,null,null,{"$f":"AP565+AP572","v":0},null,null,null,null,null,null,null,null,{"$f":"AY565+AY572","v":0},null,null,null,null,null,null,null,{"$f":"SUM(AP564:BF564)","v":0}]
[null,null,null,null,null,null,"A - Constructii şi lucrări de intervenţii - total, din care:",null,null,null,null,null,null,null,null,null,null,null,null,null,null,null,null,null,null,null,null,null,null,null,null,null,null,null,null,null,null,null,null,null,null,{"$f":"SUM(AP566:AX571)","v":0},null,null,null,null,null,null,null,null,{"$f":"SUM(AY566:BF571)","v":0},null,null,null,null,null,null,null,0]
[null,null,null,null,null,null,"4.1 Construcţii şi instalaţii",null,null,null,null,null,null,null,null,null,null,null,null,null,null,null,null,null,null,null,null,null,null,null,null,null,null,null,null,null,null,null,null,null,null,{"$f":"AP289+AP382+AP474","v":0},null,null,null,null,null,null,null,null,{"$f":"AY289+AY382+AY474","v":0},null,null,null,null,null,null,null,0]
[null,null,null,null,null,null,"4.2 Montaj utilaje, echipamente tehnologice şi funcţionale",null,null,null,null,null,null,null,null,null,null,null,null,null,null,null,null,null,null,null,null,null,null,null,null,null,null,null,null,null,null,null,null,null,null,0,null,null,null,null,null,null,null,null,0,null,null,null,null,null,null,null,0]
[null,null,null,null,null,null,"4.3 Utilaje, echipamente tehnologice şi funcţionale care necesită montaj",null,null,null,null,null,null,null,null,null,null,null,null,null,null,null,null,null,null,null,null,null,null,null,null,null,null,null,null,null,null,null,null,null,null,0,null,null,null,null,null,null,null,null,0,null,null,null,null,null,null,null,0]
[null,null,null,null,null,null,"4.4 Utilaje, echipamente tehnologice şi funcţionale care nu necesită montaj\n      şi echipamente",null,null,null,null,null,null,null,null,null,null,null,null,null,null,null,null,null,null,null,null,null,null,null,null,null,null,null,null,null,null,null,null,null,null,0,null,null,null,null,null,null,null,null,0,null,null,null,null,null,null,null,0]
[null,null,null,null,null,null,"4.5 Dotări",null,null,null,null,null,null,null,null,null,null,null,null,null,null,null,null,null,null,null,null,null,null,null,null,null,null,null,null,null,null,null,null,null,null,0,null,null,null,null,null,null,null,null,0,null,null,null,null,null,null,null,0]
[null,null,null,null,null,null,"4.6 Active necorporale",null,null,null,null,null,null,null,null,null,null,null,null,null,null,null,null,null,null,null,null,null,null,null,null,null,null,null,null,null,null,null,null,null,null,0,null,null,null,null,null,null,null,null,0,null,null,null,null,null,null,null,0]
[null,null,null,null,null,null,"B - Cheltuieli pentru investitii în culturi/plantaţii",null,null,null,null,null,null,null,null,null,null,null,null,null,null,null,null,null,null,null,null,null,null,null,null,null,null,null,null,null,null,null,null,null,null,{"$f":"SUM(AP573:AX577)","v":0},null,null,null,null,null,null,null,null,{"$f":"SUM(AY573:BF577)","v":0},null,null,null,null,null,null,null,0]
[null,null,null,null,null,null,"Subcapitol 1 - Lucrări de pregătire a terenului",null,null,null,null,null,null,null,null,null,null,null,null,null,null,null,null,null,null,null,null,null,null,null,null,null,null,null,null,null,null,null,null,null,null,0,null,null,null,null,null,null,null,null,0,null,null,null,null,null,null,null,0]
[null,null,null,null,null,null,"Subcapitol 2 - Infiinţarea plantaţiei",null,null,null,null,null,null,null,null,null,null,null,null,null,null,null,null,null,null,null,null,null,null,null,null,null,null,null,null,null,null,null,null,null,null,0,null,null,null,null,null,null,null,null,0,null,null,null,null,null,null,null,0]
[null,null,null,null,null,null,"Subcapitol 3 - Intreţinere plantaţie în anul 1",null,null,null,null,null,null,null,null,null,null,null,null,null,null,null,null,null,null,null,null,null,null,null,null,null,null,null,null,null,null,null,null,null,null,null,null,null,null,null,null,null,null,null,0,null,null,null,null,null,null,null,0]
[null,null,null,null,null,null,"Subcapitol 4 - Intreţinere plantaţie în anul 2",null,null,null,null,null,null,null,null,null,null,null,null,null,null,null,null,null,null,null,null,null,null,null,null,null,null,null,null,null,null,null,null,null,null,null,null,null,null,null,null,null,null,null,0,null,null,null,null,null,null,null,0]
[null,null,null,null,null,null,"Subcapitol 5 - Instalat sistem susţinere şi împrejmuire",null,null,null,null,null,null,null,null,null,null,null,null,null,null,null,null,null,null,null,null,null,null,null,null,null,null,null,null,null,null,null,null,null,null,{"$f":"AP300+AP393+AP485","v":0},null,null,null,null,null,null,null,null,0,null,null,null,null,null,null,null,0]
[null,null,null,null,null,null,"Capitolul 5 Alte cheltuieli - total, din care:",null,null,null,null,null,null,null,null,null,null,null,null,null,null,null,null,null,null,null,null,null,null,null,null,null,null,null,null,null,null,null,null,null,null,{"$f":"AP579+AP582+AP588","v":0},null,null,null,null,null,null,null,null,{"$f":"AY579+AY582+AY588+AY589","v":0},null,null,null,null,null,null,null,0]
[null,null,null,null,null,null,"5.1 Organizare de şantier",null,null,null,null,null,null,null,null,null,null,null,null,null,null,null,null,null,null,null,null,null,null,null,null,null,null,null,null,null,null,null,null,null,null,{"$f":"SUM(AP580:AX581)","v":0},null,null,null,null,null,null,null,null,{"$f":"SUM(AY580:BF581)","v":0},null,null,null,null,null,null,null,0]
[null,null,null,null,null,null,"      5.1.1 lucrări de construcţii şi instalaţii aferente organizării de şantier",null,null,null,null,null,null,null,null,null,null,null,null,null,null,null,null,null,null,null,null,null,null,null,null,null,null,null,null,null,null,null,null,null,null,{"$f":"AP303+AP396+AP488","v":0},null,null,null,null,null,null,null,null,{"$f":"AY303+AY396+AY488","v":0},null,null,null,null,null,null,null,0]
[null,null,null,null,null,null,"      5.1.2 cheltuieli conexe orgănizării şantierului",null,null,null,null,null,null,null,null,null,null,null,null,null,null,null,null,null,null,null,null,null,null,null,null,null,null,null,null,null,null,null,null,null,null,0,null,null,null,null,null,null,null,null,0,null,null,null,null,null,null,null,0]
[null,null,null,null,null,null,"5.2 Comisioane, taxe, costul creditului",null,null,null,null,null,null,null,null,null,null,null,null,null,null,null,null,null,null,null,null,null,null,null,null,null,null,null,null,null,null,null,null,null,null,{"$f":"AP584+AP585+AP587","v":0},null,null,null,null,null,null,null,null,{"$f":"AY583+AY584+AY585+AY586+AY587","v":0},null,null,null,null,null,null,null,0]
[null,null,null,null,null,null,"      5.2.1 Comisioanele şi dobânzile aferente creditului băncii finanţatoare",null,null,null,null,null,null,null,null,null,null,null,null,null,null,null,null,null,null,null,null,null,null,null,null,null,null,null,null,null,null,null,null,null,null,null,null,null,null,null,null,null,null,null,0,null,null,null,null,null,null,null,0]
[null,null,null,null,null,null,"      5.2.2 Cota aferentă ISC pentru controlul calităţii lucrărilor de construcţii",null,null,null,null,null,null,null,null,null,null,null,null,null,null,null,null,null,null,null,null,null,null,null,null,null,null,null,null,null,null,null,null,null,null,{"$f":"AP307+AP400+AP492","v":0},null,null,null,null,null,null,null,null,0,null,null,null,null,null,null,null,0]
[null,null,null,null,null,null,"      5.2.3 Cota aferentă ISC pentru controlul statului în amenajarea teritoriului,urbanism şi\n               pentru autorizarea lucrărilor de construcţii",null,null,null,null,null,null,null,null,null,null,null,null,null,null,null,null,null,null,null,null,null,null,null,null,null,null,null,null,null,null,null,null,null,null,0,null,null,null,null,null,null,null,null,0,null,null,null,null,null,null,null,0]
[null,null,null,null,null,null,"      5.2.4 Cota aferentă Casei Sociale a Constructorilor - CSC",null,null,null,null,null,null,null,null,null,null,null,null,null,null,null,null,null,null,null,null,null,null,null,null,null,null,null,null,null,null,null,null,null,null,null,null,null,null,null,null,null,null,null,0,null,null,null,null,null,null,null,0]
[null,null,null,null,null,null,"      5.2.5 Taxe pentru acorduri, avize conforme şi autorizaţia de construire/ desfiinţare",null,null,null,null,null,null,null,null,null,null,null,null,null,null,null,null,null,null,null,null,null,null,null,null,null,null,null,null,null,null,null,null,null,null,0,null,null,null,null,null,null,null,null,0,null,null,null,null,null,null,null,0]
[null,null,null,null,null,null,"5.3 Cheltuieli diverse şi neprevăzute",null,null,null,null,null,null,null,null,null,null,null,null,null,null,null,null,null,null,null,null,null,null,null,null,null,null,null,null,null,null,null,null,null,null,0,null,null,null,null,null,null,null,null,0,null,null,null,null,null,null,null,0]
[null,null,null,null,null,null,"5.4 Cheltuieli pentru informare şi publicitate",null,null,null,null,null,null,null,null,null,null,null,null,null,null,null,null,null,null,null,null,null,null,null,null,null,null,null,null,null,null,null,null,null,null,null,null,null,null,null,null,null,null,null,0,null,null,null,null,null,null,null,0]
[null,null,null,null,null,null,"Procent cheltuieli diverse şi neprevăzute"]
[null,null,null,null,null,null,"Capitolul 6 Cheltuieli pentru darea în exploatare - total, din care:",null,null,null,null,null,null,null,null,null,null,null,null,null,null,null,null,null,null,null,null,null,null,null,null,null,null,null,null,null,null,null,null,null,null,{"$f":"SUM(AP592:AX593)","v":0},null,null,null,null,null,null,null,null,{"$f":"SUM(AY592:BF593)","v":0},null,null,null,null,null,null,null,{"$f":"SUM(AP591:BF591)","v":0}]
[null,null,null,null,null,null,"6.1 Pregătirea personalului de exploatare",null,null,null,null,null,null,null,null,null,null,null,null,null,null,null,null,null,null,null,null,null,null,null,null,null,null,null,null,null,null,null,null,null,null,null,null,null,null,null,null,null,null,null,{"$f":"AY315+AY408+AY500","v":0},null,null,null,null,null,null,null,0]
[null,null,null,null,null,null,"6.2 Probe tehnologice şi teste",null,null,null,null,null,null,null,null,null,null,null,null,null,null,null,null,null,null,null,null,null,null,null,null,null,null,null,null,null,null,null,null,null,null,{"$f":"AP316+AP409+AP501","v":0},null,null,null,null,null,null,null,null,0,null,null,null,null,null,null,null,0]
[null,null,null,null,null,null,"TOTAL GENERAL",null,null,null,null,null,null,null,null,null,null,null,null,null,null,null,null,null,null,null,null,null,null,null,null,null,null,null,null,null,null,null,null,null,null,{"$f":"AP533+AP538+AP539+AP564+AP578+AP591","v":0},null,null,null,null,null,null,null,null,{"$f":"AY533+AY538+AY539+AY564+AY578+AY591","v":0},null,null,null,null,null,null,null,0]
[null,null,null,null,null,null,"Verificare actualizare",null,null,null,null,null,null,null,null,null,null,null,null,null,null,null,null,null,null,null,null,null,null,null,null,null,null,null,null,null,null,{"$f":"AP596*100/AP594","v":{"$error":"#DIV/0!"}},null,null,{"$f":"IF(AP594=0,0,AL595)","v":0},{"$f":"IF(AO595<=5,\"actualizare mai mică de 5% din valoarea eligibila\",\"actualizare mai mare de 5% din valoarea eligibila\")","v":"actualizare mai mică de 5% din valoarea eligibila"}]
[null,null,null,null,null,null,"ACTUALIZARE Cheltuieli Eligibile (max 5%)",null,null,null,null,null,null,null,null,null,null,null,null,null,null,null,null,null,null,null,null,null,null,null,null,null,null,null,null,null,null,null,null,null,null,{"$f":"AP319+AP412+AP504","v":0},null,null,null,null,null,null,null,null,null,null,null,null,null,null,null,null,{"$f":"SUM(AP596:BF596)","v":0}]
[null,null,null,null,null,null,"TOTAL GENERAL CU ACTUALIZARE",null,null,null,null,null,null,null,null,null,null,null,null,null,null,null,null,null,null,null,null,null,null,null,null,null,null,null,null,null,null,null,null,null,null,{"$f":"AP594+AP596","v":0},null,null,null,null,null,null,null,null,{"$f":"AY594","v":0},null,null,null,null,null,null,null,0]
[null,null,null,null,null,null,"Valoare TVA",null,null,null,null,null,null,null,null,null,null,null,null,null,null,null,null,null,null,null,null,null,null,null,null,null,null,null,null,null,null,null,null,null,null,{"$f":"AP321+AP414+AP506","v":0},null,null,null,null,null,null,null,null,{"$f":"AY321+AY414+AY506","v":0},null,null,null,null,null,null,null,0]
[null,null,null,null,null,null,"TOTAL GENERAL inclusiv TVA",null,null,null,null,null,null,null,null,null,null,null,null,null,null,null,null,null,null,null,null,null,null,null,null,null,null,null,null,null,null,null,null,null,null,{"$f":"BG597+BG598","v":0}]
[null,null,null,null,null,null,null,null,null,null,null,null,null,null,null,null,null,null,null,null,null,null,null,null,null,null,null,null,null,null,null,null,null,null,null,null,null,null,null,null,null,"LEI",null,null,null,null,null,null,null,null,"EURO"]
[null,null,null,null,null,null,"VALOARE TOTALĂ",null,null,null,null,null,null,null,null,null,null,null,null,null,null,null,null,null,null,null,null,null,null,null,null,null,null,null,null,null,null,null,null,null,null,{"$f":"AY601*AF527","v":0},null,null,null,null,null,null,null,null,{"$f":"AP599","v":0}]
[null,null,null,null,null,null,"VALOARE ELIGIBILĂ",null,null,null,null,null,null,null,null,null,null,null,null,null,null,null,null,null,null,null,null,null,null,null,null,null,null,null,null,null,null,null,null,null,null,{"$f":"AY602*AF527","v":0},null,null,null,null,null,null,null,null,{"$f":"AP597+AP598","v":0}]
[null,null,null,null,null,null,"VALOARE NEELIGIBILĂ",null,null,null,null,null,null,null,null,null,null,null,null,null,null,null,null,null,null,null,null,null,null,null,null,null,null,null,null,null,null,null,null,null,null,{"$f":"AY603*AF527","v":0},null,null,null,null,null,null,null,null,{"$f":"AY597+AY598","v":0}]
[null,null,null,null,null,null,"Plan Financiar",null,null,null,null,null,null,null,null,null,null,null,null,null,null,null,null,null,null,null,null,null,null,null,null,null,null,null,null,null,null,null,null,null,null,"Cheltuieli eligibile EURO",null,null,null,null,null,null,null,null,"Cheltuieli neeligibile EURO",null,null,null,null,null,null,null,"Total"]
[null,null,null,null,null,null,"Ajutor public nerambursabil (contribuţie UE şi cofinanţare naţională)",null,null,null,null,null,null,null,null,null,null,null,null,null,null,null,null,null,null,null,null,null,null,null,null,null,null,null,null,null,null,null,null,null,null,{"$f":"AP329+AP421+AP513","v":0},null,null,null,null,null,null,null,null,null,null,null,null,null,null,null,null,{"$f":"SUM(AP605:BF605)","v":0}]
[null,null,null,null,null,null,"Cofinantare privata, din care:",null,null,null,null,null,null,null,null,null,null,null,null,null,null,null,null,null,null,null,null,null,null,null,null,null,null,null,null,null,null,null,null,null,null,{"$f":"AP607+AP608+AP609","v":0},null,null,null,null,null,null,null,null,{"$f":"AY607+AY608+AY609","v":0},null,null,null,null,null,null,null,0]
[null,null,null,null,null,null,null,null,null,null,null,null,null,null,null,null,null,null,null,null,null,"- contributia in natura",null,null,null,null,null,null,null,null,null,null,null,null,null,null,null,null,null,null,null,{"$f":"AP331+AP423+AP515","v":0},null,null,null,null,null,null,null,null,{"$f":"AY331+AY423+AY515","v":0},null,null,null,null,null,null,null,0]
[null,null,null,null,null,null,null,null,null,null,null,null,null,null,null,null,null,null,null,null,null,"- autofinanțare",null,null,null,null,null,null,null,null,null,null,null,null,null,null,null,null,null,null,null,{"$f":"AP332+AP424+AP516","v":0},null,null,null,null,null,null,null,null,{"$f":"AY332+AY424+AY516","v":0},null,null,null,null,null,null,null,0]
[null,null,null,null,null,null,null,null,null,null,null,null,null,null,null,null,null,null,null,null,null,"- împrumuturi",null,null,null,null,null,null,null,null,null,null,null,null,null,null,null,null,null,null,null,{"$f":"AP333+AP425+AP517","v":0},null,null,null,null,null,null,null,null,{"$f":"AY333+AY425+AY517","v":0},null,null,null,null,null,null,null,0]
[null,null,null,null,null,null,"TOTAL PROIECT",null,null,null,null,null,null,null,null,null,null,null,null,null,null,null,null,null,null,null,null,null,null,null,null,null,null,null,null,null,null,null,null,null,null,{"$f":"AP605+AP606","v":0},null,null,null,null,null,null,null,null,{"$f":"AY606","v":0},null,null,null,null,null,null,null,0]
[null,null,null,null,null,null,"Procent contribuţie publică",null,null,null,null,null,null,null,null,null,null,null,null,null,null,null,null,null,null,null,null,null,null,null,null,null,null,null,null,null,null,null,null,{"$f":"AP605*100/AP610","v":{"$error":"#DIV/0!"}},{"$f":"IF(AP610=0,0,AN611)","v":0},{"$f":"AO611","v":0},null,null,null,null,null,null,null,"%"]
[null,null,null,null,null,null,"Avans solicitat"]
[null,null,null,null,null,null,"Procent avans solicitat ca procent din ajutorul public nerambursabil",null,null,null,null,null,null,null,null,null,null,null,null,null,null,null,null,null,null,null,null,null,null,null,null,null,null,null,null,null,null,null,null,null,{"$f":"AP612*100/AP605","v":{"$error":"#DIV/0!"}},{"$f":"IF(AP605=0,0,AO613)","v":0},null,null,null,null,null,null,null,null,{"$f":"IF(AP613<=50,\"Suma avans mai mica de 50% din ajutorul public\",\"Suma avans mai mare de 50% din ajutorul public\")","v":"Suma avans mai mica de 50% din ajutorul public"}]
[]
[null,null,null,null,null,null,null,null,null,null,null,null,null,"MINISTERUL AGRICULTURII ŞI DEZVOLTĂRII RURALE"]
[null,null,null,null,null,null,null,null,null,null,null,null,null,null,null,null,null,null,null,null,null,null,null,null,null,null,null,null,null,null,null,null,null,null,null,null,null,null,null,null,null,null,null,null,null,null,null,null,"Anexa A1 HG_907"]
[null,null,null,null,null,null,null,null,null,null,null,null,null,"AGENŢIA PENTRU FINANŢAREA INVESTIŢIILOR RURALE"]
[]
[null,null,null,null,null,null,null,null,null,null,null,null,null,"Deviz financiar - Capitolul 3 - Cheltuieli pentru proiectare şi asistenţa tehnică - EURO"]
[null,null,null,null,null,null,"Nr.1"]
[]
[null,null,null,null,null,null,"(Titlu deviz)"]
[null,null,null,null,null,null,"Nr.crt",null,null,null,"Specificaţie",null,null,null,null,null,null,null,null,null,null,null,null,null,null,null,null,null,null,null,null,null,null,null,null,null,null,null,null,null,null,null,null,null,null,null,null,null,"Valoare eligibilă",null,null,null,null,null,null,null,null,"Valoare\nneeligibilă"]
[null,null,null,null,null,null,"3.1",null,null,null,"Cheltuieli pentru studii ",null,null,null,null,null,null,null,null,null,null,null,null,null,null,null,null,null,null,null,null,null,null,null,null,null,null,null,null,null,null,null,null,null,null,null,null,null,{"$f":"SUM(AW625:BE627)","v":0},null,null,null,null,null,null,null,null,{"$f":"SUM(BF625:BO627)","v":0}]
[null,null,null,null,null,null,null,null,null,null,"3.1.1 Studii de teren: studii geotehnice, geologice, hidrologice, hidrogeotehnice, fotogrammetrice, topografica şi de stabilitate ale terenului pe care se amplasează obiectivul de investiţie"]
[null,null,null,null,null,null,null,null,null,null,"3.1.2 Raport privind impactul asupra mediului"]
[null,null,null,null,null,null,null,null,null,null,"3.1.3 Studii de specialitate necesare în funcţie de specificul investiţiei"]
[null,null,null,null,null,null,"3.2",null,null,null,"Documentaţii-suport şi cheltuieli pentru obţinerea de avize, acorduri şi autorizaţii",null,null,null,null,null,null,null,null,null,null,null,null,null,null,null,null,null,null,null,null,null,null,null,null,null,null,null,null,null,null,null,null,null,null,null,null,null,{"$f":"SUM(AW629:BE637)","v":0},null,null,null,null,null,null,null,null,{"$f":"SUM(BF629:BO637)","v":0}]
[null,null,null,null,null,null,null,null,null,null,"1. obţinerea/prelungirea valabilităţii ceritificatului de urbanism"]
[null,null,null,null,null,null,null,null,null,null,"2. obţinerea/prelungirea valabilităţii autorizaţiei de construire/desfiinţare"]
[null,null,null,null,null,null,null,null,null,null,"3. obţinerea avizelor şi acordurilor pentru racorduri şi branşamente la reţele publice de alimentare cu apă, canalizare, alimentare cu gaze, alimentare cu agent termic, energie electrică, telefonie"]
[null,null,null,null,null,null,null,null,null,null,"4. obţinerea certificatului de nomenclatură stradală şi adresă"]
[null,null,null,null,null,null,null,null,null,null,"5. întocmirea documentaţiei, obţinerea numărului cadastral provizoriu şi înregistrarea terenului în cartea funciară"]
[null,null,null,null,null,null,null,null,null,null,"6. obţinerea actului administrativ al autorităţii competente pentru protecţia mediului"]
[null,null,null,null,null,null,null,null,null,null,"7. obţinerea avizului de protecţie civilă"]
[null,null,null,null,null,null,null,null,null,null,"8. avizul de specialitate în cazul obiectivelor de patrimoniu"]
[null,null,null,null,null,null,null,null,null,null,"9. alte avize, acorduri şi autorizaţii"]
[null,null,null,null,null,null,"3.3",null,null,null,"Cheltuieli pentru expertizarea tehnică a construcţiilor existente, a structurilor şi/sau, după caz, a proiectelor tehnice, inclusiv întocmirea de către expertul tehnic a raportului de expertiză tehnică"]
[null,null,null,null,null,null,"3.4",null,null,null,"Cheltuieli pentru certificarea performanţei energetice şi auditul energetic al clădirilor"]
[null,null,null,null,null,null,"3.5",null,null,null,"Cheltuieli pentru proiectare",null,null,null,null,null,null,null,null,null,null,null,null,null,null,null,null,null,null,null,null,null,null,null,null,null,null,null,null,null,null,null,null,null,null,null,null,null,{"$f":"SUM(AW641:BE646)","v":0},null,null,null,null,null,null,null,null,{"$f":"SUM(BF641:BO646)","v":0}]
[null,null,null,null,null,null,null,null,null,null,"3.5.1 Temă de proiectare"]
[null,null,null,null,null,null,null,null,null,null,"3.5.2 Studiu de prefezabilitate"]
[null,null,null,null,null,null,null,null,null,null,"3.5.3 Studiu de fezabilitate/documentaţie de avizare a lucrărilor de intervenţii şi deviz general"]
[null,null,null,null,null,null,null,null,null,null,"3.5.4 Documentaţiile tehnice necesare în vederea obţinerii avizelor/acordurilor/ autorizaţiilor"]
[null,null,null,null,null,null,null,null,null,null,"3.5.5 Verificarea tehnică de calitate a proiectului tehnic şi a detaliilor de execuţie"]
[null,null,null,null,null,null,null,null,null,null,"3.5.6 Proiect tehnic şi detalii de execuţie"]
[null,null,null,null,null,null,"3.6",null,null,null,"Cheltuieli aferente organizării şi derulării procedurilor de achiziţii publice",null,null,null,null,null,null,null,null,null,null,null,null,null,null,null,null,null,null,null,null,null,null,null,null,null,null,null,null,null,null,null,null,null,null,null,null,null,{"$f":"SUM(AW648:BE651)","v":0},null,null,null,null,null,null,null,null,{"$f":"SUM(BF648:BO651)","v":0}]
[null,null,null,null,null,null,null,null,null,null,"1. Cheltuieli aferente întocmirii documentaţiei de atribuire şi multiplicării acesteia (exclusiv cele cumpărate de ofertanţi)"]
[null,null,null,null,null,null,null,null,null,null,"2. Cheltuieli cu onorariile, transportul, cazarea şi diurna membrilor desemnaţi în comisiile de evaluare"]
[null,null,null,null,null,null,null,null,null,null,"3. Anunţuri de intenţie, de participare şi de atribuire a contractelor, corespondenţă prin poştă, fax, poştă electronică în legătură cu procedurile de achiziţie publică"]
[null,null,null,null,null,null,null,null,null,null,"4. Cheltuieli aferente organizării şi derulării procedurilor de achiziţii publice"]
[null,null,null,null,null,null,"3.7",null,null,null,"Cheltuieli pentru consultanţă",null,null,null,null,null,null,null,null,null,null,null,null,null,null,null,null,null,null,null,null,null,null,null,null,null,null,null,null,null,null,null,null,null,null,null,null,null,{"$f":"SUM(AW653:BE654)","v":0},null,null,null,null,null,null,null,null,{"$f":"SUM(BF653:BO654)","v":0}]
[null,null,null,null,null,null,null,null,null,null,"3.7.1 Managementul de proiect pentru obiectivul de investiţii"]
[null,null,null,null,null,null,null,null,null,null,"3.7.2 Auditul financiar"]
[null,null,null,null,null,null,"3.8",null,null,null,"Cheltuieli pentru asistenţă tehnică",null,null,null,null,null,null,null,null,null,null,null,null,null,null,null,null,null,null,null,null,null,null,null,null,null,null,null,null,null,null,null,null,null,null,null,null,null,{"$f":"AW656+AW659","v":0},null,null,null,null,null,null,null,null,{"$f":"BF656+BF659","v":0}]
[null,null,null,null,null,null,null,null,null,null,"3.8.1. Asistenţă tehnică din partea proiectantului",null,null,null,null,null,null,null,null,null,null,null,null,null,null,null,null,null,null,null,null,null,null,null,null,null,null,null,null,null,null,null,null,null,null,null,null,null,{"$f":"SUM(AW657:BE658)","v":0},null,null,null,null,null,null,null,null,{"$f":"SUM(BF657:BO658)","v":0}]
[null,null,null,null,null,null,null,null,null,null,"\n1.1. pe perioada de execuţie a lucrărilor"]
[null,null,null,null,null,null,null,null,null,null,"1.2. pentru participarea proiectantului la fazele incluse în programul de control al lucrărilor de execuţie, avizat de către Inspectoratul de Stat în Construcţii"]
[null,null,null,null,null,null,null,null,null,null,"3.8.2 Dirigenţie de şantier, asigurată de personal tehnic de specialitate, autorizat"]
[null,null,null,null,null,null,"Total valoare fără TVA",null,null,null,null,null,null,null,null,null,null,null,null,null,null,null,null,null,null,null,null,null,null,null,null,null,null,null,null,null,null,null,null,null,null,null,null,null,null,null,null,null,{"$f":"AW624+AW628+AW638+AW639+AW640+AW647+AW652+AW655","v":0},null,null,null,null,null,null,null,null,{"$f":"BF624+BF628+BF638+BF639+BF640+BF647+BF652+BF655","v":0}]
[null,null,null,null,null,null,"Valoare TVA (aferentă cheltuielilor eligibile şi neeligibile)"]
[null,null,null,null,null,null,"TOTAL DEVIZ FINANCIAR 1 (inclusiv TVA)",null,null,null,null,null,null,null,null,null,null,null,null,null,null,null,null,null,null,null,null,null,null,null,null,null,null,null,null,null,null,null,null,null,null,null,null,null,null,null,null,null,{"$f":"SUM(AW660:BO661)","v":0}]
[]
[]
[]
[]
[null,null,null,null,null,null,null,null,null,null,null,null,null,"MINISTERUL AGRICULTURII ŞI DEZVOLTĂRII RURALE"]
[null,null,null,null,null,null,null,null,null,null,null,null,null,null,null,null,null,null,null,null,null,null,null,null,null,null,null,null,null,null,null,null,null,null,null,null,null,null,null,null,null,null,null,null,null,null,null,null,"Anexa A2 HG_907"]
[null,null,null,null,null,null,null,null,null,null,null,null,null,"AGENŢIA PENTRU FINANŢAREA INVESTIŢIILOR RURALE"]
[]
[null,null,null,null,null,null,null,null,null,null,null,null,null,"DEVIZUL OBIECTULUI *"]
[null,null,null,null,null,null,"Nr.1"]
[]
[]
[null,null,null,null,null,null,"Nr. crt.",null,null,null,"Denumire",null,null,null,null,null,null,null,null,null,null,null,null,null,null,null,null,null,null,null,null,null,null,null,null,null,null,null,null,null,null,null,null,null,null,null,null,null,"Valoarea pe categorii de lucrări, fară TVA - EURO"]
[null,null,null,null,null,null,null,null,null,null,"Cap. 4 - Cheltuieli pentru investiţia de bază",null,null,null,null,null,null,null,null,null,null,null,null,null,null,null,null,null,null,null,null,null,null,null,null,null,null,null,null,null,null,null,null,null,null,null,null,null,"Valoare eligibilă",null,null,null,null,null,null,null,null,"Valoare\nneeligibilă"]
[null,null,null,null,null,null,"I - LUCRĂRI DE CONSTRUCŢII ŞI INSTALAŢII"]
[null,null,null,null,null,null,"4.1",null,null,null,"Construcţii şi instalaţii"]
[null,null,null,null,null,null,null,null,null,null,"4.1.1 Terasamente, sistematizare pe verticală şi amenajări exterioare"]
[null,null,null,null,null,null,null,null,null,null,"4.1.2 Rezistenţă"]
[null,null,null,null,null,null,null,null,null,null,"4.1.3 Arhitectură"]
[null,null,null,null,null,null,null,null,null,null,"4.1.4 Instalaţii"]
[null,null,null,null,null,null,null,null,null,null,"TOTAL I ( fără TVA)",null,null,null,null,null,null,null,null,null,null,null,null,null,null,null,null,null,null,null,null,null,null,null,null,null,null,null,null,null,null,null,null,null,null,null,null,null,{"$f":"SUM(AW678:BE682)","v":0},null,null,null,null,null,null,null,null,{"$f":"SUM(BF678:BO682)","v":0}]
[null,null,null,null,null,null,"II - MONTAJ"]
[null,null,null,null,null,null,"4.2",null,null,null,"Montaj utilaje, echipamente tehnologice şi funcţionale"]
[null,null,null,null,null,null,null,null,null,null,"TOTAL II ( fără TVA)",null,null,null,null,null,null,null,null,null,null,null,null,null,null,null,null,null,null,null,null,null,null,null,null,null,null,null,null,null,null,null,null,null,null,null,null,null,{"$f":"SUM(AW685)","v":0},null,null,null,null,null,null,null,null,{"$f":"SUM(BF685)","v":0}]
[null,null,null,null,null,null,"III - PROCURARE"]
[null,null,null,null,null,null,"4.3",null,null,null,"Utilaje, echipamente tehnologice şi funcţionale care necesită montaj"]
[null,null,null,null,null,null,"4.4",null,null,null,"Utilaje, echipamente tehnologice şi funcţionale care nu necesită montaj şi echipamente de transport"]
[null,null,null,null,null,null,"4.5",null,null,null,"Dotări"]
[null,null,null,null,null,null,"4.6",null,null,null,"Active necorporale"]
[null,null,null,null,null,null,null,null,null,null,"TOTAL III ( fără TVA)",null,null,null,null,null,null,null,null,null,null,null,null,null,null,null,null,null,null,null,null,null,null,null,null,null,null,null,null,null,null,null,null,null,null,null,null,null,{"$f":"SUM(AW688:BE691)","v":0},null,null,null,null,null,null,null,null,{"$f":"SUM(BF688:BO691)","v":0}]
[null,null,null,null,null,null,"TOTAL ( TOTAL I + TOTAL II +TOTAL III) fără TVA",null,null,null,null,null,null,null,null,null,null,null,null,null,null,null,null,null,null,null,null,null,null,null,null,null,null,null,null,null,null,null,null,null,null,null,null,null,null,null,null,null,{"$f":"AW692+AW686+AW683","v":0},null,null,null,null,null,null,null,null,{"$f":"BF692+BF686+BF683","v":0}]
[null,null,null,null,null,null,"TVA aferent cheltuielilor eligibile şi neeligibile"]
[null,null,null,null,null,null,"TOTAL DEVIZ PE OBIECT (inclusiv TVA)",null,null,null,null,null,null,null,null,null,null,null,null,null,null,null,null,null,null,null,null,null,null,null,null,null,null,null,null,null,null,null,null,null,null,null,null,null,null,null,null,null,{"$f":"AW693+BF693+AW694+BF694","v":0}]
[]
[null,null,null,null,null,null,null,"*) Se înscrie denumirea obiectului de construcţie sau intervenţie"]
[]
[]
[]
[null,null,null,null,null,null,null,null,null,null,null,null,null,"MINISTERUL AGRICULTURII ŞI DEZVOLTĂRII RURALE",null,null,null,null,null,null,null,null,null,null,null,null,null,null,null,null,null,null,null,null,null,null,null,null,null,null,null,null,null,null,null,null,null,null,"Anexa A3 HG_907"]
[]
[null,null,null,null,null,null,null,null,null,null,null,null,null,"AGENŢIA PENTRU FINANŢAREA INVESTIŢIILOR RURALE"]
[]
[null,null,null,null,null,null,"Nr.1"]
[]
[]
[null,null,null,null,null,null,"Deviz capitolul 2- Cheltuieli pentru asigurarea utilităţilor necesare obiectivului - EURO"]
[null,null,null,null,null,null,"Nr. crt.",null,null,null,"Specificaţie",null,null,null,null,null,null,null,null,null,null,null,null,null,null,null,null,null,null,null,null,null,null,null,null,null,null,null,null,null,null,null,null,null,null,null,null,null,"Valoare eligibilă",null,null,null,null,null,null,null,null,"Valoare\nneeligibilă"]
[null,null,null,null,null,null,1,null,null,null,"Alimentare cu apă"]
[null,null,null,null,null,null,2,null,null,null,"Canalizare"]
[null,null,null,null,null,null,3,null,null,null,"Alimentare cu gaze naturale"]
[null,null,null,null,null,null,4,null,null,null,"Alimentare cu agent termic"]
[null,null,null,null,null,null,5,null,null,null,"Alimentare cu energie electrică"]
[null,null,null,null,null,null,6,null,null,null,"Telecomunicaţii (telefonie, radio-tv,etc)"]
[null,null,null,null,null,null,7,null,null,null,"Drumuri de acces"]
[null,null,null,null,null,null,8,null,null,null,"Căi ferate industriale"]
[null,null,null,null,null,null,9,null,null,null,"Alte utilitati"]
[null,null,null,null,null,null,null,null,null,null,"TOTAL DEVIZ CAPITOLUL 2",null,null,null,null,null,null,null,null,null,null,null,null,null,null,null,null,null,null,null,null,null,null,null,null,null,null,null,null,null,null,null,null,null,null,null,null,null,{"$f":"SUM(AW710:BE718)","v":0},null,null,null,null,null,null,null,null,{"$f":"SUM(BF710:BO718)","v":0}]
[null,null,null,null,null,null,null,null,null,null,"Valoare TVA aferentă cheltuielilor eligibile şi neeligibile"]
[null,null,null,null,null,null,"TOTAL DEVIZ CAPITOLUL 2 (inclusiv TVA)",null,null,null,null,null,null,null,null,null,null,null,null,null,null,null,null,null,null,null,null,null,null,null,null,null,null,null,null,null,null,null,null,null,null,null,null,null,null,null,null,null,{"$f":"AW719+BF719+AW720+BF720","v":0}]
[]
[null,null,null,null,null,null," Deviz capitolul 5 - Alte cheltuieli - EURO"]
[null,null,null,null,null,null,"Nr. crt.",null,null,null,"Specificaţie",null,null,null,null,null,null,null,null,null,null,null,null,null,null,null,null,null,null,null,null,null,null,null,null,null,null,null,null,null,null,null,null,null,null,null,null,null,"Valoare eligibilă",null,null,null,null,null,null,null,null,"Valoare\nneeligibilă"]
[]
[null,null,null,null,null,null,"5.1 ",null,null,null,"Organizare de şantier",null,null,null,null,null,null,null,null,null,null,null,null,null,null,null,null,null,null,null,null,null,null,null,null,null,null,null,null,null,null,null,null,null,null,null,null,null,{"$f":"SUM(AW727:BE728)","v":0},null,null,null,null,null,null,null,null,{"$f":"SUM(BF727:BO728)","v":0}]
[null,null,null,null,null,null,null,null,null,null,"5.1.1 Lucrări de construcţii şi instalaţii aferente organizării de şantier"]
[null,null,null,null,null,null,null,null,null,null,"5.1.2 Cheltuieli conexe organizării de şantier"]
[null,null,null,null,null,null,"5.2",null,null,null,"Comisioane, cote, taxe, costul creditului",null,null,null,null,null,null,null,null,null,null,null,null,null,null,null,null,null,null,null,null,null,null,null,null,null,null,null,null,null,null,null,null,null,null,null,null,null,{"$f":"SUM(AW731:BE734)","v":0},null,null,null,null,null,null,null,null,{"$f":"SUM(BF730:BO734)","v":0}]
[null,null,null,null,null,null,null,null,null,null,"5.2.1. Comisioanele şi dobânzile aferente creditului băncii finanţatoare"]
[null,null,null,null,null,null,null,null,null,null,"5.2.2. Cota aferentă ISC pentru controlul calităţii lucrărilor de construcţii"]
[null,null,null,null,null,null,null,null,null,null,"5.2.3. Cota aferentă ISC pentru controlul statului în amenajarea teritoriului, urbanism şi pentru autorizarea lucrărilor de construcţii"]
[null,null,null,null,null,null,null,null,null,null,"5.2.4. Cota aferentă Casei Sociale a Constructorilor - CSC"]
[null,null,null,null,null,null,null,null,null,null,"5.2.5. Taxe pentru acorduri, avize conforme şi autorizaţia de construire/ desfiinţare"]
[null,null,null,null,null,null,"5.3",null,null,null," Cheltuieli diverse si neprevazute"]
[null,null,null,null,null,null,"5.4",null,null,null," Cheltuieli pentru informare şi publicitate"]
[null,null,null,null,null,null,null,null,null,null,"TOTAL DEVIZ CAPITOLUL 5",null,null,null,null,null,null,null,null,null,null,null,null,null,null,null,null,null,null,null,null,null,null,null,null,null,null,null,null,null,null,null,null,null,null,null,null,null,{"$f":"AW726+AW729+AW735","v":0},null,null,null,null,null,null,null,null,{"$f":"BF726+BF729+BF735+BF736","v":0}]
[null,null,null,null,null,null,null,null,null,null,"VALOARE TVA aferentă cheltuielilor eligibile şi neeligibile"]
[null,null,null,null,null,null,null,null,null,null,"TOTAL DEVIZ CAPITOLUL 5 ( inclusiv TVA)",null,null,null,null,null,null,null,null,null,null,null,null,null,null,null,null,null,null,null,null,null,null,null,null,null,null,null,null,null,null,null,null,null,null,null,null,null,{"$f":"AW737+BF737+AW738+BF738","v":0}]
[]
[]
[]
[]
[null,null,null,null,null,null,"MINISTERUL AGRICULTURII ŞI DEZVOLTĂRII RURALE",null,null,null,null,null,null,null,null,null,null,null,null,null,null,null,null,null,null,null,null,null,null,null,null,null,null,null,null,null,"SECTIUNE SPECIFICĂ MĂSURA M4/2A "]
[null,null,null,null,null,null,"AGENŢIA PENTRU FINANŢAREA INVESTIŢIILOR RURALE"]
[]
[null,null,null,null,null,null,"D. ALTE INFORMAȚII :"]
[null,null,null,null,null,null,"Programarea proiectului:"]
[null,null,null,null,null,null,"Numar luni de implementare"]
[]
[null,null,null,null,null,null,"E. LISTA DOCUMENTELOR ANEXATE PROIECTELOR AFERENTE MĂSURII M4/2A ",null,null,null,null,null,null,null,null,null,null,null,null,null,null,null,null,null,null,null,null,null,null,null,null,null,null,null,null,null,null,null,null,null,null,null,null,null,null,null,null,null,null,null,null,null,null,null,null,null,null,null,null,null,null,"OPIS"]
[null,null,null,null,null,null,null,null,null,null,null,null,null,null,null,null,null,null,null,null,null,null,null,null,null,null,null,null,null,null,null,null,null,null,null,null,null,null,null,null,null,null,null,null,null,null,null,null,null,null,null,null,null,null,null,null,null,null,null,null,null,"documente"]
[null,null,null,null,null,null,"A se anexa documentele în ordinea de mai jos:"]
[null,null,null,null,null,null,"Lista documente",null,null,null,null,null,null,null,null,null,null,null,null,null,null,null,null,null,null,null,null,null,null,null,null,null,null,null,null,null,"Obligatoriu pentru toate proiectele",null,null,null,null,"Obligatoriu, dacă proiectul impune",null,null,null,null,null,null,"PAGINA de la - până la",null,null,null,null,null,null,null,"Obligatoriu pentru toate proiectele",null,null,null,null,"Obligatoriu, dacă proiectul impune"]
[null,null,null,null,null,null,"ETAPA:",null,null,null,null,null,null,null,null,null,null,null,null,null,null,null,null,null,null,null,null,null,null,null,null,null,null,null,null,null,"DEPUNERE",null,null,null,null,null,null,null,null,null,null,null,null,null,null,null,null,null,null,null,"CONTRACTARE"]
[null,null,null,null,null,null,"1. a) STUDIUL DE FEZABILITATE "]
[null,null,null,null,null,null,"1.b) Expertiza tehnică de specialitate asupra construcţiei existente "]
[null,null,null,null,null,null,"1.c) RAPORTUL PRIVIND STADIUL FIZIC AL LUCRĂRILOR"]
[null,null,null,null,null,null,"1.d) ANEXA B"]
[null,null,null,null,null,null,"2. SITUAŢIILE FINANCIARE (bilanţ - formularul 10, contul de profit şi pierderi - formularul 20, formularele 30 și 40), precedente anului depunerii proiectului înregistrate la Administraţia Financiară.\nsau"]
[null,null,null,null,null,null,"Declaraţia de inactivitate înregistrata la Administraţia Financiară, în cazul\nsolicitanţilor care nu au desfăşurat activitate anterior depunerii proiectului"]
[null,null,null,null,null,null,"3. DOCUMENTE SOLICITATE PENTRU TERENUL AGRICOL\na1) Tabelul centralizator care va cuprinde suprafeţele aduse în folosinţa, numele membrilor fermieri care le deţin în proprietate şi perioada pe care terenul a fost adus în folosință."]
[null,null,null,null,null,null,"b) Documente solicitate pentru imobilul (clădirile şi/ sau terenurile) pe care sunt/ vor fi realizate investițiile:\nb1) Actul de proprietate asupra clădirii sau contract de concesiune sau alt document încheiat la notar care să certifice dreptul de folosinţă asupra clădirii pe o perioadă de cel puțin 10 ani începând cu anul depunerii Cererii de Finanțare, care să confere titularului dreptul de execuție a lucrărilor de construcții, dupa caz, în acord cu precizările din Studiul de Fezabilitate, în conformitate cu prevederile Legii nr. 50/1991, republicată, cu modificările și completările ulterioare, având în vedere tipul de investiție propusă prin proiect;"]
[null,null,null,null,null,null,"b2) Documentul care atestă dreptul de proprietate asupra terenului, contract de concesiune sau alt document încheiat la notar care să certifice dreptul de folosinţă al terenului pe o perioadă de cel puțin 10 ani începând cu anul depunerii Cererii de Finanțare, care să confere titularului dreptul de execuție a lucrărilor de construcții, dupa caz, în acord cu precizările din Studiul de Fezabilitate, în conformitate cu prevederile Legii nr.50/1991, republicată, cu modificările și completările ulterioare, având în vedere tipul de investiție propusă prin proiect."]
[null,null,null,null,null,null,"b3) DOCUMENT CARE SĂ CERTIFICE CĂ NU AU FOST FINALIZATE LUCRĂRILE DE CADASTRU, pentru proiectele care vizează investiții de lucrări privind construcţiile noi sau modernizări ale acestora"]
[null,null,null,null,null,null,"b4) Acordul creditorului privind executia investiției şi graficul de rambursare a creditului."]
[null,null,null,null,null,null,"c) Document pentru efectivul de animale deţinut în proprietate:\nc1) Extras din registrul exploatației emis de ANSVSA/DSVSA cu cel mult 30 de zile înainte de data depunerii CF, din care să rezulte efectivul de animale deţinut, însoţit de formular de mişcare ANSVSA/DSVSA (Anexa 4 din Normele sanitare veterinare ale Ordinului ANSVSA nr. 40/2010); Formularul de miscare se depune dacă există diferențe dintre mențiunile din SF, cererea de finanțare și extrasul din Registrul Exploatatiilor de la ANSVSA; "]
[null,null,null,null,null,null,"Pentru exploataţiile agricole care deţin păsari si albine - Adeverinţă eliberată de medicul veterinar de circumscripţie, emisă cu cel mult 30 de zile înainte de data depunerii CF, din care rezulta numarul păsarilor şi al familiilor de albine şi data inscrierii solicitantului in Registrul Exploatației. "]
[null,null,null,null,null,null,"c2) Paşaportul emis de ANZ pentru ecvideele cu rasă şi origine."]
[null,null,null,null,null,null,"4. CERTIFICAT DE URBANISM pentru proiecte care prevăd construcţii (noi, extinderi sau modernizări)."]
[null,null,null,null,null,null,"5. DOCUMENT EMIS DE ANPM PENTRU PROIECT (conform protocolului de colaborare încheiat între AFIR - ANPM - GNM)\n5.1a CLASAREA NOTIFICĂRII"]
[null,null,null,null,null,null,"5.1b DECIZIA ETAPEI DE EVALUARE INIȚIALĂ"]
[null,null,null,null,null,null,"5.2a DECIZIA ETAPEI DE ÎNCADRARE"]
[null,null,null,null,null,null,"5.2b ACORD DE MEDIU"]
[null,null,null,null,null,null,"6.1 Certificate care să ateste lipsa datoriilor restante locale emise de primăriile pe raza cărora solicitanții au sediul social și puncte de lucru (numai în cazul în care solicitantul este proprietar asupra imobilelor). "]
[null,null,null,null,null,null,"6.2 Graficul de eşalonare a datoriilor către bugetul consolidat (în cazul în care beneficiarul figureaza cu datorii restante fiscale)."]
[null,null,null,null,null,null,"7.1 Document emis de DSVSA JUDETEANĂ pentru proiect, conform Protocolului de colaborare dintre AFIR şi ANSVSA"]
[null,null,null,null,null,null,"7.2 Document emis de DSP judetean, conform Protocolului de colaborare dintre AFIR şi MS "]
[null,null,null,null,null,null,"8.1 Documente care dovedesc capacitatea şi sursa de cofinanţare a investiției emise de o instituţie financiară"]
[null,null,null,null,null,null,"8.2 Document de la bancă/trezorerie cu datele de identificare ale acesteia și ale contului aferent proiectului FEADR (denumirea, adresa instituției financiare, codul IBAN al contului în care se derulează operațiunile cu AFIR);"]
[null,null,null,null,null,null,"9.1 Autorizaţie Sanitară/ Notificare de constatare a conformităţii cu legislaţia sanitară emise cu cel mult un an înaintea depunerii Cererii de finanțare, pentru unitățile care se modernizează şi se autorizează/avizează conform legislației în vigoare."]
[null,null,null,null,null,null,"9.2 NOTA DE CONSTATARE PRIVIND CONDIŢIILE DE MEDIU pentru toate unităţile în funcţiune "]
[null,null,null,null,null,null,"10.a) Certificatul de înregistrare eliberat de Oficiul Registrului Comerţului conform legislaţiei naţionale cu modificările şi completările ulterioare;"]
[null,null,null,null,null,null,"10.b) Certificatul constatator eliberat de Oficiul Registrului Comerţului conform legislaţiei naţionale, emis cu maxim 30 de zile inainte de depunerea proiectului."]
[null,null,null,null,null,null,"10.c) Alte documente constitutive (dupa caz)."]
[null,null,null,null,null,null,"11. În cazul investiţiilor privind irigaţiile:\n11.1 Aviz de gospodarirea apelor/ Notificarea de începere a execuţiei, în cazul investițiilor noi sau autorizație de gospodărire/ Notificare de punere în funcțiune, în cazul funcţionării sistemului de irigaţii."]
[null,null,null,null,null,null,"11.2 Aviz emis de ANIF (dacă este cazul)"]
[null,null,null,null,null,null,"11.3 Document emis de OUAI privind acordul de branşare (dacă este cazul) "]
[null,null,null,null,null,null,"11.4 Document privind acordul de branșare emis de entitatea care administrează sursa de apă (dacă este cazul)"]
[null,null,null,null,null,null,"12.1 FIŞA DE ÎNREGISTRARE CA PRODUCĂTOR ȘI/SAU PROCESATOR ÎN AGRICULTURĂ ECOLOGICĂ, ELIBERATA DE DAJ, ÎNSOȚITĂ DE CONTRACTUL ÎNCHEIAT CU UN ORGANISM DE INSPECȚIE ȘI CERTIFICARE (în cazul investițiilor noi sau în cazul modernizării exploatațiilor care obțin după implementarea proiectului, un produs ecologic)"]
[null,null,null,null,null,null,"12.2 Certificat de conformitate a produselor agroalimentare ecologice\nemis de un organism de inspecţie şi certificare, conform prevederilor\nOUG 34/2000 privind produsele agroalimentare ecologice cu completările\nși modificările ulterioare pentru aprobarea regulilor privind organizarea\nsistemului de inspecție și certificare în agricultura ecologică (pentru\nmodernizări în vederea obținerii unui produs existent)."]
[null,null,null,null,null,null,"13. Anexa 7 – Declaratie privind prelucrarea datelor cu caracter personal"]
[null,null,null,null,null,null,"14. Anexa 8 - Declarație pe propria răspundere"]
[null,null,null,null,null,null,"15. Alte documente justificative "]
[]
[]
[]
[]
[]
[]
[null,null,null,null,null,null,"F. DECLARAŢIE PE PROPRIA RĂSPUNDERE A SOLICITANTULUI"]
[null,null,null,null,null,null,"Prin această declaraţie solicitantul"]
[]
[null,null,null,null,null,null,"care solicită asistență financiară nerambursabilă prin programul FEADR pentru proiectul intitulat"]
[]
[null,null,null,null,null,null,"prin reprezentant legal"]
[]
[null,null,null,null,null,null,"cunoscând prevederile legii penale cu privire la falsul în declarații:"]
[null,null,null,null,null,null,null,1,null,"Declar că proiectul propus asistenţei financiare nerambursabile FEADR nu beneficiază de altă finanţare din programe de finanţare nerambursabilă. De asemenea mă angajez ca în cazul în care proiectul va fi selectat pentru finanţare FEADR, nu voi depune acest proiect la nici un alt program de finanţare nerambursabilă la care proiectul poate fi în intregime sau parţial eligibil pentru asistenţă."]
[]
[null,null,null,null,null,null,null,2,null,"Declar că îndeplinesc condiţiile de eligibilitate prevăzute în fişa sub-măsurii şi Ghidul Solicitantului şi mă angajez să le respect pe perioada de valabilitate a contractului de finanţare şi monitorizare a investiţiei, inclusiv criteriile de selecţie pentru care am fost punctat și nu există derogare menționată în Ghidul Solicitantului privind menținerea acestora."]
[null,null,null,null,null,null,null,3,null,"Declar că toate informaţiile din prezenta cerere de finanţare şi din documentele anexate sunt corecte şi mă\nangajez să respect condiţiile cerute în reglementările referitoare la prezentul program şi pe cele legate de\nproiectul anexat şi să furnizez periodic, la cerere, documente justificative necesare."]
[null,null,null,null,null,null,null,4,null,"Declar pe propria răspundere că orice modificări aduse dreptului de proprietate sau de folosinţă vor fi notificate AFIR în termen de trei zile de la data încheierii lor. De asemenea, mă angajez, ca pe perioada de valabilitate a contractului de finanţare şi monitorizare a investiţiei să nu diminuez suprafaţa şi/sau infrastructura cuprinsă în proiect."]
[null,null,null,null,null,null,null,5,null,"Declar că eu şi organizaţia mea (asociaţie sau întreprindere) nu suntem într-unul din următoarele cazuri:"]
[null,null,null,null,null,null,null,null,null,"Acuzat din cauza unei greșeli privind conduita profesională având ca soluție finală res judicata (împotriva căreia nici un apel nu este posibil)"]
[null,null,null,null,null,null,null,null,null,"Vinovat de grave deficiențe de conduită profesională dovedite prin orice mijloace pe care Agenția le poate justifica."]
[null,null,null,null,null,null,null,null,null,"Vinovat de faptul că nu am prezentat informaţiile cerute de Autoritatea Contractantă ca o condiţie de participare la licitaţie sau contractare"]
[null,null,null,null,null,null,null,null,null,"Încălcarea prevederilor contractuale prin care nu mi-am îndeplinit obligațiile contractuale în legătură cu un alt contract cu Agenția sau alte contracte finanțate din fonduri comunitare."]
[null,null,null,null,null,null,null,null,null,"Încercarea de a obține informații confidențiale sau de influențare a Agenției în timpul procesului de evaluare a proiectului și nu voi face presiuni la adresa evaluatorului."]
[null,null,null,null,null,null,"6.",null,null,null,null,"Declar că organizaţia pe care o reprezint ARE datorii către institutii de credit şi/sau instituţii financiare bancare / nebancare pentru care prezint graficul de rambursare"]
[null,null,null,null,null,null,null,null,null,null,null,"Declar că organizaţia pe care o reprezint NU are datorii către instituţii de credit şi/sau instituţii financiare bancare / nebancare"]
[null,null,null,null,null,null,"7.",null,null,null,null,"Declar pe propria răspundere că în cazul în care nu respect oricare din punctele prevazute în această declaraţie proiectul să devină neeligibil în baza criteriului \"Eligibilitatea solicitantului\" sau contractul să fie reziliat"]
[null,null,null,null,null,null,"8.",null,null,null,null,"Declar pe propria răspundere că:"]
[null,null,null,null,null,null,null,null,null,null,null,"Nu sunt înregistrat în scopuri TVA și că mă angajez să notific Agenției orice modificare a situatiei privind înregistrarea ca plătitor de TVA, în maximum 10 (zece) zile de la data înregistrării în scopuri TVA."]
[null,null,null,null,null,null,null,null,null,null,null,"Sunt înregistrat în scopuri de TVA (certificat de înregistrare fiscală în scopuri de TVA)."]
[null,null,null,null,null,null,"9.",null,null,null,null,"a) Declar pe propria răspundere că nu am înscrisuri care privesc sancțiuni economico-financiare în cazierul judiciar și îmi exprim consimțamântul ca AFIR să acceseze Sistemul Informatic al Cazierului Judiciar (ROCRIS) administrat de IGPR pentru a obține extrasul dupa cazierul judiciar în etapa de încheiere a contractului de finanțare pentru întreprindere şi pentru reprezentantul legal."]
[null,null,null,null,null,null,null,null,null,null,null,"b) Declar pe propria raspundere ca intreprinderea mea nu figureaza cu datorii restante fiscale si sociale la bugetul de stat și îmi exprim consimțamântul ca AFIR să interogheze baza de date PATRIMVEN gestionată de ANAF pentru verificarea situației financiare și fiscale a beneficiarului, în baza Protocolului de colaborare instituțional AFIR-ANAF"]
[null,null,null,null,null,null,"10.",null,null,null,null,"Declar pe propria raspundere că nu am fapte înscrise în cazierul fiscal."]
[null,null,null,null,null,null,"11.",null,null,null,null,"Declar pe propria răspundere că toate cheltuielile neeligibile vor fi suportate de solicitant şi că acestea vor fi realizate până la finalizarea proiectului."]
[null,null,null,null,null,null,"12.",null,null,null,null,"Declar pe propria răspundere că dosarul cererii de finanţare în original, va fi identic cu dosarul cererii de finanţare depus online. În caz contrar, proiectul nu va fi contractat."]
[null,null,null,null,null,null,"13.",null,null,null,null,"Declar că mă angajez să îndeplinesc - Cerinţele minime obligatorii de respectare a bunelor practici agricole privind gestionarea gunoiului de grajd."]
[null,null,null,null,null,null,"14.",null,null,null,null,"Declar pe propria răspundere că voi asigura cultura/efectivul de animale/spațiul protejat ce fac obiectul investiției propuse prin proiect"]
[null,null,null,null,null,null,"15.",null,null,null,null,"Declar pe proprie răspundere că mă angajez ca în urma implementării proiectului, voi obține un produs\necologic"]
[null,null,null,null,null,null,"16.",null,null,null,null,"Mă angajez ca în termenul prevăzut în „Notificarea beneficiarului privind selectarea cererii de finanţare şi\nsemnarea contractului de finanţare”, să prezint documentul privind cofinanţarea proiectului şi Angajamentul\nresponsabilului legal al proiectului că nu va utiliza în alte scopuri 50% din cofinanțarea privată, în cazul prezentării\ncofinanţării prin extras de cont."]
[null,null,null,null,null,null,"17.",null,null,null,null,"Mă angajez ca în cazul în care proiectul se supune procedurilor de evaluare a impactului asupra mediului şi/sau\nde evaluare adecvată să prezint Acordul de mediu în termen de maximum 7 luni de la transmiterea Notificării\nsolicitantului privind selectarea cererii de finanţare şi semnarea contractului de finanţare."]
[null,null,null,null,null,null,"18.",null,null,null,null,"Mă angajez ca pe durata de execuție a contractului să-mi menţin cel puţin încadrarea în dimensiunea SO a\nexploataţiei agricole, fără a reduce dimensiunea economică a exploatației agricole, prevazută la depunerea\ncererii de finanțare, cu mai mult de 15% și fără a scădea, în nicio situație, sub pragul minim de 8.000 SO,\nrespectiv 12.000 SO, stabilit prin condițiile de eligibilitate."]
[null,null,null,null,null,null,"19.",null,null,null,null,"Am luat la cunoștință și mă angajez să respect Politica anti-mită, publicată pe site-ul oficial al AFIR."]
[null,null,null,null,null,null,"20.",null,null,null,null,"Declar că sunt de acord ca AFIR să transmită informații legate de proiect către instituții financiare, respectiv\ninstituții de credit sau instituții financiare nebancare înregistrate în Registrul special al Băncii Naționale a\nRomâniei, în conformitate cu prevederile Legii nr. 93/2009, cu modificările și completările ulterioare, privind\ninstituțiile financiare nebancare."]
[]
[null,null,null,null,null,null,null,"Semnătura reprezentant legal şi ştampila (după caz)",null,null,null,null,null,null,null,null,null,null,null,null,null,null,null,null,null,null,null,null,null,null,null,null,null,null,null,null,null,null,null,null,null,null,null,null,null,null,null," Data:"]
[]
[]
[]
[null,null,null,null,null,null,"Anexa INDICATORI DE MONITORIZARE"]
[null,null,null,null,null,null,"Măsura M4/2A – Sprijinirea formelor asociative din sectoarele agricole prioritare din teritoriul GAL „Câmpia Burnazului”"]
[null,null,null,null,null,null,"1. Cod RO"]
[null,null,null,null,null,null,"2. Cod CAEN"]
[null,null,null,null,null,null,"3. Tipul beneficiarului",null,null,null,null,null,null,null,null,null,null,null,null,null,null,null,null,"Persoană juridică"]
[null,null,null,null,null,null,"4. Tipul de zonă",null,null,null,null,null,null,null,null,null,null,null,null,null,null,null,null,"Zonă normală"]
[null,null,null,null,null,null,null,null,null,null,null,null,null,null,null,null,null,null,null,null,null,null,null,"Zonă montană"]
[null,null,null,null,null,null,null,null,null,null,null,null,null,null,null,null,null,null,null,null,null,null,null,"Zonă constrângeri specifice"]
[null,null,null,null,null,null,null,null,null,null,null,null,null,null,null,null,null,null,null,null,null,null,null,"Zonă constrângeri semnificative"]
[null,null,null,null,null,null,"5. Tipul producţiei",null,null,null,null,null,null,null,null,null,null,null,null,null,null,null,null,"Ecologică"]
[null,null,null,null,null,null,null,null,null,null,null,null,null,null,null,null,null,null,null,null,null,null,null,"Convenţională"]
[null,null,null,null,null,null,"6. Numărul de exploataţii sprijinite"]
[null,null,null,null,null,null,"7. Dimensiunea economică a exploataţiei",null,null,null,null,null,null,null,null,null,null,null,null,null,null,null,null,"8.000 - 11.999 SO (mică)"]
[null,null,null,null,null,null,null,null,null,null,null,null,null,null,null,null,null,null,null,null,null,null,null,"12.000 – 250.000 SO (medie)"]
[null,null,null,null,null,null,null,null,null,null,null,null,null,null,null,null,null,null,null,null,null,null,null,">250.000 SO (mare)"]
[null,null,null,null,null,null,"8. Suprafaţa exploataţiilor agricole sprijinite (Ha)"]
[null,null,null,null,null,null,"9. Suprafaţa vizată de investiţii pentru sisteme de irigaţii (Ha)"]
[null,null,null,null,null,null,"10. Tip ramură agricolă",null,null,null,null,null,null,null,null,null,null,null,null,null,null,null,null,"Albine"]
[null,null,null,null,null,null,null,null,null,null,null,null,null,null,null,null,null,null,null,null,null,null,null,"Culturi de câmp"]
[null,null,null,null,null,null,null,null,null,null,null,null,null,null,null,null,null,null,null,null,null,null,null,"Horticultură"]
[null,null,null,null,null,null,null,null,null,null,null,null,null,null,null,null,null,null,null,null,null,null,null,"Viticultură"]
[null,null,null,null,null,null,null,null,null,null,null,null,null,null,null,null,null,null,null,null,null,null,null,"Creștere bovine pentru carne"]
[null,null,null,null,null,null,null,null,null,null,null,null,null,null,null,null,null,null,null,null,null,null,null,"Creștere bovine pentru lapte"]
[null,null,null,null,null,null,null,null,null,null,null,null,null,null,null,null,null,null,null,null,null,null,null,"Creștere ovine și caprine"]
[null,null,null,null,null,null,null,null,null,null,null,null,null,null,null,null,null,null,null,null,null,null,null,"Porcine"]
[null,null,null,null,null,null,null,null,null,null,null,null,null,null,null,null,null,null,null,null,null,null,null,"Păsări de curte"]
[null,null,null,null,null,null,null,null,null,null,null,null,null,null,null,null,null,null,null,null,null,null,null,"Mixte - culturi mixte"]
[null,null,null,null,null,null,null,null,null,null,null,null,null,null,null,null,null,null,null,null,null,null,null,"Mixte - culturi si animale cu exceptia albinelor"]
[null,null,null,null,null,null,null,null,null,null,null,null,null,null,null,null,null,null,null,null,null,null,null,"Albine"]
[null,null,null,null,null,null,null,null,null,null,null,null,null,null,null,null,null,null,null,null,null,null,null,"Altele"]
[null,null,null,null,null,null,"11. Categoria investiţiei",null,null,null,null,null,null,null,null,null,null,null,null,null,null,null,null,"Utilaje şi echipamente"]
[null,null,null,null,null,null,null,null,null,null,null,null,null,null,null,null,null,null,null,null,null,null,null,"Construcţii agricole (inclusiv echipamentele asociate)"]
[null,null,null,null,null,null,null,null,null,null,null,null,null,null,null,null,null,null,null,null,null,null,null,"Alte investiţii agricole"]
[null,null,null,null,null,null,"12. Tipul investiţiei",null,null,null,null,null,null,null,null,null,null,null,null,null,null,null,null,"a. Investiții în înființarea, extinderea şi/sau modernizarea fermelor vegetale;"]
[null,null,null,null,null,null,null,null,null,null,null,null,null,null,null,null,null,null,null,null,null,null,null,"b. Investiții în construirea şi/sau modernizarea fermelor zootehnice;"]
[null,null,null,null,null,null,null,null,null,null,null,null,null,null,null,null,null,null,null,null,null,null,null,"c. Înființare şi/sau modernizarea căilor de acces în cadrul fermei, inclusiv utilităţi şi racordări;"]
[null,null,null,null,null,null,null,null,null,null,null,null,null,null,null,null,null,null,null,null,null,null,null,"d. Construirea şi/sau modernizarea serelor, inclusiv a centralelor termice şi instalaţiilor de irigat ale acestora, asigurarea utilităţilor în vederea respectării condiţiilor de mediu;"]
[null,null,null,null,null,null,null,null,null,null,null,null,null,null,null,null,null,null,null,null,null,null,null,"e. Investiții în procesarea produselor agricole la nivel de fermă, precum și investiții în vederea comercializării;"]
[null,null,null,null,null,null,null,null,null,null,null,null,null,null,null,null,null,null,null,null,null,null,null,"f. Achiziţionarea sau achiziţionarea în leasing de tractoare noi, combine de recoltat, maşini, utilaje, instalaţii, echipamente şi accesorii, echipamente şi software specializate;"]
[null,null,null,null,null,null,null,null,null,null,null,null,null,null,null,null,null,null,null,null,null,null,null,"g. Investitii privind înființarea, extinderea şi/sau modernizarea fermelor, altele decat cele mentionate la punctele a-f"]
[null,null,null,null,null,null,"13. Număr capete de animale \n\nBeneficiarii ale caror tipuri de investitii NU vizeaza cresterea animalelor, vor completa fiecare subcategorie cu valoarea “0”; \nbeneficiarii ale caror tipuri de investitii vizeaza cresterea animalelor, vor completa valorile pe care le detin, in dreptul subcategoriilor corespunzatoare (ex: bovine, ovine, caprine, etc), iar restul subcategoriilor vor fi completate cu “0”. ",null,null,null,null,null,null,null,null,null,null,null,null,null,null,null,null,"Tauri, vaci şi alte bovine de mai mult de 2 ani şi cabaline de mai mult de 6 luni"]
[null,null,null,null,null,null,null,null,null,null,null,null,null,null,null,null,null,null,null,null,null,null,null,"Bovine între 6 luni şi 2 ani"]
[null,null,null,null,null,null,null,null,null,null,null,null,null,null,null,null,null,null,null,null,null,null,null,"Bovine de mai puţin de 6 luni"]
[null,null,null,null,null,null,null,null,null,null,null,null,null,null,null,null,null,null,null,null,null,null,null,"Ovine"]
[null,null,null,null,null,null,null,null,null,null,null,null,null,null,null,null,null,null,null,null,null,null,null,"Caprine"]
[null,null,null,null,null,null,null,null,null,null,null,null,null,null,null,null,null,null,null,null,null,null,null,"Scroafe de reproducţie > 50 kg"]
[null,null,null,null,null,null,null,null,null,null,null,null,null,null,null,null,null,null,null,null,null,null,null,"Alte porcine"]
[null,null,null,null,null,null,null,null,null,null,null,null,null,null,null,null,null,null,null,null,null,null,null,"Găini outoare"]
[null,null,null,null,null,null,null,null,null,null,null,null,null,null,null,null,null,null,null,null,null,null,null,"Alte păsări de curte"]
[]
[null,null,null,null,null,null,"*Pentru indicatorii de tip numeric care nu fac obiectul investiției se va completa valoarea zero.\nIndic. nr.1 - reprezintă codul de inregistrare al beneficiarului în Registrul Fermierului la APIA\nIndic. nr.2 - reprezintă codul CAEN pentru investiţia vizată prin proiect\nIndic. nr. 3, 4, 5, 7, 10, 12 - se va bifa doar o singura categorie/ categoria majoritară\nIndic. nr. 6 - se completează numărul exploataţiilor sprijinite prin proiect; in cazul investitiilor colective realizate de formele asociative ale fermierilor (cooperative/grupuri de producatori) se va mentiona nr. de exploatatii care fac parte din formele asociative implicate/sprijinite in proiect.\nIndic. nr. 8 - se completează suprafaţa (Ha) exploataţiilor agricole sprijinite prin proiect\nIndic. nr.9 - se completează suprafaţa (Ha) vizată de investiţii pentru sisteme de irigaţii\nIndic. nr. 11 - se va bifa categoria majoritară.\nÎn categoria \"Utilaje şi echipamente\" se vor încadra investiţii precum: investiţii privind achiziţia de tractoare, combine, maşini, utilaje, echipamente agricole etc, canalizare/ instalaţii de tratare a apelor uzate, instalaţii de irigat, instalatii pentru procesarea complexa a furajelor pentru animale.\nÎn categoria \"Construcţii agricole\" se vor încadra investiţii precum: construirea şi/ sau modernizarea clădirilor utilizate pentru producţia agricolă la nivel de fermă, fose septice si platforme gunoi de grajd, alte construcţii în fermă cum ar fi: sere, depozite, mici adaposturi pentru prepararea nutreturilor combinate, instalatii necesare depozitarii in conditii optime.\nÎn categoria \"Alte investiţii agricole\" se vor încadra tipurile de investiţii care nu se încadrează în primele două categorii.\nIndic. nr. 13 - Beneficiarii ale caror tipuri de investitii NU vizeaza cresterea animalelor, vor completa fiecare subcategorie cu valoarea “0”; beneficiarii ale caror tipuri de investitii vizeaza cresterea animalelor, vor completa valorile pe care le detin, in dreptul subcategoriilor corespunzatoare (ex: bovine, ovine, caprine, etc), iar restul subcategoriilor vor fi completate cu “0”."]
[]
[]
[]
[]
[]
[]
[null,null,null,null,null,null,"Factori de risc"]
[null,null,null,null,null,null,"I1. Valoarea sprijinului public nerambursabil (EURO)",null,null,null,null,null,null,null,null,null,null,null,null,null,null,null,null,null,null,null,null,null,null,null,null,null,null,null,null,null,null,null,null,null,null,null,null,null,null,null,null,null,null,null,null,null,null,null,null,null,"Punctaj obţinut"]
[null,null,null,null,null,null,"• proiecte cu valoarea sprijinului nerambursabil < 100 000 euro",null,null,null,null,null,null,null,null,null,null,null,null,null,null,null,null,null,null,null,null,null,null,null,null,null,null,null,null,null,null,null,null,null,null,null,null,null,null,null,null,null,null,null,null,null,null,null,null,null,2]
[null,null,null,null,null,null,"• proiecte cu valoarea sprijinului nerambursabil între 100.000 – 170.000 euro",null,null,null,null,null,null,null,null,null,null,null,null,null,null,null,null,null,null,null,null,null,null,null,null,null,null,null,null,null,null,null,null,null,null,null,null,null,null,null,null,null,null,null,null,null,null,null,null,null,3]
[]
[null,null,null,null,null,null,"I2. Complexitatea investiţiei"]
[null,null,null,null,null,null,"Beneficiari Privaţi",null,null,null,null,null,null,null,null,null,null,null,null,null,null,null,null,null,null,null,null,null,null,null,null,null,null,null,null,null,null,null,null,null,null,null,null,null,null,null,null,null,null,null,null,null,null,null,null,null,"Punctaj obţinut"]
[null,null,null,null,null,null,"• Investiţie nouă",null,null,null,null,null,null,null,null,null,null,null,null,null,null,null,null,null,null,null,null,null,null,null,null,null,null,null,null,null,null,null,null,null,null,null,null,null,null,null,null,null,null,null,null,null,null,null,null,null,5]
[null,null,null,null,null,null,"• Modernizări cu C şi/sau M",null,null,null,null,null,null,null,null,null,null,null,null,null,null,null,null,null,null,null,null,null,null,null,null,null,null,null,null,null,null,null,null,null,null,null,null,null,null,null,null,null,null,null,null,null,null,null,null,null,4]
[null,null,null,null,null,null,"• Modernizări prin achiziţie simplă(utilaje)",null,null,null,null,null,null,null,null,null,null,null,null,null,null,null,null,null,null,null,null,null,null,null,null,null,null,null,null,null,null,null,null,null,null,null,null,null,null,null,null,null,null,null,null,null,null,null,null,null,3]
[]
[null,null,null,null,null,null,"I3. Intensitatea sprijinului (procent contribuţie publică)",null,null,null,null,null,null,null,null,null,null,null,null,null,null,null,null,null,null,null,null,null,null,null,null,null,null,null,null,null,null,null,null,null,null,null,null,null,null,null,null,null,null,null,null,null,null,null,null,null,"Punctaj obţinut"]
[null,null,null,null,null,null,"70% -90%",null,null,null,null,null,null,null,null,null,null,null,null,null,null,null,null,null,null,null,null,null,null,null,null,null,null,null,null,null,null,null,null,null,null,null,null,null,null,null,null,null,null,null,null,null,null,null,null,null,5]
[null,null,null,null,null,null,"50%-69%",null,null,null,null,null,null,null,null,null,null,null,null,null,null,null,null,null,null,null,null,null,null,null,null,null,null,null,null,null,null,null,null,null,null,null,null,null,null,null,null,null,null,null,null,null,null,null,null,null,4]
[null,null,null,null,null,null,"<50%",null,null,null,null,null,null,null,null,null,null,null,null,null,null,null,null,null,null,null,null,null,null,null,null,null,null,null,null,null,null,null,null,null,null,null,null,null,null,null,null,null,null,null,null,null,null,null,null,null,1]
[]
[null,null,null,null,null,null,"I4. Riscul proiectului d.p.d.v. al % raportului între cheltuielile suportate de solicitant şi Valoarea ajutorului nerambursabil.\nCheltuielile suportate de solicitant = Total valoare proiect (fără TVA) – Valoarea\najutorului nerambursabil solicitat.\n\n        Total valoare proiect(fără TVA)-Valoarea ajutorului nerambursabil solicitat\n% = --------------------------------------------------------------------------------------- x 100\n                                Valoarea ajutorului nerambursabil solicitat",null,null,null,null,null,null,null,null,null,null,null,null,null,null,null,null,null,null,null,null,null,null,null,null,null,null,null,null,null,null,null,null,null,null,null,null,null,null,null,null,null,null,null,null,null,null,null,null,null,"Punctaj obţinut"]
[null,null,null,null,null,null,"• > 200%",null,null,null,null,null,null,null,null,null,null,null,null,null,null,null,null,null,null,null,null,null,null,null,null,null,null,null,null,null,null,null,null,null,null,null,null,null,null,null,null,null,null,null,null,null,null,null,null,null,5]
[null,null,null,null,null,null,"• Între 176 şi 200%",null,null,null,null,null,null,null,null,null,null,null,null,null,null,null,null,null,null,null,null,null,null,null,null,null,null,null,null,null,null,null,null,null,null,null,null,null,null,null,null,null,null,null,null,null,null,null,null,null,4]
[null,null,null,null,null,null,"• Între 151 şi 175%",null,null,null,null,null,null,null,null,null,null,null,null,null,null,null,null,null,null,null,null,null,null,null,null,null,null,null,null,null,null,null,null,null,null,null,null,null,null,null,null,null,null,null,null,null,null,null,null,null,3]
[null,null,null,null,null,null,"• Între 121 şi 150%",null,null,null,null,null,null,null,null,null,null,null,null,null,null,null,null,null,null,null,null,null,null,null,null,null,null,null,null,null,null,null,null,null,null,null,null,null,null,null,null,null,null,null,null,null,null,null,null,null,2]
[null,null,null,null,null,null,"• < 121%",null,null,null,null,null,null,null,null,null,null,null,null,null,null,null,null,null,null,null,null,null,null,null,null,null,null,null,null,null,null,null,null,null,null,null,null,null,null,null,null,null,null,null,null,null,null,null,null,null,1]
[]
[null,null,null,null,null,null,"I5. Capacitatea societăţii de a manageria proiectul, experienţă în derularea afacerilor",null,null,null,null,null,null,null,null,null,null,null,null,null,null,null,null,null,null,null,null,null,null,null,null,null,null,null,null,null,null,null,null,null,null,null,null,null,null,null,null,null,null,null,null,null,null,null,null,null,"Punctaj obţinut"]
[null,null,null,null,null,null,"• Firmă nouă sau fără activitate",null,null,null,null,null,null,null,null,null,null,null,null,null,null,null,null,null,null,null,null,null,null,null,null,null,null,null,null,null,null,null,null,null,null,null,null,null,null,null,null,null,null,null,null,null,null,null,null,null,5]
[null,null,null,null,null,null,"• Firmă cu experienţă dar care nu a participat la alt proiect comunitar sau nu a obţinut asistenţă financiară nerambursabilă din partea altui instrument financiar",null,null,null,null,null,null,null,null,null,null,null,null,null,null,null,null,null,null,null,null,null,null,null,null,null,null,null,null,null,null,null,null,null,null,null,null,null,null,null,null,null,null,null,null,null,null,null,null,null,4]
[null,null,null,null,null,null,"• Firmă cu experienţă care a finalizat un proiect comunitar sau a obţinut din asistenţă financiară nerambursabilă din partea altui instrument financiar",null,null,null,null,null,null,null,null,null,null,null,null,null,null,null,null,null,null,null,null,null,null,null,null,null,null,null,null,null,null,null,null,null,null,null,null,null,null,null,null,null,null,null,null,null,null,null,null,null,3]
[null,null,null,null,null,null,"TOTAL"]
[null,null,null,null,null,null,null,null,"Codul unic de înregistrare APIA"]
[null,null,null,null,null,null,null,null,"În cazul în care nu aveți un cod unic de înregistrare APIA, completați acest formular."]
[null,null,null,null,null,null,"FORMULAR"]
[null,null,null,null,null,null,"de înscriere în Registrul unic de identificare pentru solicitanţii de finanţare prin măsurile"]
[null,null,null,null,null,null,"Programului naţional de dezvoltare rurală 2014 - 2020"]
[]
[null,null,null,null,null,null,"Denumire solicitant:"]
[]
[null,null,null,null,null,null,"Categorie Solicitant:"]
[]
[null,null,null,null,null,null,"Sediul / Adresa"]
[]
[null,null,null,null,null,null,"Ţara",null,null,null,null,"România",null,null,null,null,null,null,null,null,"Judeţul",null,null,null,null,null,null,null,null,null,null,null,null,null,null,null,null,null,null,"oraşul"]
[]
[null,null,null,null,null,null,"comuna",null,null,null,null,null,null,null,null,null,null,null,null,null,null,null,null,null,null,null,null,"satul",null,null,null,null,null,null,null,null,null,null,null,null,null,null,null,null,null,"strada"]
[]
[null,null,null,null,null,null,"nr.",null,null,null,null,null,null,null,"bl.",null,null,null,null,null,"et.",null,null,null,null,"ap.",null,null,null,null,null,"sectorul",null,null,null,null,null,null,null,null,null,null,null,null,"codul poştal"]
[]
[null,null,null,null,null,null,"Număr de telefon",null,null,null,null,null,null,null,null,null,null,null,null,null,null,null,null,null,null,null,null,null,null,"Fax",null,null,null,null,null,null,null,null,null,null,null,null,null,null,"E-mail"]
[]
[null,null,null,null,null,null,"Număr de înregistrare în registrul comerțului/Registrul asociațiilor și fundațiilor"]
[]
[null,null,null,null,null,null,"CUI / CIF"]
[]
[null,null,null,null,null,null,"Cod CAEN pentru activitatea principală"]
[]
[null,null,null,null,null,null,"Cod CAEN pentru activitatea secundară pentru care se solicită înregistrarea în Registrul unic de identificare"]
[]
[null,null,null,null,null,null,"Cod IBAN"]
[]
[null,null,null,null,null,null,"deschis la Banca"]
[]
[null,null,null,null,null,null,"Sucursala / Agenție"]
[]
[null,null,null,null,null,null,"Prin reprezentant legal, doamna/domnul"]
[]
[null,null,null,null,null,null,"cu CNP",null,null,null,null,null,null,null,null,null,null,null,null,null,null,"solicit înscrierea în Registrul unic de îdentificare - Agenţia de Plăţi şi Intervenţie pentru Agricultură."]
[]
[null,null,null,null,null,null,"Am luat la cunoştinţă că orice modificare a informaţiilor de mai sus trebuie furnizată către APIA în termen de maximum 10 zile\nlucrătoare de la producerea acestora.\nDeclar pe propria răspundere că cele de mai sus sunt conforme cu realitatea.\nSunt de acord ca datele din cerere să fie introduse în baza de date a Sistemului Integrat de Administrare şi Control, procesate şi\nverificate în vederea înscrierii în Registrul unic de identificare şi transmise autorităţilor responsabile în vederea elaborării de studii\nstatistice şi de evaluări economice, în condiţiile Legii nr. 677-2001 pentru protecţia persoanelor cu privire la prelucrarea datelor cu\ncaracter personal şi libera circulaţie a acestor date, cu modificarile şi completările ulterioare."]
[]
[null,null,null,null,null,null,"Reprezentant legal",null,null,null,null,null,null,null,null,null,null,null,null,null,null,null,null,null,null,null,null,null,null,null,null,null,null,null,null,null,null,null,null,null,null,null,null,null,null,null,null,null,null,"Data:"]
[]
[null,null,null,null,null,null,"Numele şi prenumele"]
[]
[null,null,null,null,null,null,"Semnătura "]

{"sheet":"COEFICIENŢI PRODUCŢIE STANDARD ","index":1,"n_rows":81,"n_cols":63,"rows_kept":81,"cut":false,"hidden":false,"merged":[[79,0,79,8],[79,9,79,29],[79,30,79,37],[79,38,79,47],[79,48,79,60],[80,0,82,62],[77,0,77,8],[77,9,77,29],[77,30,77,37],[77,38,77,47],[77,48,77,60],[78,0,78,8],[78,9,78,29],[78,30,78,37],[78,38,78,47],[78,48,78,60],[75,0,75,8],[75,9,75,29],[75,30,75,37],[75,38,75,47],[75,48,75,60],[76,0,76,8],[76,9,76,29],[76,30,76,37],[76,38,76,47],[76,48,76,60],[73,0,73,8],[73,9,73,29],[73,30,73,37],[73,38,73,47],[73,48,73,60],[74,0,74,8],[74,9,74,29],[74,30,74,37],[74,38,74,47],[74,48,74,60],[71,0,71,8],[71,9,71,29],[71,30,71,37],[71,38,71,47],[71,48,71,60],[72,0,72,8],[72,9,72,29],[72,30,72,37],[72,38,72,47],[72,48,72,60],[69,0,69,8],[69,9,69,29],[69,30,69,37],[69,38,69,47],[69,48,69,60],[70,0,70,8],[70,9,70,29],[70,30,70,37],[70,38,70,47],[70,48,70,60],[67,0,67,8],[67,9,67,29],[67,30,67,37],[67,38,67,47],[67,48,67,60],[68,0,68,8],[68,9,68,29],[68,30,68,37],[68,38,68,47],[68,48,68,60],[65,0,65,8],[65,9,65,29],[65,30,65,37],[65,38,65,47],[65,48,65,60],[66,0,66,8],[66,9,66,29],[66,30,66,37],[66,38,66,47],[66,48,66,60],[63,0,63,8],[63,9,63,29],[63,30,63,37],[63,38,63,47],[63,48,63,60],[64,0,64,8],[64,9,64,29],[64,30,64,37],[64,38,64,47],[64,48,64,60],[61,0,61,8],[61,9,61,29],[61,30,61,37],[61,38,61,47],[61,48,61,60],[62,0,62,8],[62,9,62,29],[62,30,62,37],[62,38,62,47],[62,48,62,60],[59,0,59,8],[59,9,59,29],[59,30,59,37],[59,38,59,47],[59,48,59,60],[60,0,60,8],[60,9,60,29],[60,30,60,37],[60,38,60,47],[60,48,60,60],[57,0,57,8],[57,9,57,29],[57,30,57,37],[57,38,57,47],[57,48,57,60],[58,0,58,8],[58,9,58,29],[58,30,58,37],[58,38,58,47],[58,48,58,60],[55,0,55,8],[55,9,55,29],[55,30,55,37],[55,38,55,47],[55,48,55,60],[56,0,56,8],[56,9,56,29],[56,30,56,37],[56,38,56,47],[56,48,56,60],[53,0,53,8],[53,9,53,29],[53,30,53,37],[53,38,53,47],[53,48,53,60],[54,0,54,8],[54,9,54,29],[54,30,54,37],[54,38,54,47],[54,48,54,60],[47,0,47,8],[47,9,47,29],[47,30,47,37],[47,38,47,47],[47,48,47,60],[51,0,51,60],[52,0,52,8],[52,9,52,29],[52,30,52,37],[52,38,52,47],[52,48,52,60],[48,0,48,8],[48,9,48,29],[48,30,48,37],[48,38,48,47],[48,48,48,60],[49,0,49,8],[49,9,49,29],[49,30,49,37],[49,38,49,47],[49,48,49,60],[45,0,45,8],[45,9,45,29],[45,30,45,37],[45,38,45,47],[45,48,45,60],[46,0,46,8],[46,9,46,29],[46,30,46,37],[46,38,46,47],[46,48,46,60],[43,0,43,8],[43,9,43,29],[43,30,43,37],[43,38,43,47],[43,48,43,60],[44,0,44,8],[44,9,44,29],[44,30,44,37],[44,38,44,47],[44,48,44,60],[41,0,41,8],[41,9,41,29],[41,30,41,37],[41,38,41,47],[41,48,41,60],[42,0,42,8],[42,9,42,29],[42,30,42,37],[42,38,42,47],[42,48,42,60],[39,0,39,8],[39,9,39,29],[39,30,39,37],[39,38,39,47],[39,48,39,60],[40,0,40,8],[40,9,40,29],[40,30,40,37],[40,38,40,47],[40,48,40,60],[37,0,37,8],[37,9,37,29],[37,30,37,37],[37,38,37,47],[37,48,37,60],[38,0,38,8],[38,9,38,29],[38,30,38,37],[38,38,38,47],[38,48,38,60],[35,0,35,8],[35,9,35,29],[35,30,35,37],[35,38,35,47],[35,48,35,60],[36,0,36,8],[36,9,36,29],[36,30,36,37],[36,38,36,47],[36,48,36,60],[33,0,33,8],[33,9,33,29],[33,30,33,37],[33,38,33,47],[33,48,33,60],[34,0,34,8],[34,9,34,29],[34,30,34,37],[34,38,34,47],[34,48,34,60],[31,0,31,8],[31,9,31,29],[31,30,31,37],[31,38,31,47],[31,48,31,60],[32,0,32,8],[32,9,32,29],[32,30,32,37],[32,38,32,47],[32,48,32,60],[29,0,29,8],[29,9,29,29],[29,30,29,37],[29,38,29,47],[29,48,29,60],[30,0,30,8],[30,9,30,29],[30,30,30,37],[30,38,30,47],[30,48,30,60],[27,0,27,8],[27,9,27,29],[27,30,27,37],[27,38,27,47],[27,48,27,60],[28,0,28,8],[28,9,28,29],[28,30,28,37],[28,38,28,47],[28,48,28,60],[25,0,25,8],[25,9,25,29],[25,30,25,37],[25,38,25,47],[25,48,25,60],[26,0,26,8],[26,9,26,29],[26,30,26,37],[26,38,26,47],[26,48,26,60],[23,0,23,8],[23,9,23,29],[23,30,23,37],[23,38,23,47],[23,48,23,60],[24,0,24,8],[24,9,24,29],[24,30,24,37],[24,38,24,47],[24,48,24,60],[21,0,21,8],[21,9,21,29],[21,30,21,37],[21,38,21,47],[21,48,21,60],[22,0,22,8],[22,9,22,29],[22,30,22,37],[22,38,22,47],[22,48,22,60],[19,0,19,8],[19,9,19,29],[19,30,19,37],[19,38,19,47],[19,48,19,60],[20,0,20,8],[20,9,20,29],[20,30,20,37],[20,38,20,47],[20,48,20,60],[17,0,17,8],[17,9,17,29],[17,30,17,37],[17,38,17,47],[17,48,17,60],[18,0,18,8],[18,9,18,29],[18,30,18,37],[18,38,18,47],[18,48,18,60],[15,0,15,8],[15,9,15,29],[15,30,15,37],[15,38,15,47],[15,48,15,60],[16,0,16,8],[16,9,16,29],[16,30,16,37],[16,38,16,47],[16,48,16,60],[13,0,13,8],[13,9,13,29],[13,30,13,37],[13,38,13,47],[13,48,13,60],[14,0,14,8],[14,9,14,29],[14,30,14,37],[14,38,14,47],[14,48,14,60],[11,0,11,8],[11,9,11,29],[11,30,11,37],[11,38,11,47],[11,48,11,60],[12,0,12,8],[12,9,12,29],[12,30,12,37],[12,38,12,47],[12,48,12,60],[9,0,9,8],[9,9,9,29],[9,30,9,37],[9,38,9,47],[9,48,9,60],[10,0,10,8],[10,9,10,29],[10,30,10,37],[10,38,10,47],[10,48,10,60],[7,0,7,8],[7,9,7,29],[7,30,7,37],[7,38,7,47],[7,48,7,60],[8,0,8,8],[8,9,8,29],[8,30,8,37],[8,38,8,47],[8,48,8,60],[5,0,5,8],[5,9,5,29],[5,30,5,37],[5,38,5,47],[5,48,5,60],[6,0,6,8],[6,9,6,29],[6,30,6,37],[6,38,6,47],[6,48,6,60],[3,0,3,8],[3,9,3,29],[3,30,3,37],[3,38,3,47],[3,48,3,60],[4,0,4,8],[4,9,4,29],[4,30,4,37],[4,38,4,47],[4,48,4,60],[0,0,0,62],[1,0,1,8],[1,9,1,29],[1,30,1,37],[1,38,1,47],[1,48,1,60],[2,0,2,8],[2,9,2,29],[2,30,2,37],[2,38,2,47],[2,48,2,60]]}
["COEFICIENŢI PRODUCŢIE STANDARD 2013"]
["Coduri EUROSTAT",null,null,null,null,null,null,null,null,"Denumire culturi",null,null,null,null,null,null,null,null,null,null,null,null,null,null,null,null,null,null,null,null,"Suprafaţa       (ha)",null,null,null,null,null,null,null,"SO 2013          euro/ha",null,null,null,null,null,null,null,null,null,"SO activitate\nexistentă",null,null,null,null,null,null,null,null,null,null,null,null,"Suprafaţa\n(ha) în urma\nrealizării\ninvestiţiei","SO în urma\nrealizării\ninvestiţiei"]
[0,null,null,null,null,null,null,null,null,1,null,null,null,null,null,null,null,null,null,null,null,null,null,null,null,null,null,null,null,null,2,null,null,null,null,null,null,null,3,null,null,null,null,null,null,null,null,null,4,null,null,null,null,null,null,null,null,null,null,null,null,5,6]
["B_1_1_1",null,null,null,null,null,null,null,null,"Grâu comun",null,null,null,null,null,null,null,null,null,null,null,null,null,null,null,null,null,null,null,null,null,null,null,null,null,null,null,null,614.09,null,null,null,null,null,null,null,null,null,{"$f":"AE4*AM4","v":0},null,null,null,null,null,null,null,null,null,null,null,null,null,{"$f":"AM4*BJ4","v":0}]
["B_1_1_2",null,null,null,null,null,null,null,null,"Grâu dur",null,null,null,null,null,null,null,null,null,null,null,null,null,null,null,null,null,null,null,null,null,null,null,null,null,null,null,null,432.81,null,null,null,null,null,null,null,null,null,0,null,null,null,null,null,null,null,null,null,null,null,null,null,{"$f":"AM5*BJ5","v":0}]
["B_1_1_3",null,null,null,null,null,null,null,null,"Secară",null,null,null,null,null,null,null,null,null,null,null,null,null,null,null,null,null,null,null,null,null,null,null,null,null,null,null,null,354.27,null,null,null,null,null,null,null,null,null,0,null,null,null,null,null,null,null,null,null,null,null,null,null,0]
["B_1_1_4",null,null,null,null,null,null,null,null,"Orz+Orzoaică",null,null,null,null,null,null,null,null,null,null,null,null,null,null,null,null,null,null,null,null,null,null,null,null,null,null,null,null,529.44000000000005,null,null,null,null,null,null,null,null,null,0,null,null,null,null,null,null,null,null,null,null,null,null,null,0]
["B_1_1_5",null,null,null,null,null,null,null,null,"Ovăz",null,null,null,null,null,null,null,null,null,null,null,null,null,null,null,null,null,null,null,null,null,null,null,null,null,null,null,null,331.88,null,null,null,null,null,null,null,null,null,0,null,null,null,null,null,null,null,null,null,null,null,null,null,0]
["B_1_1_6",null,null,null,null,null,null,null,null,"Porumb boabe",null,null,null,null,null,null,null,null,null,null,null,null,null,null,null,null,null,null,null,null,null,null,null,null,null,null,null,null,641.79999999999995,null,null,null,null,null,null,null,null,null,0,null,null,null,null,null,null,null,null,null,null,null,null,null,0]
["B_1_1_7",null,null,null,null,null,null,null,null,"Orez",null,null,null,null,null,null,null,null,null,null,null,null,null,null,null,null,null,null,null,null,null,null,null,null,null,null,null,null,913.26,null,null,null,null,null,null,null,null,null,0,null,null,null,null,null,null,null,null,null,null,null,null,null,0]
["B_1_1_99",null,null,null,null,null,null,null,null,"Alte cereale:  sorg, hrişca, mei, triticale, iarba-cănăraşului, altele",null,null,null,null,null,null,null,null,null,null,null,null,null,null,null,null,null,null,null,null,null,null,null,null,null,null,null,null,452.74,null,null,null,null,null,null,null,null,null,0,null,null,null,null,null,null,null,null,null,null,null,null,null,0]
["B_1_2_1",null,null,null,null,null,null,null,null,"Mazăre boabe, fasole boabe, lupin dulce",null,null,null,null,null,null,null,null,null,null,null,null,null,null,null,null,null,null,null,null,null,null,null,null,null,null,null,null,533.77,null,null,null,null,null,null,null,null,null,0,null,null,null,null,null,null,null,null,null,null,null,null,null,0]
["B_1_2_2",null,null,null,null,null,null,null,null,"Linte, bob, năut şi măzăriche",null,null,null,null,null,null,null,null,null,null,null,null,null,null,null,null,null,null,null,null,null,null,null,null,null,null,null,null,454.79,null,null,null,null,null,null,null,null,null,0,null,null,null,null,null,null,null,null,null,null,null,null,null,0]
["B_1_3",null,null,null,null,null,null,null,null,"Cartofi (inclusiv cartofi noi, material săditor, cartof dulce destinat consumului uman)",null,null,null,null,null,null,null,null,null,null,null,null,null,null,null,null,null,null,null,null,null,null,null,null,null,null,null,null,3167.88,null,null,null,null,null,null,null,null,null,0,null,null,null,null,null,null,null,null,null,null,null,null,null,0]
["B_1_4",null,null,null,null,null,null,null,null,"Sfeclă de zahăr",null,null,null,null,null,null,null,null,null,null,null,null,null,null,null,null,null,null,null,null,null,null,null,null,null,null,null,null,1449.74,null,null,null,null,null,null,null,null,null,0,null,null,null,null,null,null,null,null,null,null,null,null,null,0]
["B_1_5",null,null,null,null,null,null,null,null,"Plante rădăcinoase pentru nutreț: sfecla furajeră, alte plante furajere din familia brasiceelor, napi furajeri, morcovi furajeri, batata(cartof dulce), păstârnac, ignama, manioc,alte rădăcinoase",null,null,null,null,null,null,null,null,null,null,null,null,null,null,null,null,null,null,null,null,null,null,null,null,null,null,null,null,1101.45,null,null,null,null,null,null,null,null,null,0,null,null,null,null,null,null,null,null,null,null,null,null,null,0]
["B_1_6_1",null,null,null,null,null,null,null,null,"Tutun",null,null,null,null,null,null,null,null,null,null,null,null,null,null,null,null,null,null,null,null,null,null,null,null,null,null,null,null,1696.83,null,null,null,null,null,null,null,null,null,0,null,null,null,null,null,null,null,null,null,null,null,null,null,0]
["B_1_6_2",null,null,null,null,null,null,null,null,"Hamei",null,null,null,null,null,null,null,null,null,null,null,null,null,null,null,null,null,null,null,null,null,null,null,null,null,null,null,null,4105.24,null,null,null,null,null,null,null,null,null,0,null,null,null,null,null,null,null,null,null,null,null,null,null,0]
["B_1_6_4",null,null,null,null,null,null,null,null,"Rapiţă",null,null,null,null,null,null,null,null,null,null,null,null,null,null,null,null,null,null,null,null,null,null,null,null,null,null,null,null,647.72,null,null,null,null,null,null,null,null,null,0,null,null,null,null,null,null,null,null,null,null,null,null,null,0]
["B_1_6_5",null,null,null,null,null,null,null,null,"Floarea soarelui",null,null,null,null,null,null,null,null,null,null,null,null,null,null,null,null,null,null,null,null,null,null,null,null,null,null,null,null,564.52,null,null,null,null,null,null,null,null,null,0,null,null,null,null,null,null,null,null,null,null,null,null,null,0]
["B_1_6_6",null,null,null,null,null,null,null,null,"Soia",null,null,null,null,null,null,null,null,null,null,null,null,null,null,null,null,null,null,null,null,null,null,null,null,null,null,null,null,611,null,null,null,null,null,null,null,null,null,0,null,null,null,null,null,null,null,null,null,null,null,null,null,0]
["B_1_6_7",null,null,null,null,null,null,null,null,"In pentru ulei",null,null,null,null,null,null,null,null,null,null,null,null,null,null,null,null,null,null,null,null,null,null,null,null,null,null,null,null,1563.56,null,null,null,null,null,null,null,null,null,0,null,null,null,null,null,null,null,null,null,null,null,null,null,0]
["B_1_6_8",null,null,null,null,null,null,null,null,"Alte plante pentru ulei: ricin, şofrănaş, susan, arahide, mac, muştar, alte culturi oleaginoase",null,null,null,null,null,null,null,null,null,null,null,null,null,null,null,null,null,null,null,null,null,null,null,null,null,null,null,null,374,null,null,null,null,null,null,null,null,null,0,null,null,null,null,null,null,null,null,null,null,null,null,null,0]
["B_1_6_9",null,null,null,null,null,null,null,null,"In textil",null,null,null,null,null,null,null,null,null,null,null,null,null,null,null,null,null,null,null,null,null,null,null,null,null,null,null,null,307.17,null,null,null,null,null,null,null,null,null,0,null,null,null,null,null,null,null,null,null,null,null,null,null,0]
["B_1_6_10",null,null,null,null,null,null,null,null,"Cânepă",null,null,null,null,null,null,null,null,null,null,null,null,null,null,null,null,null,null,null,null,null,null,null,null,null,null,null,null,518.11,null,null,null,null,null,null,null,null,null,0,null,null,null,null,null,null,null,null,null,null,null,null,null,0]
["B_1_6_12",null,null,null,null,null,null,null,null,"Plante medicinale şi aromatice inclusiv ceaiul, cafeaua şi cicoarea pentru cafea: muşeţel, mătrăguna, menta, mac, angelica,chimen, genţiana, iasomia, lavanda, levănţica, origanul, şofranul, salvia,valeriana, gălbeneaua, etc.",null,null,null,null,null,null,null,null,null,null,null,null,null,null,null,null,null,null,null,null,null,null,null,null,null,null,null,null,937.85,null,null,null,null,null,null,null,null,null,0,null,null,null,null,null,null,null,null,null,null,null,null,null,0]
["B_1_6_99",null,null,null,null,null,null,null,null,"Alte plante industriale: cicoarea, trestia de zahăr, alte plante tehnice nemenţionate în altă parte, sorgul tehnic (pentru mături)",null,null,null,null,null,null,null,null,null,null,null,null,null,null,null,null,null,null,null,null,null,null,null,null,null,null,null,null,717.56,null,null,null,null,null,null,null,null,null,0,null,null,null,null,null,null,null,null,null,null,null,null,null,0]
["B_1_7_1_1",null,null,null,null,null,null,null,null,"Legume proaspete, pepeni şi căpşuni - în câmp:\n- conopidă, broccoli,\n- legume pentru frunze (praz, salată, spanac etc.), varză,\n- tomate,\n- porumb dulce,\n- legume cultivate pentru fructe: vinete, ardei, dovleci şi dovlecei, castraveciori,\n- legume cultivate pentru rădăcină, bulbi, tuberculi (excepţie cartofi): morcovi, păstârnac, ceapă, usturoi, napi,\n- legume păstăi: fasole, mazăre, cu excepţia lintei şi a năutului,\n- fructele plantelor neperene: căpşuni, pepeni galbeni, pepeni verzi, ananas.",null,null,null,null,null,null,null,null,null,null,null,null,null,null,null,null,null,null,null,null,null,null,null,null,null,null,null,null,6196.49,null,null,null,null,null,null,null,null,null,0,null,null,null,null,null,null,null,null,null,null,null,null,null,0]
["B_1_7_1_2",null,null,null,null,null,null,null,null,"Legume proaspete, pepeni şi căpşuni - în grădină destinate comercializării:\n- conopidă, broccoli,\n- legume pentru frunze (praz, salată, spanac etc.), varză,\n- tomate,\n- porumb dulce,\n- legume cultivate pentru fructe: vinete, ardei, dovleci şi dovlecei, castraveciori,\n- legume cultivate pentru rădăcină, bulbi, tuberculi (excepţie cartofi) - morcovi, păstârnac, ceapă, usturoi, napi,\n- legume păstăi: fasole, mazăre, cu excepţia lintei şi a năutului,\n- fructele plantelor neperene: căpşuni, pepeni galbeni, pepeni verzi, ananas.",null,null,null,null,null,null,null,null,null,null,null,null,null,null,null,null,null,null,null,null,null,null,null,null,null,null,null,null,7176.16,null,null,null,null,null,null,null,null,null,0,null,null,null,null,null,null,null,null,null,null,null,null,null,0]
["B_1_7_2",null,null,null,null,null,null,null,null,"Legume proaspete, pepeni şi căpşuni - în sere și solarii:\n- conopidă, broccoli,\n- legume pentru frunze (praz, salată, spanac etc.), varză,\n- tomate,\n- porumb dulce,\n- legume cultivate pentru fructe: vinete, ardei, dovleci şi dovlecei, castraveciori,\n- legume cultivate pentru rădăcină, bulbi, tuberculi (excepţie cartofi): morcovi, păstârnac,ceapă, usturoi, napi,\n- legume păstăi: fasole, mazăre, cu excepţia lintei şi a năutului,\n- fructele plantelor neperene: căpşuni, pepeni galbeni, pepeni verzi, ananas.",null,null,null,null,null,null,null,null,null,null,null,null,null,null,null,null,null,null,null,null,null,null,null,null,null,null,null,null,27507.66,null,null,null,null,null,null,null,null,null,0,null,null,null,null,null,null,null,null,null,null,null,null,null,0]
["B_1_8_1",null,null,null,null,null,null,null,null,"Flori în câmp:\n- bulbi de flori, cormi, tuberculi,\n- flori tăiate şi boboci,\n- plante cu flori şi plante ornamentale\n- trandafiri pentru petale",null,null,null,null,null,null,null,null,null,null,null,null,null,null,null,null,null,null,null,null,null,null,null,null,null,null,null,null,25527.46,null,null,null,null,null,null,null,null,null,0,null,null,null,null,null,null,null,null,null,null,null,null,null,0]
["B_1_8_2",null,null,null,null,null,null,null,null,"Flori - în sere și solarii:\n- bulbi de flori, cormi, tuberculi,\n- flori tăiate şi boboci,\n- plante cu flori şi plante ornamentale",null,null,null,null,null,null,null,null,null,null,null,null,null,null,null,null,null,null,null,null,null,null,null,null,null,null,null,null,83743.81,null,null,null,null,null,null,null,null,null,0,null,null,null,null,null,null,null,null,null,null,null,null,null,0]
["B_1_9_1",null,null,null,null,null,null,null,null,"Plante de nutreț - Iarba temporară: iarba semănată pe terenuri arabile cedate producţiilor furajere erbacee pe o perioadă mai scurtă de 5 ani şi chiar sub un an",null,null,null,null,null,null,null,null,null,null,null,null,null,null,null,null,null,null,null,null,null,null,null,null,null,null,null,null,266.22000000000003,null,null,null,null,null,null,null,null,null,0,null,null,null,null,null,null,null,null,null,null,null,null,null,0]
["B_1_9_2_1",null,null,null,null,null,null,null,null,"Plante de nutreț - alte furaje verzi - Porumb siloz",null,null,null,null,null,null,null,null,null,null,null,null,null,null,null,null,null,null,null,null,null,null,null,null,null,null,null,null,1029.19,null,null,null,null,null,null,null,null,null,0,null,null,null,null,null,null,null,null,null,null,null,null,null,0]
["B_1_9_2_2",null,null,null,null,null,null,null,null,"Plante de nutreț - Alte furaje verzi: culturi anuale de cereale recoltate verzi, sorgul anual, anumite graminee anuale cum este firuţa, cruciferele, faceea dacă sunt recoltate verzi şi nu au fost menţionate în altă parte.",null,null,null,null,null,null,null,null,null,null,null,null,null,null,null,null,null,null,null,null,null,null,null,null,null,null,null,null,476.13,null,null,null,null,null,null,null,null,null,0,null,null,null,null,null,null,null,null,null,null,null,null,null,0]
["B_1_9_2_99",null,null,null,null,null,null,null,null,"Alte plante de nutreț: diferite specii de trifoi anual sau peren (trifoi alb, trifoi roşu, trifoi de Alexandria), diferite varietăţi de lucernă.",null,null,null,null,null,null,null,null,null,null,null,null,null,null,null,null,null,null,null,null,null,null,null,null,null,null,null,null,662.78,null,null,null,null,null,null,null,null,null,0,null,null,null,null,null,null,null,null,null,null,null,null,null,0]
["B_1_10",null,null,null,null,null,null,null,null,"Seminţe şi seminceri:\n- semințe de graminee,\n- seminţe pentru horticultură,\n- seminţe şi răsaduri pentru teren arabil cu excepţia cerealelor, a boabelor de leguminoase uscate, a cartofilor, a plantelor oleaginoase.",null,null,null,null,null,null,null,null,null,null,null,null,null,null,null,null,null,null,null,null,null,null,null,null,null,null,null,null,2993.73,null,null,null,null,null,null,null,null,null,0,null,null,null,null,null,null,null,null,null,null,null,null,null,0]
["B_11",null,null,null,null,null,null,null,null,"Alte plante: culturi de mică importanţă economică care nu pot fi încadrate în altă categorie",null,null,null,null,null,null,null,null,null,null,null,null,null,null,null,null,null,null,null,null,null,null,null,null,null,null,null,null,592.99,null,null,null,null,null,null,null,null,null,0,null,null,null,null,null,null,null,null,null,null,null,null,null,0]
["B_3_1",null,null,null,null,null,null,null,null,"Păşuni și fânețe permanente - pășuni și fânețe",null,null,null,null,null,null,null,null,null,null,null,null,null,null,null,null,null,null,null,null,null,null,null,null,null,null,null,null,295.04000000000002,null,null,null,null,null,null,null,null,null,0,null,null,null,null,null,null,null,null,null,null,null,null,null,0]
["B_3_2",null,null,null,null,null,null,null,null,"Păşuni și fânețe permanente - pe terenuri accidentate - păşuni sărace, inclusiv lăstărişul, de obicei nefertilizate şi neîntrebuinţate:\n– păşuni cu randament scăzut situate în locuri accidentate şi la altitudini mari, care nu sunt cosite;\n – terenuri stâncoase, terenuri mlăştinoase, bărăganuri",null,null,null,null,null,null,null,null,null,null,null,null,null,null,null,null,null,null,null,null,null,null,null,null,null,null,null,null,92.33,null,null,null,null,null,null,null,null,null,0,null,null,null,null,null,null,null,null,null,null,null,null,null,0]
["B_4_1_1_1",null,null,null,null,null,null,null,null,"Fructe, pomi și arbuști - climă temperată:\n- mere, \n- pere\n- piersici și nectarine,\n- Alte fructe: prune, caise, cireşe, vişine, gutui.",null,null,null,null,null,null,null,null,null,null,null,null,null,null,null,null,null,null,null,null,null,null,null,null,null,null,null,null,2812.04,null,null,null,null,null,null,null,null,null,0,null,null,null,null,null,null,null,null,null,null,null,null,null,0]
["B_4_1_2",null,null,null,null,null,null,null,null,"Livezi de coacăz (albe, negre şi roşii), zmeur, smochin, afin, agriş, mure, măceşe, soc, cătină, lonicera, coarne, aronia, goji.",null,null,null,null,null,null,null,null,null,null,null,null,null,null,null,null,null,null,null,null,null,null,null,null,null,null,null,null,3958.34,null,null,null,null,null,null,null,null,null,0,null,null,null,null,null,null,null,null,null,null,null,null,null,0]
["B_4_1_3",null,null,null,null,null,null,null,null,"Fructe, pomi și arbuști: nuci, alune, migdale, castane",null,null,null,null,null,null,null,null,null,null,null,null,null,null,null,null,null,null,null,null,null,null,null,null,null,null,null,null,1754.4,null,null,null,null,null,null,null,null,null,0,null,null,null,null,null,null,null,null,null,null,null,null,null,0]
["B_4_4_1",null,null,null,null,null,null,null,null,"Vii - vin nobil",null,null,null,null,null,null,null,null,null,null,null,null,null,null,null,null,null,null,null,null,null,null,null,null,null,null,null,null,1981.83,null,null,null,null,null,null,null,null,null,0,null,null,null,null,null,null,null,null,null,null,null,null,null,0]
["B_4_4_2",null,null,null,null,null,null,null,null,"Vii - alte vinuri",null,null,null,null,null,null,null,null,null,null,null,null,null,null,null,null,null,null,null,null,null,null,null,null,null,null,null,null,1889.96,null,null,null,null,null,null,null,null,null,0,null,null,null,null,null,null,null,null,null,null,null,null,null,0]
["B_4_4_3",null,null,null,null,null,null,null,null,"Vii – struguri de masă",null,null,null,null,null,null,null,null,null,null,null,null,null,null,null,null,null,null,null,null,null,null,null,null,null,null,null,null,2170.52,null,null,null,null,null,null,null,null,null,0,null,null,null,null,null,null,null,null,null,null,null,null,null,0]
["B_4_5",null,null,null,null,null,null,null,null,"Pepiniere",null,null,null,null,null,null,null,null,null,null,null,null,null,null,null,null,null,null,null,null,null,null,null,null,null,null,null,null,5614.25,null,null,null,null,null,null,null,null,null,0,null,null,null,null,null,null,null,null,null,null,null,null,null,0]
["B_4_6",null,null,null,null,null,null,null,null,"Alte culturi  permanente: răchita, papura, bambus, salcie, brazi de crăciun",null,null,null,null,null,null,null,null,null,null,null,null,null,null,null,null,null,null,null,null,null,null,null,null,null,null,null,null,487.35,null,null,null,null,null,null,null,null,null,0,null,null,null,null,null,null,null,null,null,null,null,null,null,0]
["B_6_1",null,null,null,null,null,null,null,null,"Ciupercării  pe 100 mp (Nr. recolte pe an = 4)",null,null,null,null,null,null,null,null,null,null,null,null,null,null,null,null,null,null,null,null,null,null,null,null,null,null,null,null,4456.78,null,null,null,null,null,null,null,null,null,{"$f":"AE49*AM49/4","v":0},null,null,null,null,null,null,null,null,null,null,null,null,null,0]
[null,null,null,null,null,null,null,null,null,"TOTAL VEGETAL",null,null,null,null,null,null,null,null,null,null,null,null,null,null,null,null,null,null,null,null,{"$f":"SUM(AE4:AL48)","v":0},null,null,null,null,null,null,null,null,null,null,null,null,null,null,null,null,null,{"$f":"SUM(AW4:BI49)","v":0},null,null,null,null,null,null,null,null,null,null,null,null,null,{"$f":"SUM(BK4:BK49)","v":0}]
[]
[]
["Coduri EUROSTAT",null,null,null,null,null,null,null,null,"Denumire specii animale",null,null,null,null,null,null,null,null,null,null,null,null,null,null,null,null,null,null,null,null,"Număr\ncapete",null,null,null,null,null,null,null,"SO 2013           euro/cap",null,null,null,null,null,null,null,null,null,"SO activitate\nexistentă",null,null,null,null,null,null,null,null,null,null,null,null,"Total capete\nanimale în\nurma realizării\ninvestiţiei","SO în urma\nrealizării\ninvestiţiei"]
[0,null,null,null,null,null,null,null,null,1,null,null,null,null,null,null,null,null,null,null,null,null,null,null,null,null,null,null,null,null,2,null,null,null,null,null,null,null,3,null,null,null,null,null,null,null,null,null,4,null,null,null,null,null,null,null,null,null,null,null,null,5,6]
["C_1","C_1","C_1","C_1","C_1","C_1","C_1","C_1","C_1","Ecvidee","Ecvidee","Ecvidee","Ecvidee","Ecvidee","Ecvidee","Ecvidee","Ecvidee","Ecvidee","Ecvidee","Ecvidee","Ecvidee","Ecvidee","Ecvidee","Ecvidee","Ecvidee","Ecvidee","Ecvidee","Ecvidee","Ecvidee","Ecvidee",null,null,null,null,null,null,null,null,1404.31,1404.31,1404.31,1404.31,1404.31,1404.31,1404.31,1404.31,1404.31,1404.31,{"$f":"AE55*AM55","v":0},null,null,null,null,null,null,null,null,null,null,null,null,null,{"$f":"AM55*BJ55","v":0}]
["C_2_1","C_2_1","C_2_1","C_2_1","C_2_1","C_2_1","C_2_1","C_2_1","C_2_1","Bovine  sub 1 an - total","Bovine  sub 1 an - total","Bovine  sub 1 an - total","Bovine  sub 1 an - total","Bovine  sub 1 an - total","Bovine  sub 1 an - total","Bovine  sub 1 an - total","Bovine  sub 1 an - total","Bovine  sub 1 an - total","Bovine  sub 1 an - total","Bovine  sub 1 an - total","Bovine  sub 1 an - total","Bovine  sub 1 an - total","Bovine  sub 1 an - total","Bovine  sub 1 an - total","Bovine  sub 1 an - total","Bovine  sub 1 an - total","Bovine  sub 1 an - total","Bovine  sub 1 an - total","Bovine  sub 1 an - total","Bovine  sub 1 an - total",null,null,null,null,null,null,null,null,216.38,216.38,216.38,216.38,216.38,216.38,216.38,216.38,216.38,216.38,0,null,null,null,null,null,null,null,null,null,null,null,null,null,{"$f":"AM56*BJ56","v":0}]
["C_2_2","C_2_2","C_2_2","C_2_2","C_2_2","C_2_2","C_2_2","C_2_2","C_2_2","Bovine sub 2 ani - masculi","Bovine sub 2 ani - masculi","Bovine sub 2 ani - masculi","Bovine sub 2 ani - masculi","Bovine sub 2 ani - masculi","Bovine sub 2 ani - masculi","Bovine sub 2 ani - masculi","Bovine sub 2 ani - masculi","Bovine sub 2 ani - masculi","Bovine sub 2 ani - masculi","Bovine sub 2 ani - masculi","Bovine sub 2 ani - masculi","Bovine sub 2 ani - masculi","Bovine sub 2 ani - masculi","Bovine sub 2 ani - masculi","Bovine sub 2 ani - masculi","Bovine sub 2 ani - masculi","Bovine sub 2 ani - masculi","Bovine sub 2 ani - masculi","Bovine sub 2 ani - masculi","Bovine sub 2 ani - masculi",null,null,null,null,null,null,null,null,344.4,344.4,344.4,344.4,344.4,344.4,344.4,344.4,344.4,344.4,0,null,null,null,null,null,null,null,null,null,null,null,null,null,0]
["C_2_3","C_2_3","C_2_3","C_2_3","C_2_3","C_2_3","C_2_3","C_2_3","C_2_3","Bovine sub 2 ani - femele","Bovine sub 2 ani - femele","Bovine sub 2 ani - femele","Bovine sub 2 ani - femele","Bovine sub 2 ani - femele","Bovine sub 2 ani - femele","Bovine sub 2 ani - femele","Bovine sub 2 ani - femele","Bovine sub 2 ani - femele","Bovine sub 2 ani - femele","Bovine sub 2 ani - femele","Bovine sub 2 ani - femele","Bovine sub 2 ani - femele","Bovine sub 2 ani - femele","Bovine sub 2 ani - femele","Bovine sub 2 ani - femele","Bovine sub 2 ani - femele","Bovine sub 2 ani - femele","Bovine sub 2 ani - femele","Bovine sub 2 ani - femele","Bovine sub 2 ani - femele",null,null,null,null,null,null,null,null,341.49,341.49,341.49,341.49,341.49,341.49,341.49,341.49,341.49,341.49,0,null,null,null,null,null,null,null,null,null,null,null,null,null,0]
["C_2_4","C_2_4","C_2_4","C_2_4","C_2_4","C_2_4","C_2_4","C_2_4","C_2_4","Bovine de 2 ani şi peste - masculi","Bovine de 2 ani şi peste - masculi","Bovine de 2 ani şi peste - masculi","Bovine de 2 ani şi peste - masculi","Bovine de 2 ani şi peste - masculi","Bovine de 2 ani şi peste - masculi","Bovine de 2 ani şi peste - masculi","Bovine de 2 ani şi peste - masculi","Bovine de 2 ani şi peste - masculi","Bovine de 2 ani şi peste - masculi","Bovine de 2 ani şi peste - masculi","Bovine de 2 ani şi peste - masculi","Bovine de 2 ani şi peste - masculi","Bovine de 2 ani şi peste - masculi","Bovine de 2 ani şi peste - masculi","Bovine de 2 ani şi peste - masculi","Bovine de 2 ani şi peste - masculi","Bovine de 2 ani şi peste - masculi","Bovine de 2 ani şi peste - masculi","Bovine de 2 ani şi peste - masculi","Bovine de 2 ani şi peste - masculi",null,null,null,null,null,null,null,null,817.88,817.88,817.88,817.88,817.88,817.88,817.88,817.88,817.88,817.88,0,null,null,null,null,null,null,null,null,null,null,null,null,null,0]
["C_2_5","C_2_5","C_2_5","C_2_5","C_2_5","C_2_5","C_2_5","C_2_5","C_2_5","Bovine de 2 ani şi peste  - femele (juninci pentru îngrăşat, juninci pentru reproducţie)","Bovine de 2 ani şi peste  - femele (juninci pentru îngrăşat, juninci pentru reproducţie)","Bovine de 2 ani şi peste  - femele (juninci pentru îngrăşat, juninci pentru reproducţie)","Bovine de 2 ani şi peste  - femele (juninci pentru îngrăşat, juninci pentru reproducţie)","Bovine de 2 ani şi peste  - femele (juninci pentru îngrăşat, juninci pentru reproducţie)","Bovine de 2 ani şi peste  - femele (juninci pentru îngrăşat, juninci pentru reproducţie)","Bovine de 2 ani şi peste  - femele (juninci pentru îngrăşat, juninci pentru reproducţie)","Bovine de 2 ani şi peste  - femele (juninci pentru îngrăşat, juninci pentru reproducţie)","Bovine de 2 ani şi peste  - femele (juninci pentru îngrăşat, juninci pentru reproducţie)","Bovine de 2 ani şi peste  - femele (juninci pentru îngrăşat, juninci pentru reproducţie)","Bovine de 2 ani şi peste  - femele (juninci pentru îngrăşat, juninci pentru reproducţie)","Bovine de 2 ani şi peste  - femele (juninci pentru îngrăşat, juninci pentru reproducţie)","Bovine de 2 ani şi peste  - femele (juninci pentru îngrăşat, juninci pentru reproducţie)","Bovine de 2 ani şi peste  - femele (juninci pentru îngrăşat, juninci pentru reproducţie)","Bovine de 2 ani şi peste  - femele (juninci pentru îngrăşat, juninci pentru reproducţie)","Bovine de 2 ani şi peste  - femele (juninci pentru îngrăşat, juninci pentru reproducţie)","Bovine de 2 ani şi peste  - femele (juninci pentru îngrăşat, juninci pentru reproducţie)","Bovine de 2 ani şi peste  - femele (juninci pentru îngrăşat, juninci pentru reproducţie)","Bovine de 2 ani şi peste  - femele (juninci pentru îngrăşat, juninci pentru reproducţie)","Bovine de 2 ani şi peste  - femele (juninci pentru îngrăşat, juninci pentru reproducţie)","Bovine de 2 ani şi peste  - femele (juninci pentru îngrăşat, juninci pentru reproducţie)",null,null,null,null,null,null,null,null,801.38,801.38,801.38,801.38,801.38,801.38,801.38,801.38,801.38,801.38,0,null,null,null,null,null,null,null,null,null,null,null,null,null,0]
["C_2_6","C_2_6","C_2_6","C_2_6","C_2_6","C_2_6","C_2_6","C_2_6","C_2_6","Vaci, bivoliţe  pentru lapte","Vaci, bivoliţe  pentru lapte","Vaci, bivoliţe  pentru lapte","Vaci, bivoliţe  pentru lapte","Vaci, bivoliţe  pentru lapte","Vaci, bivoliţe  pentru lapte","Vaci, bivoliţe  pentru lapte","Vaci, bivoliţe  pentru lapte","Vaci, bivoliţe  pentru lapte","Vaci, bivoliţe  pentru lapte","Vaci, bivoliţe  pentru lapte","Vaci, bivoliţe  pentru lapte","Vaci, bivoliţe  pentru lapte","Vaci, bivoliţe  pentru lapte","Vaci, bivoliţe  pentru lapte","Vaci, bivoliţe  pentru lapte","Vaci, bivoliţe  pentru lapte","Vaci, bivoliţe  pentru lapte","Vaci, bivoliţe  pentru lapte","Vaci, bivoliţe  pentru lapte","Vaci, bivoliţe  pentru lapte",null,null,null,null,null,null,null,null,1200.46,1200.46,1200.46,1200.46,1200.46,1200.46,1200.46,1200.46,1200.46,1200.46,0,null,null,null,null,null,null,null,null,null,null,null,null,null,0]
["C_2_99","C_2_99","C_2_99","C_2_99","C_2_99","C_2_99","C_2_99","C_2_99","C_2_99","Bovine de 2 ani şi peste - alte vaci","Bovine de 2 ani şi peste - alte vaci","Bovine de 2 ani şi peste - alte vaci","Bovine de 2 ani şi peste - alte vaci","Bovine de 2 ani şi peste - alte vaci","Bovine de 2 ani şi peste - alte vaci","Bovine de 2 ani şi peste - alte vaci","Bovine de 2 ani şi peste - alte vaci","Bovine de 2 ani şi peste - alte vaci","Bovine de 2 ani şi peste - alte vaci","Bovine de 2 ani şi peste - alte vaci","Bovine de 2 ani şi peste - alte vaci","Bovine de 2 ani şi peste - alte vaci","Bovine de 2 ani şi peste - alte vaci","Bovine de 2 ani şi peste - alte vaci","Bovine de 2 ani şi peste - alte vaci","Bovine de 2 ani şi peste - alte vaci","Bovine de 2 ani şi peste - alte vaci","Bovine de 2 ani şi peste - alte vaci","Bovine de 2 ani şi peste - alte vaci","Bovine de 2 ani şi peste - alte vaci",null,null,null,null,null,null,null,null,515.85,515.85,515.85,515.85,515.85,515.85,515.85,515.85,515.85,515.85,0,null,null,null,null,null,null,null,null,null,null,null,null,null,0]
["C_3_1_1","C_3_1_1","C_3_1_1","C_3_1_1","C_3_1_1","C_3_1_1","C_3_1_1","C_3_1_1","C_3_1_1","Oi - mioare montate - oi de un an sau mai mult, destinate reproducerii, oile reformate care urmează să fete","Oi - mioare montate - oi de un an sau mai mult, destinate reproducerii, oile reformate care urmează să fete","Oi - mioare montate - oi de un an sau mai mult, destinate reproducerii, oile reformate care urmează să fete","Oi - mioare montate - oi de un an sau mai mult, destinate reproducerii, oile reformate care urmează să fete","Oi - mioare montate - oi de un an sau mai mult, destinate reproducerii, oile reformate care urmează să fete","Oi - mioare montate - oi de un an sau mai mult, destinate reproducerii, oile reformate care urmează să fete","Oi - mioare montate - oi de un an sau mai mult, destinate reproducerii, oile reformate care urmează să fete","Oi - mioare montate - oi de un an sau mai mult, destinate reproducerii, oile reformate care urmează să fete","Oi - mioare montate - oi de un an sau mai mult, destinate reproducerii, oile reformate care urmează să fete","Oi - mioare montate - oi de un an sau mai mult, destinate reproducerii, oile reformate care urmează să fete","Oi - mioare montate - oi de un an sau mai mult, destinate reproducerii, oile reformate care urmează să fete","Oi - mioare montate - oi de un an sau mai mult, destinate reproducerii, oile reformate care urmează să fete","Oi - mioare montate - oi de un an sau mai mult, destinate reproducerii, oile reformate care urmează să fete","Oi - mioare montate - oi de un an sau mai mult, destinate reproducerii, oile reformate care urmează să fete","Oi - mioare montate - oi de un an sau mai mult, destinate reproducerii, oile reformate care urmează să fete","Oi - mioare montate - oi de un an sau mai mult, destinate reproducerii, oile reformate care urmează să fete","Oi - mioare montate - oi de un an sau mai mult, destinate reproducerii, oile reformate care urmează să fete","Oi - mioare montate - oi de un an sau mai mult, destinate reproducerii, oile reformate care urmează să fete","Oi - mioare montate - oi de un an sau mai mult, destinate reproducerii, oile reformate care urmează să fete","Oi - mioare montate - oi de un an sau mai mult, destinate reproducerii, oile reformate care urmează să fete","Oi - mioare montate - oi de un an sau mai mult, destinate reproducerii, oile reformate care urmează să fete",null,null,null,null,null,null,null,null,54.91,"54,91","54,91","54,91","54,91","54,91","54,91","54,91","54,91","54,91",0,null,null,null,null,null,null,null,null,null,null,null,null,null,0]
["C_3_1_99","C_3_1_99","C_3_1_99","C_3_1_99","C_3_1_99","C_3_1_99","C_3_1_99","C_3_1_99","C_3_1_99","Oi - alte oi : miei, berbeci, oi reformate - oi sterpe care urmează a fi îngrăşate în vederea sacrificării","Oi - alte oi : miei, berbeci, oi reformate - oi sterpe care urmează a fi îngrăşate în vederea sacrificării","Oi - alte oi : miei, berbeci, oi reformate - oi sterpe care urmează a fi îngrăşate în vederea sacrificării","Oi - alte oi : miei, berbeci, oi reformate - oi sterpe care urmează a fi îngrăşate în vederea sacrificării","Oi - alte oi : miei, berbeci, oi reformate - oi sterpe care urmează a fi îngrăşate în vederea sacrificării","Oi - alte oi : miei, berbeci, oi reformate - oi sterpe care urmează a fi îngrăşate în vederea sacrificării","Oi - alte oi : miei, berbeci, oi reformate - oi sterpe care urmează a fi îngrăşate în vederea sacrificării","Oi - alte oi : miei, berbeci, oi reformate - oi sterpe care urmează a fi îngrăşate în vederea sacrificării","Oi - alte oi : miei, berbeci, oi reformate - oi sterpe care urmează a fi îngrăşate în vederea sacrificării","Oi - alte oi : miei, berbeci, oi reformate - oi sterpe care urmează a fi îngrăşate în vederea sacrificării","Oi - alte oi : miei, berbeci, oi reformate - oi sterpe care urmează a fi îngrăşate în vederea sacrificării","Oi - alte oi : miei, berbeci, oi reformate - oi sterpe care urmează a fi îngrăşate în vederea sacrificării","Oi - alte oi : miei, berbeci, oi reformate - oi sterpe care urmează a fi îngrăşate în vederea sacrificării","Oi - alte oi : miei, berbeci, oi reformate - oi sterpe care urmează a fi îngrăşate în vederea sacrificării","Oi - alte oi : miei, berbeci, oi reformate - oi sterpe care urmează a fi îngrăşate în vederea sacrificării","Oi - alte oi : miei, berbeci, oi reformate - oi sterpe care urmează a fi îngrăşate în vederea sacrificării","Oi - alte oi : miei, berbeci, oi reformate - oi sterpe care urmează a fi îngrăşate în vederea sacrificării","Oi - alte oi : miei, berbeci, oi reformate - oi sterpe care urmează a fi îngrăşate în vederea sacrificării","Oi - alte oi : miei, berbeci, oi reformate - oi sterpe care urmează a fi îngrăşate în vederea sacrificării","Oi - alte oi : miei, berbeci, oi reformate - oi sterpe care urmează a fi îngrăşate în vederea sacrificării","Oi - alte oi : miei, berbeci, oi reformate - oi sterpe care urmează a fi îngrăşate în vederea sacrificării",null,null,null,null,null,null,null,null,26.72,26.72,26.72,26.72,26.72,26.72,26.72,26.72,26.72,26.72,0,null,null,null,null,null,null,null,null,null,null,null,null,null,0]
["C_3_2_1","C_3_2_1","C_3_2_1","C_3_2_1","C_3_2_1","C_3_2_1","C_3_2_1","C_3_2_1","C_3_2_1","Capre - capre montate - capre montate femele destinate reproducerii, capre reformate care urmează să fete","Capre - capre montate - capre montate femele destinate reproducerii, capre reformate care urmează să fete","Capre - capre montate - capre montate femele destinate reproducerii, capre reformate care urmează să fete","Capre - capre montate - capre montate femele destinate reproducerii, capre reformate care urmează să fete","Capre - capre montate - capre montate femele destinate reproducerii, capre reformate care urmează să fete","Capre - capre montate - capre montate femele destinate reproducerii, capre reformate care urmează să fete","Capre - capre montate - capre montate femele destinate reproducerii, capre reformate care urmează să fete","Capre - capre montate - capre montate femele destinate reproducerii, capre reformate care urmează să fete","Capre - capre montate - capre montate femele destinate reproducerii, capre reformate care urmează să fete","Capre - capre montate - capre montate femele destinate reproducerii, capre reformate care urmează să fete","Capre - capre montate - capre montate femele destinate reproducerii, capre reformate care urmează să fete","Capre - capre montate - capre montate femele destinate reproducerii, capre reformate care urmează să fete","Capre - capre montate - capre montate femele destinate reproducerii, capre reformate care urmează să fete","Capre - capre montate - capre montate femele destinate reproducerii, capre reformate care urmează să fete","Capre - capre montate - capre montate femele destinate reproducerii, capre reformate care urmează să fete","Capre - capre montate - capre montate femele destinate reproducerii, capre reformate care urmează să fete","Capre - capre montate - capre montate femele destinate reproducerii, capre reformate care urmează să fete","Capre - capre montate - capre montate femele destinate reproducerii, capre reformate care urmează să fete","Capre - capre montate - capre montate femele destinate reproducerii, capre reformate care urmează să fete","Capre - capre montate - capre montate femele destinate reproducerii, capre reformate care urmează să fete","Capre - capre montate - capre montate femele destinate reproducerii, capre reformate care urmează să fete",null,null,null,null,null,null,null,null,112.98,112.98,112.98,112.98,112.98,112.98,112.98,112.98,112.98,112.98,0,null,null,null,null,null,null,null,null,null,null,null,null,null,0]
["C_3_2_99","C_3_2_99","C_3_2_99","C_3_2_99","C_3_2_99","C_3_2_99","C_3_2_99","C_3_2_99","C_3_2_99","Capre - alte capre: iezi, ţapi, capre reformate destinate sacrificării","Capre - alte capre: iezi, ţapi, capre reformate destinate sacrificării","Capre - alte capre: iezi, ţapi, capre reformate destinate sacrificării","Capre - alte capre: iezi, ţapi, capre reformate destinate sacrificării","Capre - alte capre: iezi, ţapi, capre reformate destinate sacrificării","Capre - alte capre: iezi, ţapi, capre reformate destinate sacrificării","Capre - alte capre: iezi, ţapi, capre reformate destinate sacrificării","Capre - alte capre: iezi, ţapi, capre reformate destinate sacrificării","Capre - alte capre: iezi, ţapi, capre reformate destinate sacrificării","Capre - alte capre: iezi, ţapi, capre reformate destinate sacrificării","Capre - alte capre: iezi, ţapi, capre reformate destinate sacrificării","Capre - alte capre: iezi, ţapi, capre reformate destinate sacrificării","Capre - alte capre: iezi, ţapi, capre reformate destinate sacrificării","Capre - alte capre: iezi, ţapi, capre reformate destinate sacrificării","Capre - alte capre: iezi, ţapi, capre reformate destinate sacrificării","Capre - alte capre: iezi, ţapi, capre reformate destinate sacrificării","Capre - alte capre: iezi, ţapi, capre reformate destinate sacrificării","Capre - alte capre: iezi, ţapi, capre reformate destinate sacrificării","Capre - alte capre: iezi, ţapi, capre reformate destinate sacrificării","Capre - alte capre: iezi, ţapi, capre reformate destinate sacrificării","Capre - alte capre: iezi, ţapi, capre reformate destinate sacrificării",null,null,null,null,null,null,null,null,39.67,39.67,39.67,39.67,39.67,39.67,39.67,39.67,39.67,39.67,0,null,null,null,null,null,null,null,null,null,null,null,null,null,0]
["C_4_1_1","C_4_1_1","C_4_1_1","C_4_1_1","C_4_1_1","C_4_1_1","C_4_1_1","C_4_1_1","C_4_1_1","Porcine - tineret porcin sub 20 kg","Porcine - tineret porcin sub 20 kg","Porcine - tineret porcin sub 20 kg","Porcine - tineret porcin sub 20 kg","Porcine - tineret porcin sub 20 kg","Porcine - tineret porcin sub 20 kg","Porcine - tineret porcin sub 20 kg","Porcine - tineret porcin sub 20 kg","Porcine - tineret porcin sub 20 kg","Porcine - tineret porcin sub 20 kg","Porcine - tineret porcin sub 20 kg","Porcine - tineret porcin sub 20 kg","Porcine - tineret porcin sub 20 kg","Porcine - tineret porcin sub 20 kg","Porcine - tineret porcin sub 20 kg","Porcine - tineret porcin sub 20 kg","Porcine - tineret porcin sub 20 kg","Porcine - tineret porcin sub 20 kg","Porcine - tineret porcin sub 20 kg","Porcine - tineret porcin sub 20 kg","Porcine - tineret porcin sub 20 kg",null,null,null,null,null,null,null,null,33.36,33.36,33.36,33.36,33.36,33.36,33.36,33.36,33.36,33.36,0,null,null,null,null,null,null,null,null,null,null,null,null,null,0]
["C_4_1_2","C_4_1_2","C_4_1_2","C_4_1_2","C_4_1_2","C_4_1_2","C_4_1_2","C_4_1_2","C_4_1_2","Porcine - scroafe pentru reproducţie peste 50 kg","Porcine - scroafe pentru reproducţie peste 50 kg","Porcine - scroafe pentru reproducţie peste 50 kg","Porcine - scroafe pentru reproducţie peste 50 kg","Porcine - scroafe pentru reproducţie peste 50 kg","Porcine - scroafe pentru reproducţie peste 50 kg","Porcine - scroafe pentru reproducţie peste 50 kg","Porcine - scroafe pentru reproducţie peste 50 kg","Porcine - scroafe pentru reproducţie peste 50 kg","Porcine - scroafe pentru reproducţie peste 50 kg","Porcine - scroafe pentru reproducţie peste 50 kg","Porcine - scroafe pentru reproducţie peste 50 kg","Porcine - scroafe pentru reproducţie peste 50 kg","Porcine - scroafe pentru reproducţie peste 50 kg","Porcine - scroafe pentru reproducţie peste 50 kg","Porcine - scroafe pentru reproducţie peste 50 kg","Porcine - scroafe pentru reproducţie peste 50 kg","Porcine - scroafe pentru reproducţie peste 50 kg","Porcine - scroafe pentru reproducţie peste 50 kg","Porcine - scroafe pentru reproducţie peste 50 kg","Porcine - scroafe pentru reproducţie peste 50 kg",null,null,null,null,null,null,null,null,262.55,262.55,262.55,262.55,262.55,262.55,262.55,262.55,262.55,262.55,0,null,null,null,null,null,null,null,null,null,null,null,null,null,0]
["C_4_1_99","C_4_1_99","C_4_1_99","C_4_1_99","C_4_1_99","C_4_1_99","C_4_1_99","C_4_1_99","C_4_1_99","Porcine - alte porcine: porci la îngrăşat, vieri, scroafe destinate sacrificării","Porcine - alte porcine: porci la îngrăşat, vieri, scroafe destinate sacrificării","Porcine - alte porcine: porci la îngrăşat, vieri, scroafe destinate sacrificării","Porcine - alte porcine: porci la îngrăşat, vieri, scroafe destinate sacrificării","Porcine - alte porcine: porci la îngrăşat, vieri, scroafe destinate sacrificării","Porcine - alte porcine: porci la îngrăşat, vieri, scroafe destinate sacrificării","Porcine - alte porcine: porci la îngrăşat, vieri, scroafe destinate sacrificării","Porcine - alte porcine: porci la îngrăşat, vieri, scroafe destinate sacrificării","Porcine - alte porcine: porci la îngrăşat, vieri, scroafe destinate sacrificării","Porcine - alte porcine: porci la îngrăşat, vieri, scroafe destinate sacrificării","Porcine - alte porcine: porci la îngrăşat, vieri, scroafe destinate sacrificării","Porcine - alte porcine: porci la îngrăşat, vieri, scroafe destinate sacrificării","Porcine - alte porcine: porci la îngrăşat, vieri, scroafe destinate sacrificării","Porcine - alte porcine: porci la îngrăşat, vieri, scroafe destinate sacrificării","Porcine - alte porcine: porci la îngrăşat, vieri, scroafe destinate sacrificării","Porcine - alte porcine: porci la îngrăşat, vieri, scroafe destinate sacrificării","Porcine - alte porcine: porci la îngrăşat, vieri, scroafe destinate sacrificării","Porcine - alte porcine: porci la îngrăşat, vieri, scroafe destinate sacrificării","Porcine - alte porcine: porci la îngrăşat, vieri, scroafe destinate sacrificării","Porcine - alte porcine: porci la îngrăşat, vieri, scroafe destinate sacrificării","Porcine - alte porcine: porci la îngrăşat, vieri, scroafe destinate sacrificării",null,null,null,null,null,null,null,null,388.08,388.08,388.08,388.08,388.08,388.08,388.08,388.08,388.08,388.08,0,null,null,null,null,null,null,null,null,null,null,null,null,null,0]
["C_5_1","C_5_1","C_5_1","C_5_1","C_5_1","C_5_1","C_5_1","C_5_1","C_5_1","Pui pentru carne *","Pui pentru carne *","Pui pentru carne *","Pui pentru carne *","Pui pentru carne *","Pui pentru carne *","Pui pentru carne *","Pui pentru carne *","Pui pentru carne *","Pui pentru carne *","Pui pentru carne *","Pui pentru carne *","Pui pentru carne *","Pui pentru carne *","Pui pentru carne *","Pui pentru carne *","Pui pentru carne *","Pui pentru carne *","Pui pentru carne *","Pui pentru carne *","Pui pentru carne *",null,null,null,null,null,null,null,null,473.59,473.59,473.59,473.59,473.59,473.59,473.59,473.59,473.59,473.59,0,null,null,null,null,null,null,null,null,null,null,null,null,null,0]
["C_5_2","C_5_2","C_5_2","C_5_2","C_5_2","C_5_2","C_5_2","C_5_2","C_5_2","Găini ouătoare *","Găini ouătoare *","Găini ouătoare *","Găini ouătoare *","Găini ouătoare *","Găini ouătoare *","Găini ouătoare *","Găini ouătoare *","Găini ouătoare *","Găini ouătoare *","Găini ouătoare *","Găini ouătoare *","Găini ouătoare *","Găini ouătoare *","Găini ouătoare *","Găini ouătoare *","Găini ouătoare *","Găini ouătoare *","Găini ouătoare *","Găini ouătoare *","Găini ouătoare *",null,null,null,null,null,null,null,null,2156,2156,2156,2156,2156,2156,2156,2156,2156,2156,0,null,null,null,null,null,null,null,null,null,null,null,null,null,0]
["C_5_3_1","C_5_3_1","C_5_3_1","C_5_3_1","C_5_3_1","C_5_3_1","C_5_3_1","C_5_3_1","C_5_3_1","Curcani şi curci*","Curcani şi curci*","Curcani şi curci*","Curcani şi curci*","Curcani şi curci*","Curcani şi curci*","Curcani şi curci*","Curcani şi curci*","Curcani şi curci*","Curcani şi curci*","Curcani şi curci*","Curcani şi curci*","Curcani şi curci*","Curcani şi curci*","Curcani şi curci*","Curcani şi curci*","Curcani şi curci*","Curcani şi curci*","Curcani şi curci*","Curcani şi curci*","Curcani şi curci*",null,null,null,null,null,null,null,null,4205.5600000000004,4205.5600000000004,4205.5600000000004,4205.5600000000004,4205.5600000000004,4205.5600000000004,4205.5600000000004,4205.5600000000004,4205.5600000000004,4205.5600000000004,0,null,null,null,null,null,null,null,null,null,null,null,null,null,0]
["C_5_3_2","C_5_3_2","C_5_3_2","C_5_3_2","C_5_3_2","C_5_3_2","C_5_3_2","C_5_3_2","C_5_3_2","Raţe*","Raţe*","Raţe*","Raţe*","Raţe*","Raţe*","Raţe*","Raţe*","Raţe*","Raţe*","Raţe*","Raţe*","Raţe*","Raţe*","Raţe*","Raţe*","Raţe*","Raţe*","Raţe*","Raţe*","Raţe*",null,null,null,null,null,null,null,null,2824.99,2824.99,2824.99,2824.99,2824.99,2824.99,2824.99,2824.99,2824.99,2824.99,0,null,null,null,null,null,null,null,null,null,null,null,null,null,0]
["C_5_3_3","C_5_3_3","C_5_3_3","C_5_3_3","C_5_3_3","C_5_3_3","C_5_3_3","C_5_3_3","C_5_3_3","Gâşte*","Gâşte*","Gâşte*","Gâşte*","Gâşte*","Gâşte*","Gâşte*","Gâşte*","Gâşte*","Gâşte*","Gâşte*","Gâşte*","Gâşte*","Gâşte*","Gâşte*","Gâşte*","Gâşte*","Gâşte*","Gâşte*","Gâşte*","Gâşte*",null,null,null,null,null,null,null,null,3602.66,3602.66,3602.66,3602.66,3602.66,3602.66,3602.66,3602.66,3602.66,3602.66,0,null,null,null,null,null,null,null,null,null,null,null,null,null,0]
["C_5_3_4","C_5_3_4","C_5_3_4","C_5_3_4","C_5_3_4","C_5_3_4","C_5_3_4","C_5_3_4","C_5_3_4","Struţi*","Struţi*","Struţi*","Struţi*","Struţi*","Struţi*","Struţi*","Struţi*","Struţi*","Struţi*","Struţi*","Struţi*","Struţi*","Struţi*","Struţi*","Struţi*","Struţi*","Struţi*","Struţi*","Struţi*","Struţi*",null,null,null,null,null,null,null,null,30083.5,30083.5,30083.5,30083.5,30083.5,30083.5,30083.5,30083.5,30083.5,30083.5,0,null,null,null,null,null,null,null,null,null,null,null,null,null,0]
["C_5_3_99","C_5_3_99","C_5_3_99","C_5_3_99","C_5_3_99","C_5_3_99","C_5_3_99","C_5_3_99","C_5_3_99","Alte păsări: bibilici, porumbei, potârnichi, fazani, prepeliţe*","Alte păsări: bibilici, porumbei, potârnichi, fazani, prepeliţe*","Alte păsări: bibilici, porumbei, potârnichi, fazani, prepeliţe*","Alte păsări: bibilici, porumbei, potârnichi, fazani, prepeliţe*","Alte păsări: bibilici, porumbei, potârnichi, fazani, prepeliţe*","Alte păsări: bibilici, porumbei, potârnichi, fazani, prepeliţe*","Alte păsări: bibilici, porumbei, potârnichi, fazani, prepeliţe*","Alte păsări: bibilici, porumbei, potârnichi, fazani, prepeliţe*","Alte păsări: bibilici, porumbei, potârnichi, fazani, prepeliţe*","Alte păsări: bibilici, porumbei, potârnichi, fazani, prepeliţe*","Alte păsări: bibilici, porumbei, potârnichi, fazani, prepeliţe*","Alte păsări: bibilici, porumbei, potârnichi, fazani, prepeliţe*","Alte păsări: bibilici, porumbei, potârnichi, fazani, prepeliţe*","Alte păsări: bibilici, porumbei, potârnichi, fazani, prepeliţe*","Alte păsări: bibilici, porumbei, potârnichi, fazani, prepeliţe*","Alte păsări: bibilici, porumbei, potârnichi, fazani, prepeliţe*","Alte păsări: bibilici, porumbei, potârnichi, fazani, prepeliţe*","Alte păsări: bibilici, porumbei, potârnichi, fazani, prepeliţe*","Alte păsări: bibilici, porumbei, potârnichi, fazani, prepeliţe*","Alte păsări: bibilici, porumbei, potârnichi, fazani, prepeliţe*","Alte păsări: bibilici, porumbei, potârnichi, fazani, prepeliţe*",null,null,null,null,null,null,null,null,900.34,900.34,900.34,900.34,900.34,900.34,900.34,900.34,900.34,900.34,0,null,null,null,null,null,null,null,null,null,null,null,null,null,0]
["C_6","C_6","C_6","C_6","C_6","C_6","C_6","C_6","C_6","Iepuri (femele  iepuri)                                                                              ","Iepuri (femele iepuri)                                                                               ","Iepuri (femele iepuri)                                                                               ","Iepuri (femele iepuri)                                                                               ","Iepuri (femele iepuri)                                                                               ","Iepuri (femele iepuri)                                                                               ","Iepuri (femele iepuri)                                                                               ","Iepuri (femele iepuri)                                                                               ","Iepuri (femele iepuri)                                                                               ","Iepuri (femele iepuri)                                                                               ","Iepuri (femele iepuri)                                                                               ","Iepuri (femele iepuri)                                                                               ","Iepuri (femele iepuri)                                                                               ","Iepuri (femele iepuri)                                                                               ","Iepuri (femele iepuri)                                                                               ","Iepuri (femele iepuri)                                                                               ","Iepuri (femele iepuri)                                                                               ","Iepuri (femele iepuri)                                                                               ","Iepuri (femele iepuri)                                                                               ","Iepuri (femele iepuri)                                                                               ","Iepuri (femele iepuri)                                                                               ",null,null,null,null,null,null,null,null,13.91,13.91,13.91,13.91,13.91,13.91,13.91,13.91,13.91,13.91,0,null,null,null,null,null,null,null,null,null,null,null,null,null,0]
["C_7","C_7","C_7","C_7","C_7","C_7","C_7","C_7","C_7","Familii de albine","Familii de albine","Familii de albine","Familii de albine","Familii de albine","Familii de albine","Familii de albine","Familii de albine","Familii de albine","Familii de albine","Familii de albine","Familii de albine","Familii de albine","Familii de albine","Familii de albine","Familii de albine","Familii de albine","Familii de albine","Familii de albine","Familii de albine","Familii de albine",null,null,null,null,null,null,null,null,59.62,59.62,59.62,59.62,59.62,59.62,59.62,59.62,59.62,59.62,0,null,null,null,null,null,null,null,null,null,null,null,null,null,0]
[null,null,null,null,null,null,null,null,null,"TOTAL zootehnic",null,null,null,null,null,null,null,null,null,null,null,null,null,null,null,null,null,null,null,null,null,null,null,null,null,null,null,null,null,null,null,null,null,null,null,null,null,null,{"$f":"SUM(AW55:BI78)","v":0},null,null,null,null,null,null,null,null,null,null,null,null,null,{"$f":"SUM(BK55:BK78)","v":0}]
[null,null,null,null,null,null,null,null,null,"TOTAL GENERAL",null,null,null,null,null,null,null,null,null,null,null,null,null,null,null,null,null,null,null,null,null,null,null,null,null,null,null,null,null,null,null,null,null,null,null,null,null,null,{"$f":"SUM(AW50+AW79)","v":0},null,null,null,null,null,null,null,null,null,null,null,null,null,{"$f":"BK79+BK50","v":0}]
["* Valoarea SO se referă la 100 capete"]

{"sheet":"Anexa 1 HG_907","index":2,"n_rows":98,"n_cols":52,"rows_kept":98,"cut":false,"hidden":false,"merged":[[0,7,0,41],[1,7,1,41],[1,42,2,60],[2,7,2,41],[3,7,3,41],[3,42,3,50],[3,51,3,60],[9,0,9,3],[9,4,9,41],[9,42,9,50],[9,51,9,60],[10,0,10,3],[10,4,10,41],[10,42,10,50],[10,51,10,60],[4,7,4,60],[5,0,5,60],[6,0,6,60],[7,0,7,60],[8,0,8,3],[8,4,8,41],[8,42,8,50],[8,51,8,60],[13,0,13,3],[13,4,13,41],[13,42,13,50],[13,51,13,60],[14,0,14,3],[14,4,14,41],[14,42,14,50],[14,51,14,60],[11,0,11,3],[11,4,11,41],[11,42,11,50],[11,51,11,60],[12,0,12,3],[12,4,12,41],[12,42,12,50],[12,51,12,60],[17,0,17,3],[17,4,17,41],[17,42,17,50],[17,51,17,60],[18,0,18,3],[18,4,18,41],[18,42,18,50],[18,51,18,60],[15,0,15,3],[15,4,15,41],[15,42,15,50],[15,51,15,60],[16,0,16,3],[16,4,16,41],[16,42,16,50],[16,51,16,60],[21,0,21,3],[21,4,21,41],[21,42,21,50],[21,51,21,60],[22,0,22,3],[22,4,22,41],[22,42,22,50],[22,51,22,60],[19,0,19,3],[19,4,19,41],[19,42,19,50],[19,51,19,60],[20,0,20,3],[20,4,20,41],[20,42,20,50],[20,51,20,60],[25,0,25,3],[25,4,25,41],[25,42,25,50],[25,51,25,60],[26,0,26,3],[26,4,26,41],[26,42,26,50],[26,51,26,60],[23,0,23,3],[23,4,23,41],[23,42,23,50],[23,51,23,60],[24,0,24,3],[24,4,24,41],[24,42,24,50],[24,51,24,60],[29,0,29,3],[29,4,29,41],[29,42,29,50],[29,51,29,60],[30,0,30,3],[30,4,30,41],[30,42,30,50],[30,51,30,60],[27,0,27,3],[27,4,27,41],[27,42,27,50],[27,51,27,60],[28,0,28,3],[28,4,28,41],[28,42,28,50],[28,51,28,60],[33,0,33,3],[33,4,33,41],[33,42,33,50],[33,51,33,60],[34,0,34,3],[34,4,34,41],[34,42,34,50],[34,51,34,60],[31,0,31,3],[31,4,31,41],[31,42,31,50],[31,51,31,60],[32,0,32,3],[32,4,32,41],[32,42,32,50],[32,51,32,60],[37,0,37,3],[37,4,37,41],[37,42,37,50],[37,51,37,60],[38,0,38,3],[38,4,38,41],[38,42,38,50],[38,51,38,60],[35,0,35,3],[35,4,35,41],[35,42,35,50],[35,51,35,60],[36,0,36,3],[36,4,36,41],[36,42,36,50],[36,51,36,60],[41,0,41,3],[41,4,41,41],[41,42,41,50],[41,51,41,60],[42,0,42,3],[42,4,42,41],[42,42,42,50],[42,51,42,60],[39,0,39,3],[39,4,39,41],[39,42,39,50],[39,51,39,60],[40,0,40,3],[40,4,40,41],[40,42,40,50],[40,51,40,60],[45,0,45,41],[45,42,45,50],[45,51,45,60],[46,0,46,41],[46,42,46,50],[46,51,46,60],[43,0,43,3],[43,4,43,41],[43,42,43,50],[43,51,43,60],[44,0,44,3],[44,4,44,41],[44,42,44,50],[44,51,44,60],[53,7,53,41],[53,42,53,50],[53,51,53,60],[54,7,54,60],[55,0,55,60],[56,0,56,60],[47,0,47,41],[47,42,47,60],[49,0,49,42],[50,7,50,41],[51,7,51,41],[51,42,52,60],[52,7,52,41],[60,0,60,3],[60,4,60,41],[60,42,60,50],[60,51,60,60],[61,0,61,3],[61,4,61,41],[61,42,61,50],[61,51,61,60],[57,0,57,60],[58,0,58,3],[58,4,58,41],[58,42,58,50],[58,51,58,60],[59,0,59,3],[59,4,59,41],[59,42,59,50],[59,51,59,60],[64,0,64,3],[64,4,64,41],[64,42,64,50],[64,51,64,60],[65,0,65,3],[65,4,65,41],[65,42,65,50],[65,51,65,60],[62,0,62,3],[62,4,62,41],[62,42,62,50],[62,51,62,60],[63,0,63,3],[63,4,63,41],[63,42,63,50],[63,51,63,60],[68,0,68,3],[68,4,68,41],[68,42,68,50],[68,51,68,60],[69,0,69,3],[69,4,69,41],[69,42,69,50],[69,51,69,60],[66,0,66,3],[66,4,66,41],[66,42,66,50],[66,51,66,60],[67,0,67,3],[67,4,67,41],[67,42,67,50],[67,51,67,60],[72,0,72,3],[72,4,72,41],[72,42,72,50],[72,51,72,60],[73,0,73,3],[73,4,73,41],[73,42,73,50],[73,51,73,60],[70,0,70,3],[70,4,70,41],[70,42,70,50],[70,51,70,60],[71,0,71,3],[71,4,71,41],[71,42,71,50],[71,51,71,60],[76,0,76,3],[76,4,76,41],[76,42,76,50],[76,51,76,60],[77,0,77,3],[77,4,77,41],[77,42,77,50],[77,51,77,60],[74,0,74,3],[74,4,74,41],[74,42,74,50],[74,51,74,60],[75,0,75,3],[75,4,75,41],[75,42,75,50],[75,51,75,60],[80,0,80,3],[80,4,80,41],[80,42,80,50],[80,51,80,60],[81,0,81,3],[81,4,81,41],[81,42,81,50],[81,51,81,60],[78,0,78,3],[78,4,78,41],[78,42,78,50],[78,51,78,60],[79,0,79,3],[79,4,79,41],[79,42,79,50],[79,51,79,60],[84,0,84,3],[84,4,84,41],[84,42,84,50],[84,51,84,60],[85,0,85,3],[85,4,85,41],[85,42,85,50],[85,51,85,60],[82,0,82,3],[82,4,82,41],[82,42,82,50],[82,51,82,60],[83,0,83,3],[83,4,83,41],[83,42,83,50],[83,51,83,60],[88,0,88,3],[88,4,88,41],[88,42,88,50],[88,51,88,60],[89,0,89,3],[89,4,89,41],[89,42,89,50],[89,51,89,60],[86,0,86,3],[86,4,86,41],[86,42,86,50],[86,51,86,60],[87,0,87,3],[87,4,87,41],[87,42,87,50],[87,51,87,60],[92,0,92,3],[92,4,92,41],[92,42,92,50],[92,51,92,60],[93,0,93,3],[93,4,93,41],[93,42,93,50],[93,51,93,60],[90,0,90,3],[90,4,90,41],[90,42,90,50],[90,51,90,60],[91,0,91,3],[91,4,91,41],[91,42,91,50],[91,51,91,60],[96,0,96,41],[96,42,96,50],[96,51,96,60],[97,0,97,41],[97,42,97,60],[99,0,99,42],[94,0,94,3],[94,4,94,41],[94,42,94,50],[94,51,94,60],[95,0,95,41],[95,42,95,50],[95,51,95,60]]}
[null,null,null,null,null,null,null,"MINISTERUL AGRICULTURII ŞI DEZVOLTĂRII RURALE"]
[null,null,null,null,null,null,null,null,null,null,null,null,null,null,null,null,null,null,null,null,null,null,null,null,null,null,null,null,null,null,null,null,null,null,null,null,null,null,null,null,null,null,"Anexa A1 HG_907"]
[null,null,null,null,null,null,null,"AGENŢIA PENTRU FINANŢAREA INVESTIŢIILOR RURALE"]
[]
[null,null,null,null,null,null,null,"Deviz financiar- Capitolul 3 - Cheltuieli pentru proiectare şi asistenţa tehnică - EURO"]
["Nr.2"]
[]
["(Titlu deviz)"]
["Nr.crt",null,null,null,"Specificaţie",null,null,null,null,null,null,null,null,null,null,null,null,null,null,null,null,null,null,null,null,null,null,null,null,null,null,null,null,null,null,null,null,null,null,null,null,null,"Valoare eligibilă",null,null,null,null,null,null,null,null,"Valoare\nneeligibilă"]
["3.1",null,null,null,"Cheltuieli pentru studii ",null,null,null,null,null,null,null,null,null,null,null,null,null,null,null,null,null,null,null,null,null,null,null,null,null,null,null,null,null,null,null,null,null,null,null,null,null,{"$f":"SUM(AQ11:AY13)","v":0},null,null,null,null,null,null,null,null,{"$f":"SUM(AZ11:BI13)","v":0}]
[null,null,null,null,"3.1.1 Studii de teren: studii geotehnice, geologice, hidrologice, hidrogeotehnice, fotogrammetrice, topografica şi de stabilitate ale terenului pe care se amplasează obiectivul de investiţie"]
[null,null,null,null,"3.1.2 Raport privind impactul asupra mediului"]
[null,null,null,null,"3.1.3 Studii de specialitate necesare în funcţie de specificul investiţiei"]
["3.2",null,null,null,"Documentaţii-suport şi cheltuieli pentru obţinerea de avize, acorduri şi autorizaţii",null,null,null,null,null,null,null,null,null,null,null,null,null,null,null,null,null,null,null,null,null,null,null,null,null,null,null,null,null,null,null,null,null,null,null,null,null,{"$f":"SUM(AQ15:AY23)","v":0},null,null,null,null,null,null,null,null,{"$f":"SUM(AZ15:BI23)","v":0}]
[null,null,null,null,"1. obţinerea/prelungirea valabilităţii ceritificatului de urbanism"]
[null,null,null,null,"2. obţinerea/prelungirea valabilităţii autorizaţiei de construire/desfiinţare"]
[null,null,null,null,"3. obţinerea avizelor şi acordurilor pentru racorduri şi branşamente la reţele publice de alimentare cu apă, canalizare, alimentare cu gaze, alimentare cu agent termic, energie electrică, telefonie"]
[null,null,null,null,"4. obţinerea certificatului de nomenclatură stradală şi adresă"]
[null,null,null,null,"5. întocmirea documentaţiei, obţinerea numărului cadastral provizoriu şi înregistrarea terenului în cartea funciară"]
[null,null,null,null,"6. obţinerea actului administrativ al autorităţii competente pentru protecţia mediului"]
[null,null,null,null,"7. obţinerea avizului de protecţie civilă"]
[null,null,null,null,"8. avizul de specialitate în cazul obiectivelor de patrimoniu"]
[null,null,null,null,"9. alte avize, acorduri şi autorizaţii"]
["3.3",null,null,null,"Cheltuieli pentru expertizarea tehnică a construcţiilor existente, a structurilor şi/sau, după caz, a proiectelor tehnice, inclusiv întocmirea de către expertul tehnic a raportului de expertiză tehnică"]
["3.4",null,null,null,"Cheltuieli pentru certificarea performanţei energetice şi auditul energetic al clădirilor"]
["3.5",null,null,null,"Cheltuieli pentru proiectare",null,null,null,null,null,null,null,null,null,null,null,null,null,null,null,null,null,null,null,null,null,null,null,null,null,null,null,null,null,null,null,null,null,null,null,null,null,{"$f":"SUM(AQ27:AY32)","v":0},null,null,null,null,null,null,null,null,{"$f":"SUM(AZ27:BI32)","v":0}]
[null,null,null,null,"3.5.1 Temă de proiectare"]
[null,null,null,null,"3.5.2 Studiu de prefezabilitate"]
[null,null,null,null,"3.5.3 Studiu de fezabilitate/documentaţie de avizare a lucrărilor de intervenţii şi deviz general"]
[null,null,null,null,"3.5.4 Documentaţiile tehnice necesare în vederea obţinerii avizelor/acordurilor/ autorizaţiilor"]
[null,null,null,null,"3.5.5 Verificarea tehnică de calitate a proiectului tehnic şi a detaliilor de execuţie"]
[null,null,null,null,"3.5.6 Proiect tehnic şi detalii de execuţie"]
["3.6",null,null,null,"Cheltuieli aferente organizării şi derulării procedurilor de achiziţii publice",null,null,null,null,null,null,null,null,null,null,null,null,null,null,null,null,null,null,null,null,null,null,null,null,null,null,null,null,null,null,null,null,null,null,null,null,null,{"$f":"SUM(AQ34:AY37)","v":0},null,null,null,null,null,null,null,null,{"$f":"SUM(AZ34:BI37)","v":0}]
[null,null,null,null,"1. Cheltuieli aferente întocmirii documentaţiei de atribuire şi multiplicării acesteia (exclusiv cele cumpărate de ofertanţi)"]
[null,null,null,null,"2. Cheltuieli cu onorariile, transportul, cazarea şi diurna membrilor desemnaţi în comisiile de evaluare"]
[null,null,null,null,"3. Anunţuri de intenţie, de participare şi de atribuire a contractelor, corespondenţă prin poştă, fax, poştă electronică în legătură cu procedurile de achiziţie publică"]
[null,null,null,null,"4. Cheltuieli aferente organizării şi derulării procedurilor de achiziţii publice"]
["3.7",null,null,null,"Cheltuieli pentru consultanţă",null,null,null,null,null,null,null,null,null,null,null,null,null,null,null,null,null,null,null,null,null,null,null,null,null,null,null,null,null,null,null,null,null,null,null,null,null,{"$f":"SUM(AQ39:AY40)","v":0},null,null,null,null,null,null,null,null,{"$f":"SUM(AZ39:BI40)","v":0}]
[null,null,null,null,"3.7.1 Managementul de proiect pentru obiectivul de investiţii"]
[null,null,null,null,"3.7.2 Auditul financiar"]
["3.8",null,null,null,"Cheltuieli pentru asistenţă tehnică",null,null,null,null,null,null,null,null,null,null,null,null,null,null,null,null,null,null,null,null,null,null,null,null,null,null,null,null,null,null,null,null,null,null,null,null,null,{"$f":"AQ42+AQ45","v":0},null,null,null,null,null,null,null,null,{"$f":"AZ42+AZ45","v":0}]
[null,null,null,null,"3.8.1. Asistenţă tehnică din partea proiectantului",null,null,null,null,null,null,null,null,null,null,null,null,null,null,null,null,null,null,null,null,null,null,null,null,null,null,null,null,null,null,null,null,null,null,null,null,null,{"$f":"SUM(AQ43:AY44)","v":0},null,null,null,null,null,null,null,null,{"$f":"SUM(AZ43:BI44)","v":0}]
[null,null,null,null,"\n1.1. pe perioada de execuţie a lucrărilor"]
[null,null,null,null,"1.2. pentru participarea proiectantului la fazele incluse în programul de control al lucrărilor de execuţie, avizat de către Inspectoratul de Stat în Construcţii"]
[null,null,null,null,"3.8.2 Dirigenţie de şantier, asigurată de personal tehnic de specialitate, autorizat"]
["Total valoare fără TVA",null,null,null,null,null,null,null,null,null,null,null,null,null,null,null,null,null,null,null,null,null,null,null,null,null,null,null,null,null,null,null,null,null,null,null,null,null,null,null,null,null,{"$f":"AQ10+AQ14+AQ24+AQ25+AQ26+AQ33+AQ38+AQ41","v":0},null,null,null,null,null,null,null,null,{"$f":"AZ10+AZ14+AZ24+AZ25+AZ26+AZ33+AZ38+AZ41","v":0}]
["Valoare TVA (aferentă cheltuielilor eligibile şi neeligibile)"]
["TOTAL DEVIZ FINANCIAR 1 (inclusiv TVA)",null,null,null,null,null,null,null,null,null,null,null,null,null,null,null,null,null,null,null,null,null,null,null,null,null,null,null,null,null,null,null,null,null,null,null,null,null,null,null,null,null,{"$f":"SUM(AQ46:BI47)","v":0}]
[]
[]
[null,null,null,null,null,null,null,"MINISTERUL AGRICULTURII ŞI DEZVOLTĂRII RURALE"]
[null,null,null,null,null,null,null,null,null,null,null,null,null,null,null,null,null,null,null,null,null,null,null,null,null,null,null,null,null,null,null,null,null,null,null,null,null,null,null,null,null,null,"Anexa A1 HG_907"]
[null,null,null,null,null,null,null,"AGENŢIA PENTRU FINANŢAREA INVESTIŢIILOR RURALE"]
[]
[null,null,null,null,null,null,null,"Deviz financiar- Capitolul 3 - Cheltuieli pentru proiectare şi asistenţa tehnică - EURO"]
["Nr.3"]
[]
["(Titlu deviz)"]
["Nr.crt",null,null,null,"Specificaţie",null,null,null,null,null,null,null,null,null,null,null,null,null,null,null,null,null,null,null,null,null,null,null,null,null,null,null,null,null,null,null,null,null,null,null,null,null,"Valoare eligibilă",null,null,null,null,null,null,null,null,"Valoare\nneeligibilă"]
["3.1",null,null,null,"Cheltuieli pentru studii ",null,null,null,null,null,null,null,null,null,null,null,null,null,null,null,null,null,null,null,null,null,null,null,null,null,null,null,null,null,null,null,null,null,null,null,null,null,{"$f":"SUM(AQ61:AY63)","v":0},null,null,null,null,null,null,null,null,{"$f":"SUM(AZ61:BI63)","v":0}]
[null,null,null,null,"3.1.1 Studii de teren: studii geotehnice, geologice, hidrologice, hidrogeotehnice, fotogrammetrice, topografica şi de stabilitate ale terenului pe care se amplasează obiectivul de investiţie"]
[null,null,null,null,"3.1.2 Raport privind impactul asupra mediului"]
[null,null,null,null,"3.1.3 Studii de specialitate necesare în funcţie de specificul investiţiei"]
["3.2",null,null,null,"Documentaţii-suport şi cheltuieli pentru obţinerea de avize, acorduri şi autorizaţii",null,null,null,null,null,null,null,null,null,null,null,null,null,null,null,null,null,null,null,null,null,null,null,null,null,null,null,null,null,null,null,null,null,null,null,null,null,{"$f":"SUM(AQ65:AY73)","v":0},null,null,null,null,null,null,null,null,{"$f":"SUM(AZ65:BI73)","v":0}]
[null,null,null,null,"1. obţinerea/prelungirea valabilităţii ceritificatului de urbanism"]
[null,null,null,null,"2. obţinerea/prelungirea valabilităţii autorizaţiei de construire/desfiinţare"]
[null,null,null,null,"3. obţinerea avizelor şi acordurilor pentru racorduri şi branşamente la reţele publice de alimentare cu apă, canalizare, alimentare cu gaze, alimentare cu agent termic, energie electrică, telefonie"]
[null,null,null,null,"4. obţinerea certificatului de nomenclatură stradală şi adresă"]
[null,null,null,null,"5. întocmirea documentaţiei, obţinerea numărului cadastral provizoriu şi înregistrarea terenului în cartea funciară"]
[null,null,null,null,"6. obţinerea actului administrativ al autorităţii competente pentru protecţia mediului"]
[null,null,null,null,"7. obţinerea avizului de protecţie civilă"]
[null,null,null,null,"8. avizul de specialitate în cazul obiectivelor de patrimoniu"]
[null,null,null,null,"9. alte avize, acorduri şi autorizaţii"]
["3.3",null,null,null,"Cheltuieli pentru expertizarea tehnică a construcţiilor existente, a structurilor şi/sau, după caz, a proiectelor tehnice, inclusiv întocmirea de către expertul tehnic a raportului de expertiză tehnică"]
["3.4",null,null,null,"Cheltuieli pentru certificarea performanţei energetice şi auditul energetic al clădirilor"]
["3.5",null,null,null,"Cheltuieli pentru proiectare",null,null,null,null,null,null,null,null,null,null,null,null,null,null,null,null,null,null,null,null,null,null,null,null,null,null,null,null,null,null,null,null,null,null,null,null,null,{"$f":"SUM(AQ77:AY82)","v":0},null,null,null,null,null,null,null,null,{"$f":"SUM(AZ77:BI82)","v":0}]
[null,null,null,null,"3.5.1 Temă de proiectare"]
[null,null,null,null,"3.5.2 Studiu de prefezabilitate"]
[null,null,null,null,"3.5.3 Studiu de fezabilitate/documentaţie de avizare a lucrărilor de intervenţii şi deviz general"]
[null,null,null,null,"3.5.4 Documentaţiile tehnice necesare în vederea obţinerii avizelor/acordurilor/ autorizaţiilor"]
[null,null,null,null,"3.5.5 Verificarea tehnică de calitate a proiectului tehnic şi a detaliilor de execuţie"]
[null,null,null,null,"3.5.6 Proiect tehnic şi detalii de execuţie"]
["3.6",null,null,null,"Cheltuieli aferente organizării şi derulării procedurilor de achiziţii publice",null,null,null,null,null,null,null,null,null,null,null,null,null,null,null,null,null,null,null,null,null,null,null,null,null,null,null,null,null,null,null,null,null,null,null,null,null,{"$f":"SUM(AQ84:AY87)","v":0},null,null,null,null,null,null,null,null,{"$f":"SUM(AZ84:BI87)","v":0}]
[null,null,null,null,"1. Cheltuieli aferente întocmirii documentaţiei de atribuire şi multiplicării acesteia (exclusiv cele cumpărate de ofertanţi)"]
[null,null,null,null,"2. Cheltuieli cu onorariile, transportul, cazarea şi diurna membrilor desemnaţi în comisiile de evaluare"]
[null,null,null,null,"3. Anunţuri de intenţie, de participare şi de atribuire a contractelor, corespondenţă prin poştă, fax, poştă electronică în legătură cu procedurile de achiziţie publică"]
[null,null,null,null,"4. Cheltuieli aferente organizării şi derulării procedurilor de achiziţii publice"]
["3.7",null,null,null,"Cheltuieli pentru consultanţă",null,null,null,null,null,null,null,null,null,null,null,null,null,null,null,null,null,null,null,null,null,null,null,null,null,null,null,null,null,null,null,null,null,null,null,null,null,{"$f":"SUM(AQ89:AY90)","v":0},null,null,null,null,null,null,null,null,{"$f":"SUM(AZ89:BI90)","v":0}]
[null,null,null,null,"3.7.1 Managementul de proiect pentru obiectivul de investiţii"]
[null,null,null,null,"3.7.2 Auditul financiar"]
["3.8",null,null,null,"Cheltuieli pentru asistenţă tehnică",null,null,null,null,null,null,null,null,null,null,null,null,null,null,null,null,null,null,null,null,null,null,null,null,null,null,null,null,null,null,null,null,null,null,null,null,null,{"$f":"AQ92+AQ95","v":0},null,null,null,null,null,null,null,null,{"$f":"AZ92+AZ95","v":0}]
[null,null,null,null,"3.8.1. Asistenţă tehnică din partea proiectantului",null,null,null,null,null,null,null,null,null,null,null,null,null,null,null,null,null,null,null,null,null,null,null,null,null,null,null,null,null,null,null,null,null,null,null,null,null,{"$f":"SUM(AQ93:AY94)","v":0},null,null,null,null,null,null,null,null,{"$f":"SUM(AZ93:BI94)","v":0}]
[null,null,null,null,"\n1.1. pe perioada de execuţie a lucrărilor"]
[null,null,null,null,"1.2. pentru participarea proiectantului la fazele incluse în programul de control al lucrărilor de execuţie, avizat de către Inspectoratul de Stat în Construcţii"]
[null,null,null,null,"3.8.2 Dirigenţie de şantier, asigurată de personal tehnic de specialitate, autorizat"]
["Total valoare fără TVA",null,null,null,null,null,null,null,null,null,null,null,null,null,null,null,null,null,null,null,null,null,null,null,null,null,null,null,null,null,null,null,null,null,null,null,null,null,null,null,null,null,{"$f":"AQ60+AQ64+AQ74+AQ75+AQ76+AQ83+AQ88+AQ91","v":0},null,null,null,null,null,null,null,null,{"$f":"AZ60+AZ64+AZ74+AZ75+AZ76+AZ83+AZ88+AZ91","v":0}]
["Valoare TVA (aferentă cheltuielilor eligibile şi neeligibile)"]
["TOTAL DEVIZ FINANCIAR 1 (inclusiv TVA)",null,null,null,null,null,null,null,null,null,null,null,null,null,null,null,null,null,null,null,null,null,null,null,null,null,null,null,null,null,null,null,null,null,null,null,null,null,null,null,null,null,{"$f":"SUM(AQ96:BI97)","v":0}]

{"sheet":"Anexa 2 HG_907","index":3,"n_rows":63,"n_cols":52,"rows_kept":63,"cut":false,"hidden":false,"merged":[[4,7,4,60],[5,0,5,60],[6,0,6,60],[7,0,7,60],[8,0,8,3],[8,4,8,41],[8,42,8,60],[0,7,0,41],[1,7,1,41],[1,42,2,60],[2,7,2,41],[3,7,3,41],[3,42,3,50],[3,51,3,60],[11,0,11,3],[11,4,11,41],[11,42,11,50],[11,51,11,60],[12,0,12,3],[12,4,12,41],[12,42,12,50],[12,51,12,60],[9,0,9,3],[9,4,9,41],[9,42,9,50],[9,51,9,60],[10,0,10,41],[10,42,10,50],[10,51,10,60],[15,0,15,3],[15,4,15,41],[15,42,15,50],[15,51,15,60],[16,0,16,3],[16,4,16,41],[16,42,16,50],[16,51,16,60],[13,0,13,3],[13,4,13,41],[13,42,13,50],[13,51,13,60],[14,0,14,3],[14,4,14,41],[14,42,14,50],[14,51,14,60],[17,0,17,60],[18,0,18,3],[18,4,18,41],[18,42,18,50],[18,51,18,60],[19,0,19,3],[19,4,19,41],[19,42,19,50],[19,51,19,60],[23,0,23,3],[23,4,23,41],[23,42,23,50],[23,51,23,60],[24,0,24,3],[24,4,24,41],[24,42,24,50],[24,51,24,60],[20,0,20,60],[21,0,21,3],[21,4,21,41],[21,42,21,50],[21,51,21,60],[22,0,22,3],[22,4,22,41],[22,42,22,50],[22,51,22,60],[27,0,27,41],[27,42,27,50],[27,51,27,60],[28,0,28,41],[28,42,28,60],[32,7,32,41],[25,0,25,3],[25,4,25,41],[25,42,25,50],[25,51,25,60],[26,0,26,41],[26,42,26,50],[26,51,26,60],[36,7,36,60],[37,0,37,60],[38,0,38,60],[39,0,39,60],[40,0,40,3],[40,4,40,41],[40,42,40,60],[33,7,33,41],[33,42,34,60],[34,7,34,41],[35,7,35,41],[35,42,35,50],[35,51,35,60],[43,0,43,3],[43,4,43,41],[43,42,43,50],[43,51,43,60],[44,0,44,3],[44,4,44,41],[44,42,44,50],[44,51,44,60],[41,0,41,3],[41,4,41,41],[41,42,41,50],[41,51,41,60],[42,0,42,41],[42,42,42,50],[42,51,42,60],[47,0,47,3],[47,4,47,41],[47,42,47,50],[47,51,47,60],[48,0,48,3],[48,4,48,41],[48,42,48,50],[48,51,48,60],[45,0,45,3],[45,4,45,41],[45,42,45,50],[45,51,45,60],[46,0,46,3],[46,4,46,41],[46,42,46,50],[46,51,46,60],[49,0,49,60],[50,0,50,3],[50,4,50,41],[50,42,50,50],[50,51,50,60],[51,0,51,3],[51,4,51,41],[51,42,51,50],[51,51,51,60],[55,0,55,3],[55,4,55,41],[55,42,55,50],[55,51,55,60],[56,0,56,3],[56,4,56,41],[56,42,56,50],[56,51,56,60],[52,0,52,60],[53,0,53,3],[53,4,53,41],[53,42,53,50],[53,51,53,60],[54,0,54,3],[54,4,54,41],[54,42,54,50],[54,51,54,60],[59,0,59,41],[59,42,59,50],[59,51,59,60],[60,0,60,41],[60,42,60,60],[57,0,57,3],[57,4,57,41],[57,42,57,50],[57,51,57,60],[58,0,58,41],[58,42,58,50],[58,51,58,60]]}
[null,null,null,null,null,null,null,"MINISTERUL AGRICULTURII ŞI DEZVOLTĂRII RURALE"]
[null,null,null,null,null,null,null,null,null,null,null,null,null,null,null,null,null,null,null,null,null,null,null,null,null,null,null,null,null,null,null,null,null,null,null,null,null,null,null,null,null,null,"Anexa A2 HG_907"]
[null,null,null,null,null,null,null,"AGENŢIA PENTRU FINANŢAREA INVESTIŢIILOR RURALE"]
[]
[null,null,null,null,null,null,null,"DEVIZUL OBIECTULUI *"]
["Nr.2"]
[]
[]
["Nr. crt.",null,null,null,"Denumire",null,null,null,null,null,null,null,null,null,null,null,null,null,null,null,null,null,null,null,null,null,null,null,null,null,null,null,null,null,null,null,null,null,null,null,null,null,"Valoarea pe categorii de lucrări, fară TVA - EURO"]
[null,null,null,null,"Cap. 4 - Cheltuieli pentru investiţia de bază",null,null,null,null,null,null,null,null,null,null,null,null,null,null,null,null,null,null,null,null,null,null,null,null,null,null,null,null,null,null,null,null,null,null,null,null,null,"Valoare eligibilă",null,null,null,null,null,null,null,null,"Valoare\nneeligibilă"]
["I - LUCRĂRI DE CONSTRUCŢII ŞI INSTALAŢII"]
["4.1",null,null,null,"Construcţii şi instalaţii"]
[null,null,null,null,"4.1.1 Terasamente, sistematizare pe verticală şi amenajări exterioare"]
[null,null,null,null,"4.1.2 Rezistenţă"]
[null,null,null,null,"4.1.3 Arhitectură"]
[null,null,null,null,"4.1.4 Instalaţii"]
[null,null,null,null,"TOTAL I ( fără TVA)",null,null,null,null,null,null,null,null,null,null,null,null,null,null,null,null,null,null,null,null,null,null,null,null,null,null,null,null,null,null,null,null,null,null,null,null,null,{"$f":"SUM(AQ12:AY16)","v":0},null,null,null,null,null,null,null,null,{"$f":"SUM(AZ12:BI16)","v":0}]
["II - MONTAJ"]
["4.2",null,null,null,"Montaj utilaje, echipamente tehnologice şi funcţionale"]
[null,null,null,null,"TOTAL II ( fără TVA)",null,null,null,null,null,null,null,null,null,null,null,null,null,null,null,null,null,null,null,null,null,null,null,null,null,null,null,null,null,null,null,null,null,null,null,null,null,{"$f":"SUM(AQ19)","v":0},null,null,null,null,null,null,null,null,{"$f":"SUM(AZ19)","v":0}]
["III - PROCURARE"]
["4.3",null,null,null,"Utilaje, echipamente tehnologice şi funcţionale care necesită montaj"]
["4.4",null,null,null,"Utilaje, echipamente tehnologice şi funcţionale care nu necesită montaj şi echipamente de transport"]
["4.5",null,null,null,"Dotări"]
["4.6",null,null,null,"Active necorporale"]
[null,null,null,null,"TOTAL III ( fără TVA)",null,null,null,null,null,null,null,null,null,null,null,null,null,null,null,null,null,null,null,null,null,null,null,null,null,null,null,null,null,null,null,null,null,null,null,null,null,{"$f":"SUM(AQ22:AY25)","v":0},null,null,null,null,null,null,null,null,{"$f":"SUM(AZ22:BI25)","v":0}]
["TOTAL ( TOTAL I + TOTAL II +TOTAL III) fără TVA",null,null,null,null,null,null,null,null,null,null,null,null,null,null,null,null,null,null,null,null,null,null,null,null,null,null,null,null,null,null,null,null,null,null,null,null,null,null,null,null,null,{"$f":"AQ26+AQ20+AQ17","v":0},null,null,null,null,null,null,null,null,{"$f":"AZ26+AZ20+AZ17","v":0}]
["TVA aferent cheltuielilor eligibile şi neeligibile"]
["TOTAL DEVIZ PE OBIECT (inclusiv TVA)",null,null,null,null,null,null,null,null,null,null,null,null,null,null,null,null,null,null,null,null,null,null,null,null,null,null,null,null,null,null,null,null,null,null,null,null,null,null,null,null,null,{"$f":"AQ27+AZ27+AQ28+AZ28","v":0}]
[]
[null,"*) Se înscrie denumirea obiectului de construcţie sau intervenţie"]
[]
[null,null,null,null,null,null,null,"MINISTERUL AGRICULTURII ŞI DEZVOLTĂRII RURALE"]
[null,null,null,null,null,null,null,null,null,null,null,null,null,null,null,null,null,null,null,null,null,null,null,null,null,null,null,null,null,null,null,null,null,null,null,null,null,null,null,null,null,null,"Anexa A2 HG_907"]
[null,null,null,null,null,null,null,"AGENŢIA PENTRU FINANŢAREA INVESTIŢIILOR RURALE"]
[]
[null,null,null,null,null,null,null,"DEVIZUL OBIECTULUI *"]
["Nr.3"]
[]
[]
["Nr. crt.",null,null,null,"Denumire",null,null,null,null,null,null,null,null,null,null,null,null,null,null,null,null,null,null,null,null,null,null,null,null,null,null,null,null,null,null,null,null,null,null,null,null,null,"Valoarea pe categorii de lucrări, fară TVA - EURO"]
[null,null,null,null,"Cap. 4 - Cheltuieli pentru investiţia de bază",null,null,null,null,null,null,null,null,null,null,null,null,null,null,null,null,null,null,null,null,null,null,null,null,null,null,null,null,null,null,null,null,null,null,null,null,null,"Valoare eligibilă",null,null,null,null,null,null,null,null,"Valoare\nneeligibilă"]
["I - LUCRĂRI DE CONSTRUCŢII ŞI INSTALAŢII"]
["4.1",null,null,null,"Construcţii şi instalaţii"]
[null,null,null,null,"4.1.1 Terasamente, sistematizare pe verticală şi amenajări exterioare"]
[null,null,null,null,"4.1.2 Rezistenţă"]
[null,null,null,null,"4.1.3 Arhitectură"]
[null,null,null,null,"4.1.4 Instalaţii"]
[null,null,null,null,"TOTAL I ( fără TVA)",null,null,null,null,null,null,null,null,null,null,null,null,null,null,null,null,null,null,null,null,null,null,null,null,null,null,null,null,null,null,null,null,null,null,null,null,null,{"$f":"SUM(AQ44:AY48)","v":0},null,null,null,null,null,null,null,null,{"$f":"SUM(AZ44:BI48)","v":0}]
["II - MONTAJ"]
["4.2",null,null,null,"Montaj utilaje, echipamente tehnologice şi funcţionale"]
[null,null,null,null,"TOTAL II ( fără TVA)",null,null,null,null,null,null,null,null,null,null,null,null,null,null,null,null,null,null,null,null,null,null,null,null,null,null,null,null,null,null,null,null,null,null,null,null,null,{"$f":"SUM(AQ51)","v":0},null,null,null,null,null,null,null,null,{"$f":"SUM(AZ51)","v":0}]
["III - PROCURARE"]
["4.3",null,null,null,"Utilaje, echipamente tehnologice şi funcţionale care necesită montaj"]
["4.4",null,null,null,"Utilaje, echipamente tehnologice şi funcţionale care nu necesită montaj şi echipamente de transport"]
["4.5",null,null,null,"Dotări"]
["4.6",null,null,null,"Active necorporale"]
[null,null,null,null,"TOTAL III ( fără TVA)",null,null,null,null,null,null,null,null,null,null,null,null,null,null,null,null,null,null,null,null,null,null,null,null,null,null,null,null,null,null,null,null,null,null,null,null,null,{"$f":"SUM(AQ54:AY57)","v":0},null,null,null,null,null,null,null,null,{"$f":"SUM(AZ54:BI57)","v":0}]
["TOTAL ( TOTAL I + TOTAL II +TOTAL III) fără TVA",null,null,null,null,null,null,null,null,null,null,null,null,null,null,null,null,null,null,null,null,null,null,null,null,null,null,null,null,null,null,null,null,null,null,null,null,null,null,null,null,null,{"$f":"AQ58+AQ52+AQ49","v":0},null,null,null,null,null,null,null,null,{"$f":"AZ58+AZ52+AZ49","v":0}]
["TVA aferent cheltuielilor eligibile şi neeligibile"]
["TOTAL DEVIZ PE OBIECT (inclusiv TVA)",null,null,null,null,null,null,null,null,null,null,null,null,null,null,null,null,null,null,null,null,null,null,null,null,null,null,null,null,null,null,null,null,null,null,null,null,null,null,null,null,null,{"$f":"AQ59+AZ59+AQ60+AZ60","v":0}]
[]
[null,"*) Se înscrie denumirea obiectului de construcţie sau intervenţie"]

{"sheet":"Anexa 3 HG_907","index":4,"n_rows":82,"n_cols":52,"rows_kept":82,"cut":false,"hidden":false,"merged":[[1,7,1,41],[1,42,2,60],[2,7,2,41],[3,7,3,41],[3,42,3,50],[3,51,3,60],[4,7,4,60],[5,0,5,60],[6,0,6,60],[7,0,7,60],[8,0,8,60],[9,0,9,3],[9,4,9,41],[9,42,9,50],[9,51,9,60],[12,0,12,3],[12,4,12,41],[12,42,12,50],[12,51,12,60],[13,0,13,3],[13,4,13,41],[13,42,13,50],[13,51,13,60],[10,0,10,3],[10,4,10,41],[10,42,10,50],[10,51,10,60],[11,0,11,3],[11,4,11,41],[11,42,11,50],[11,51,11,60],[16,0,16,3],[16,4,16,41],[16,42,16,50],[16,51,16,60],[17,0,17,3],[17,4,17,41],[17,42,17,50],[17,51,17,60],[14,0,14,3],[14,4,14,41],[14,42,14,50],[14,51,14,60],[15,0,15,3],[15,4,15,41],[15,42,15,50],[15,51,15,60],[20,0,20,3],[20,4,20,41],[20,42,20,50],[20,51,20,60],[21,0,21,41],[21,42,21,60],[18,0,18,3],[18,4,18,41],[18,42,18,50],[18,51,18,60],[19,0,19,3],[19,4,19,41],[19,42,19,50],[19,51,19,60],[22,0,22,3],[22,4,22,41],[22,42,22,50],[22,51,22,60],[23,0,23,60],[24,0,24,3],[24,4,24,41],[24,42,24,50],[24,51,24,60],[25,0,25,60],[26,0,26,3],[26,4,26,41],[26,42,26,50],[26,51,26,60],[27,0,27,3],[27,4,27,41],[27,42,27,50],[27,51,27,60],[30,0,30,3],[30,4,30,41],[30,42,30,50],[30,51,30,60],[31,0,31,3],[31,4,31,41],[31,42,31,50],[31,51,31,60],[28,0,28,3],[28,4,28,41],[28,42,28,50],[28,51,28,60],[29,0,29,3],[29,4,29,41],[29,42,29,50],[29,51,29,60],[34,0,34,3],[34,4,34,41],[34,42,34,50],[34,51,34,60],[35,0,35,3],[35,4,35,41],[35,42,35,50],[35,51,35,60],[32,0,32,3],[32,4,32,41],[32,42,32,50],[32,51,32,60],[33,0,33,3],[33,4,33,41],[33,42,33,50],[33,51,33,60],[38,0,38,3],[38,4,38,41],[38,42,38,50],[38,51,38,60],[39,0,39,3],[39,4,39,41],[39,42,39,60],[36,0,36,3],[36,4,36,41],[36,42,36,50],[36,51,36,60],[37,0,37,3],[37,4,37,41],[37,42,37,50],[37,51,37,60],[49,0,49,60],[50,0,50,60],[51,0,51,3],[51,4,51,41],[51,42,51,50],[51,51,51,60],[82,0,82,44],[43,7,43,41],[43,42,44,60],[44,7,44,41],[45,7,45,41],[45,42,45,50],[45,51,45,60],[46,7,46,60],[47,0,47,60],[48,0,48,60],[54,0,54,3],[54,4,54,41],[54,42,54,50],[54,51,54,60],[55,0,55,3],[55,4,55,41],[55,42,55,50],[55,51,55,60],[52,0,52,3],[52,4,52,41],[52,42,52,50],[52,51,52,60],[53,0,53,3],[53,4,53,41],[53,42,53,50],[53,51,53,60],[58,0,58,3],[58,4,58,41],[58,42,58,50],[58,51,58,60],[59,0,59,3],[59,4,59,41],[59,42,59,50],[59,51,59,60],[56,0,56,3],[56,4,56,41],[56,42,56,50],[56,51,56,60],[57,0,57,3],[57,4,57,41],[57,42,57,50],[57,51,57,60],[62,0,62,3],[62,4,62,41],[62,42,62,50],[62,51,62,60],[63,0,63,41],[63,42,63,60],[60,0,60,3],[60,4,60,41],[60,42,60,50],[60,51,60,60],[61,0,61,3],[61,4,61,41],[61,42,61,50],[61,51,61,60],[64,0,64,3],[64,4,64,41],[64,42,64,50],[64,51,64,60],[65,0,65,60],[66,0,66,3],[66,4,66,41],[66,42,66,50],[66,51,66,60],[67,0,67,60],[68,0,68,3],[68,4,68,41],[68,42,68,50],[68,51,68,60],[69,0,69,3],[69,4,69,41],[69,42,69,50],[69,51,69,60],[72,0,72,3],[72,4,72,41],[72,42,72,50],[72,51,72,60],[73,0,73,3],[73,4,73,41],[73,42,73,50],[73,51,73,60],[70,0,70,3],[70,4,70,41],[70,42,70,50],[70,51,70,60],[71,0,71,3],[71,4,71,41],[71,42,71,50],[71,51,71,60],[76,0,76,3],[76,4,76,41],[76,42,76,50],[76,51,76,60],[77,0,77,3],[77,4,77,41],[77,42,77,50],[77,51,77,60],[74,0,74,3],[74,4,74,41],[74,42,74,50],[74,51,74,60],[75,0,75,3],[75,4,75,41],[75,42,75,50],[75,51,75,60],[80,0,80,3],[80,4,80,41],[80,42,80,50],[80,51,80,60],[81,0,81,3],[81,4,81,41],[81,42,81,60],[78,0,78,3],[78,4,78,41],[78,42,78,50],[78,51,78,60],[79,0,79,3],[79,4,79,41],[79,42,79,50],[79,51,79,60]]}
[]
[null,null,null,null,null,null,null,"MINISTERUL AGRICULTURII ŞI DEZVOLTĂRII RURALE",null,null,null,null,null,null,null,null,null,null,null,null,null,null,null,null,null,null,null,null,null,null,null,null,null,null,null,null,null,null,null,null,null,null,"Anexa A3 HG_907"]
[]
[null,null,null,null,null,null,null,"AGENŢIA PENTRU FINANŢAREA INVESTIŢIILOR RURALE"]
[]
["Nr.2"]
[]
[]
["Deviz capitolul 2- Cheltuieli pentru asigurarea utilităţilor necesare obiectivului - EURO"]
["Nr. crt.",null,null,null,"Specificaţie",null,null,null,null,null,null,null,null,null,null,null,null,null,null,null,null,null,null,null,null,null,null,null,null,null,null,null,null,null,null,null,null,null,null,null,null,null,"Valoare eligibilă",null,null,null,null,null,null,null,null,"Valoare\nneeligibilă"]
[1,null,null,null,"Alimentare cu apă"]
[2,null,null,null,"Canalizare"]
[3,null,null,null,"Alimentare cu gaze naturale"]
[4,null,null,null,"Alimentare cu agent termic"]
[5,null,null,null,"Alimentare cu energie electrică"]
[6,null,null,null,"Telecomunicaţii (telefonie, radio-tv,etc)"]
[7,null,null,null,"Drumuri de acces"]
[8,null,null,null,"Căi ferate industriale"]
[9,null,null,null,"Alte utilitati"]
[null,null,null,null,"TOTAL DEVIZ CAPITOLUL 2",null,null,null,null,null,null,null,null,null,null,null,null,null,null,null,null,null,null,null,null,null,null,null,null,null,null,null,null,null,null,null,null,null,null,null,null,null,{"$f":"SUM(AQ11:AY19)","v":0},null,null,null,null,null,null,null,null,{"$f":"SUM(AZ11:BI19)","v":0}]
[null,null,null,null,"Valoare TVA aferentă cheltuielilor eligibile şi neeligibile"]
["TOTAL DEVIZ CAPITOLUL 2 (inclusiv TVA)",null,null,null,null,null,null,null,null,null,null,null,null,null,null,null,null,null,null,null,null,null,null,null,null,null,null,null,null,null,null,null,null,null,null,null,null,null,null,null,null,null,{"$f":"AQ20+AZ20+AQ21+AZ21","v":0}]
[]
[" Deviz capitolul 5 - Alte cheltuieli - EURO"]
["Nr. crt.",null,null,null,"Specificaţie",null,null,null,null,null,null,null,null,null,null,null,null,null,null,null,null,null,null,null,null,null,null,null,null,null,null,null,null,null,null,null,null,null,null,null,null,null,"Valoare eligibilă",null,null,null,null,null,null,null,null,"Valoare\nneeligibilă"]
[]
["5.1 ",null,null,null,"Organizare de şantier",null,null,null,null,null,null,null,null,null,null,null,null,null,null,null,null,null,null,null,null,null,null,null,null,null,null,null,null,null,null,null,null,null,null,null,null,null,{"$f":"SUM(AQ28:AY29)","v":0},null,null,null,null,null,null,null,null,{"$f":"SUM(AZ28:BI29)","v":0}]
[null,null,null,null,"5.1.1 Lucrări de construcţii şi instalaţii aferente organizării de şantier"]
[null,null,null,null,"5.1.2 Cheltuieli conexe organizării de şantier"]
["5.2",null,null,null,"Comisioane, cote, taxe, costul creditului",null,null,null,null,null,null,null,null,null,null,null,null,null,null,null,null,null,null,null,null,null,null,null,null,null,null,null,null,null,null,null,null,null,null,null,null,null,{"$f":"SUM(AQ32:AY35)","v":0},null,null,null,null,null,null,null,null,{"$f":"SUM(AZ31:BI35)","v":0}]
[null,null,null,null,"5.2.1. Comisioanele şi dobânzile aferente creditului băncii finanţatoare"]
[null,null,null,null,"5.2.2. Cota aferentă ISC pentru controlul calităţii lucrărilor de construcţii"]
[null,null,null,null,"5.2.3. Cota aferentă ISC pentru controlul statului în amenajarea teritoriului, urbanism şi pentru autorizarea lucrărilor de construcţii"]
[null,null,null,null,"5.2.4. Cota aferentă Casei Sociale a Constructorilor - CSC"]
[null,null,null,null,"5.2.5. Taxe pentru acorduri, avize conforme şi autorizaţia de construire/ desfiinţare"]
["5.3",null,null,null," Cheltuieli diverse si neprevazute"]
["5.4",null,null,null," Cheltuieli pentru informare şi publicitate"]
[null,null,null,null,"TOTAL DEVIZ CAPITOLUL 5",null,null,null,null,null,null,null,null,null,null,null,null,null,null,null,null,null,null,null,null,null,null,null,null,null,null,null,null,null,null,null,null,null,null,null,null,null,{"$f":"AQ27+AQ30+AQ36","v":0},null,null,null,null,null,null,null,null,{"$f":"AZ27+AZ30+AZ36+AZ37","v":0}]
[null,null,null,null,"VALOARE TVA aferentă cheltuielilor eligibile şi neeligibile"]
[null,null,null,null,"TOTAL DEVIZ CAPITOLUL 5 ( inclusiv TVA)",null,null,null,null,null,null,null,null,null,null,null,null,null,null,null,null,null,null,null,null,null,null,null,null,null,null,null,null,null,null,null,null,null,null,null,null,null,{"$f":"AQ38+AZ38+AQ39+AZ39","v":0}]
[]
[]
[]
[null,null,null,null,null,null,null,"MINISTERUL AGRICULTURII ŞI DEZVOLTĂRII RURALE",null,null,null,null,null,null,null,null,null,null,null,null,null,null,null,null,null,null,null,null,null,null,null,null,null,null,null,null,null,null,null,null,null,null,"Anexa A3 HG_907"]
[]
[null,null,null,null,null,null,null,"AGENŢIA PENTRU FINANŢAREA INVESTIŢIILOR RURALE"]
[]
["Nr.3"]
[]
[]
["Deviz capitolul 2- Cheltuieli pentru asigurarea utilităţilor necesare obiectivului - EURO"]
["Nr. crt.",null,null,null,"Specificaţie",null,null,null,null,null,null,null,null,null,null,null,null,null,null,null,null,null,null,null,null,null,null,null,null,null,null,null,null,null,null,null,null,null,null,null,null,null,"Valoare eligibilă",null,null,null,null,null,null,null,null,"Valoare\nneeligibilă"]
[1,null,null,null,"Alimentare cu apă"]
[2,null,null,null,"Canalizare"]
[3,null,null,null,"Alimentare cu gaze naturale"]
[4,null,null,null,"Alimentare cu agent termic"]
[5,null,null,null,"Alimentare cu energie electrică"]
[6,null,null,null,"Telecomunicaţii (telefonie, radio-tv,etc)"]
[7,null,null,null,"Drumuri de acces"]
[8,null,null,null,"Căi ferate industriale"]
[9,null,null,null,"Alte utilitati"]
[null,null,null,null,"TOTAL DEVIZ CAPITOLUL 2",null,null,null,null,null,null,null,null,null,null,null,null,null,null,null,null,null,null,null,null,null,null,null,null,null,null,null,null,null,null,null,null,null,null,null,null,null,{"$f":"SUM(AQ53:AY61)","v":0},null,null,null,null,null,null,null,null,{"$f":"SUM(AZ53:BI61)","v":0}]
[null,null,null,null,"Valoare TVA aferentă cheltuielilor eligibile şi neeligibile"]
["TOTAL DEVIZ CAPITOLUL 2 (inclusiv TVA)",null,null,null,null,null,null,null,null,null,null,null,null,null,null,null,null,null,null,null,null,null,null,null,null,null,null,null,null,null,null,null,null,null,null,null,null,null,null,null,null,null,{"$f":"AQ62+AZ62+AQ63+AZ63","v":0}]
[]
[" Deviz capitolul 5 - Alte cheltuieli - EURO"]
["Nr. crt.",null,null,null,"Specificaţie",null,null,null,null,null,null,null,null,null,null,null,null,null,null,null,null,null,null,null,null,null,null,null,null,null,null,null,null,null,null,null,null,null,null,null,null,null,"Valoare eligibilă",null,null,null,null,null,null,null,null,"Valoare\nneeligibilă"]
[]
["5.1 ",null,null,null,"Organizare de şantier",null,null,null,null,null,null,null,null,null,null,null,null,null,null,null,null,null,null,null,null,null,null,null,null,null,null,null,null,null,null,null,null,null,null,null,null,null,{"$f":"SUM(AQ70:AY71)","v":0},null,null,null,null,null,null,null,null,{"$f":"SUM(AZ70:BI71)","v":0}]
[null,null,null,null,"5.1.1 Lucrări de construcţii şi instalaţii aferente organizării de şantier"]
[null,null,null,null,"5.1.2 Cheltuieli conexe organizării de şantier"]
["5.2",null,null,null,"Comisioane, cote, taxe, costul creditului",null,null,null,null,null,null,null,null,null,null,null,null,null,null,null,null,null,null,null,null,null,null,null,null,null,null,null,null,null,null,null,null,null,null,null,null,null,{"$f":"SUM(AQ74:AY77)","v":0},null,null,null,null,null,null,null,null,{"$f":"SUM(AZ73:BI77)","v":0}]
[null,null,null,null,"5.2.1. Comisioanele şi dobânzile aferente creditului băncii finanţatoare"]
[null,null,null,null,"5.2.2. Cota aferentă ISC pentru controlul calităţii lucrărilor de construcţii"]
[null,null,null,null,"5.2.3. Cota aferentă ISC pentru controlul statului în amenajarea teritoriului, urbanism şi pentru autorizarea lucrărilor de construcţii"]
[null,null,null,null,"5.2.4. Cota aferentă Casei Sociale a Constructorilor - CSC"]
[null,null,null,null,"5.2.5. Taxe pentru acorduri, avize conforme şi autorizaţia de construire/ desfiinţare"]
["5.3",null,null,null," Cheltuieli diverse si neprevazute"]
["5.4",null,null,null," Cheltuieli pentru informare şi publicitate"]
[null,null,null,null,"TOTAL DEVIZ CAPITOLUL 5",null,null,null,null,null,null,null,null,null,null,null,null,null,null,null,null,null,null,null,null,null,null,null,null,null,null,null,null,null,null,null,null,null,null,null,null,null,{"$f":"AQ69+AQ72+AQ78","v":0},null,null,null,null,null,null,null,null,{"$f":"AZ69+AZ72+AZ78+AZ79","v":0}]
[null,null,null,null,"VALOARE TVA aferentă cheltuielilor eligibile şi neeligibile"]
[null,null,null,null,"TOTAL DEVIZ CAPITOLUL 5 ( inclusiv TVA)",null,null,null,null,null,null,null,null,null,null,null,null,null,null,null,null,null,null,null,null,null,null,null,null,null,null,null,null,null,null,null,null,null,null,null,null,null,{"$f":"AQ80+AZ80+AQ81+AZ81","v":0}]